Ref No,Fund Type,Dept,Cost Centre Description    ,Description    ,Creditor Name    ,GL Code Net Amount,Payment date        
2,Revenue,CAHD,18-25 Year Olds,Permanent Residential,Winslow Court,13333.52, 02-Jul-2019
3,Revenue,CAHD,18-25 Year Olds,Permanent Residential,Winslow Court,13333.52, 30-Jul-2019
4,Revenue,CAHD,CSC - LAC Housing Support Grants,Grants to Voluntary Bodies,1625 Independent People,13266.00, 10-Jul-2019
5,Revenue,CAHD,Supporting People Programme,Grants to Voluntary Bodies,1625 Independent People,15167.00, 01-Jul-2019
6,Revenue,CAHD,Supporting People Programme,Grants to Voluntary Bodies,1625 Independent People,10046.00, 01-Jul-2019
7,Revenue,CAHD,CSC - Care Leavers Independent Living,Independent Living,16Pluscare Support Solutions,500.50, 01-Jul-2019
8,Revenue,CAHD,CSC - Asylum Seekers - Unaccompanied,Adults - Family Support,16Pluscare Support Solutions,6112.28, 09-Jul-2019
9,Revenue,CAHD,CSC - Care Leavers Independent Living,Independent Living,16Pluscare Support Solutions,1894.30, 11-Jul-2019
10,Revenue,CAHD,North - bed purchasing and direct  payments,Permanent Residential,Cepen Lodge,2741.48, 02-Jul-2019
11,Revenue,CAHD,North - bed purchasing and direct  payments,Permanent Residential,Cepen Lodge,2741.48, 30-Jul-2019
12,Revenue,CAHD,North - bed purchasing and direct  payments,Permanent Nursing,Yatton Hall Care Home,2268.32, 02-Jul-2019
13,Revenue,CAHD,North - bed purchasing and direct  payments,Permanent Nursing,Yatton Hall Care Home,2268.32, 30-Jul-2019
14,Revenue,CAHD,Central - Community based support,Day Care / Social Activities,3 Trees Community Support Ltd,390.40, 01-Jul-2019
15,Revenue,CAHD,Central - Community based support,Other Small Contracts,3 Trees Community Support Ltd,5167.87, 01-Jul-2019
16,Revenue,CAHD,Central - Community based support,Supported Living,3 Trees Community Support Ltd,5584.36, 01-Jul-2019
17,Revenue,CAHD,North - Community based support,Day Care / Social Activities,3 Trees Community Support Ltd,683.20, 01-Jul-2019
18,Revenue,CAHD,Central - Community based support,Day Care / Social Activities,3 Trees Community Support Ltd,405.04, 03-Jul-2019
19,Revenue,CAHD,Central - Community based support,Other Small Contracts,3 Trees Community Support Ltd,5171.79, 03-Jul-2019
20,Revenue,CAHD,Central - Community based support,Supported Living,3 Trees Community Support Ltd,5573.92, 03-Jul-2019
21,Revenue,CAHD,North - Community based support,Day Care / Social Activities,3 Trees Community Support Ltd,668.56, 03-Jul-2019
22,Revenue,CAHD,Central - Community based support,Day Care / Social Activities,3 Trees Community Support Ltd,385.52, 11-Jul-2019
23,Revenue,CAHD,Central - Community based support,Other Small Contracts,3 Trees Community Support Ltd,5019.04, 11-Jul-2019
24,Revenue,CAHD,Central - Community based support,Supported Living,3 Trees Community Support Ltd,6979.84, 11-Jul-2019
25,Revenue,CAHD,North - Community based support,Day Care / Social Activities,3 Trees Community Support Ltd,668.56, 11-Jul-2019
26,Revenue,CAHD,Central - Community based support,Day Care / Social Activities,3 Trees Community Support Ltd,390.40, 17-Jul-2019
27,Revenue,CAHD,Central - Community based support,Other Small Contracts,3 Trees Community Support Ltd,5153.25, 17-Jul-2019
28,Revenue,CAHD,Central - Community based support,Supported Living,3 Trees Community Support Ltd,5578.80, 17-Jul-2019
29,Revenue,CAHD,North - Community based support,Day Care / Social Activities,3 Trees Community Support Ltd,649.04, 17-Jul-2019
30,Revenue,CAHD,Central - Community based support,Day Care / Social Activities,3 Trees Community Support Ltd,292.80, 23-Jul-2019
31,Revenue,CAHD,Central - Community based support,Other Small Contracts,3 Trees Community Support Ltd,5151.79, 23-Jul-2019
32,Revenue,CAHD,Central - Community based support,Supported Living,3 Trees Community Support Ltd,5552.63, 23-Jul-2019
33,Revenue,CAHD,North - Community based support,Day Care / Social Activities,3 Trees Community Support Ltd,663.68, 23-Jul-2019
34,Revenue,CAHD,Central - Community based support,Day Care / Social Activities,3 Trees Community Support Ltd,385.52, 31-Jul-2019
35,Revenue,CAHD,Central - Community based support,Other Small Contracts,3 Trees Community Support Ltd,5158.13, 31-Jul-2019
36,Revenue,CAHD,Central - Community based support,Supported Living,3 Trees Community Support Ltd,5584.36, 31-Jul-2019
37,Revenue,CAHD,North - Community based support,Day Care / Social Activities,3 Trees Community Support Ltd,673.44, 31-Jul-2019
38,Revenue,CAHD,Winter Incentive Payments,Other Small Contracts,3 Trees Community Support Ltd,3100.00, 22-Jul-2019
39,Revenue,CAHD,18-25 Year Olds,Permanent Residential,Beechwood Court,15254.92, 02-Jul-2019
40,Revenue,CAHD,18-25 Year Olds,Permanent Residential,Beechwood Court,15254.92, 30-Jul-2019
41,Revenue,CAHD,18-25 Year Olds,Permanent Residential,Beechwood Court,18219.32, 02-Jul-2019
42,Revenue,CAHD,North - bed purchasing and direct  payments,Permanent Residential,Beechwood Court,13815.84, 02-Jul-2019
43,Revenue,CAHD,18-25 Year Olds,Permanent Residential,Beechwood Court,13829.56, 02-Jul-2019
44,Revenue,CAHD,North - bed purchasing and direct  payments,Permanent Residential,Beechwood Court,14717.16, 02-Jul-2019
45,Revenue,CAHD,Jointly Funded H&SC Packages,Permanent Residential,Beechwood Court,3641.84, 02-Jul-2019
46,Revenue,CAHD,North - bed purchasing and direct  payments,Permanent Residential,Beechwood Court,14717.16, 30-Jul-2019
47,Revenue,CAHD,Jointly Funded H&SC Packages,Permanent Residential,Beechwood Court,3641.84, 30-Jul-2019
48,Revenue,CAHD,South - Bed Purchasing and Direct payments,Permanent Residential,Cherry Tree House,16667.12, 02-Jul-2019
49,Revenue,CAHD,South - Bed Purchasing and Direct payments,Permanent Residential,Cherry Tree House,16667.12, 30-Jul-2019
50,Revenue,CAHD,South - Bed Purchasing and Direct payments,Permanent Residential,Cherry Tree House,10419.52, 02-Jul-2019
51,Revenue,CAHD,South - Bed Purchasing and Direct payments,Permanent Residential,Cherry Tree House,10419.52, 30-Jul-2019
52,Revenue,CAHD,S28A cases,Permanent Residential,Cherry Tree House,10904.68, 02-Jul-2019
53,Revenue,CAHD,S28A cases,Permanent Residential,Cherry Tree House,10904.68, 30-Jul-2019
54,Revenue,CAHD,South - Bed Purchasing and Direct payments,Permanent Residential,Cherry Tree House,11436.40, 02-Jul-2019
55,Revenue,CAHD,South - Bed Purchasing and Direct payments,Permanent Residential,Cherry Tree House,11436.40, 30-Jul-2019
56,Revenue,CAHD,North - bed purchasing and direct  payments,Permanent Residential,Riverdale Care Home,12498.56, 02-Jul-2019
57,Revenue,CAHD,North - bed purchasing and direct  payments,Permanent Residential,Riverdale Care Home,12498.56, 30-Jul-2019
58,Revenue,CAHD,North - bed purchasing and direct  payments,Permanent Residential,Beech House,10537.24, 02-Jul-2019
59,Revenue,CAHD,North - bed purchasing and direct  payments,Permanent Residential,Beech House,10537.24, 30-Jul-2019
60,Revenue,CAHD,North - bed purchasing and direct  payments,Permanent Residential,Beech House,9071.12, 02-Jul-2019
61,Revenue,CAHD,North - bed purchasing and direct  payments,Permanent Residential,Beech House,9071.12, 30-Jul-2019
62,Revenue,CAHD,Alexandra Way,Operational Equipment,A E Horder (Contracting) Limited,6412.33, 05-Jul-2019
63,Revenue,CAHD,CSC - Section 17 0-25,Preventative Assistance,A+bility Ltd,834.00, 16-Jul-2019
64,Revenue,CAHD,Section 117 Placements MH Younger,Permanent Residential,Acorn Care Providers,6608.20, 02-Jul-2019
65,Revenue,CAHD,Section 117 Placements MH Younger,Permanent Residential,Acorn Care Providers,6608.20, 30-Jul-2019
66,Revenue,CAHD,MH Purchasing - Younger,Permanent Residential,Acorn Care Providers,3900.00, 30-Jul-2019
67,Revenue,CAHD,Jointly Funded H&SC Packages,Permanent Residential,Acorn Care Providers,2100.00, 30-Jul-2019
68,Revenue,CAHD,MH Purchasing - Younger,Permanent Residential,Acorn Care Providers,1500.00, 30-Jul-2019
69,Revenue,CAHD,MH Purchasing - Younger,Permanent Residential,Acorn Care Providers,6144.00, 02-Jul-2019
70,Revenue,CAHD,MH Purchasing - Younger,Permanent Residential,Acorn Care Providers,6144.00, 30-Jul-2019
71,Revenue,CAHD,CSC - Vinney Green Secure Unit,Training Expenses,Acorn Health & Safety Limited,450.00, 15-Jul-2019
72,Revenue,CAHD,Training - Adult Services,Training Expenses,Acorn Health & Safety Limited,422.75, 11-Jul-2019
73,Revenue,CAHD,Training - Adult Services,Training Expenses,Acorn Health & Safety Limited,477.00, 18-Jul-2019
74,Revenue,CAHD,Training - Adult Services,Training Expenses,Acorn Health & Safety Limited,477.00, 18-Jul-2019
75,Revenue,CAHD,Training - Adult Services,Training Expenses,Acorn Health & Safety Limited,437.00, 23-Jul-2019
76,Revenue,CAHD,Older People's Commissioned Se,Grants to Voluntary Bodies,Action for Blind People,27475.00, 01-Jul-2019
77,Revenue,CAHD,CSC - Agency Fostering,Foster Parent Allowances,Action for Children,2270.94, 01-Jul-2019
78,Revenue,CAHD,CSC - Agency Fostering,Foster Parent Allowances,Action for Children,6750.00, 02-Jul-2019
79,Revenue,CAHD,CSC - Agency Fostering,Foster Parent Allowances,Action for Children,6975.00, 31-Jul-2019
80,Revenue,CAHD,Research & Conferences,Membership Fees,ADASS,2015.00, 15-Jul-2019
81,Revenue,CAHD,South - community based support,Other Small Contracts,Advantedge Commercial Finance Limited,646.35, 02-Jul-2019
82,Revenue,CAHD,North - Community based support,Other Small Contracts,Advantedge Commercial Finance Limited,869.55, 02-Jul-2019
83,Revenue,CAHD,South - community based support,Other Small Contracts,Advantedge Commercial Finance Limited,660.30, 02-Jul-2019
84,Revenue,CAHD,South - community based support,Other Small Contracts,Advantedge Commercial Finance Limited,628.31, 10-Jul-2019
85,Revenue,CAHD,South - community based support,Other Small Contracts,Advantedge Commercial Finance Limited,799.64, 10-Jul-2019
86,Revenue,CAHD,South - community based support,Other Small Contracts,Advantedge Commercial Finance Limited,599.70, 10-Jul-2019
87,Revenue,CAHD,South - community based support,Other Small Contracts,Advantedge Commercial Finance Limited,2094.32, 10-Jul-2019
88,Revenue,CAHD,South - community based support,Other Small Contracts,Advantedge Commercial Finance Limited,932.96, 10-Jul-2019
89,Revenue,CAHD,South - community based support,Other Small Contracts,Advantedge Commercial Finance Limited,685.33, 10-Jul-2019
90,Revenue,CAHD,South - community based support,Day Care / Social Activities,Age Concern,511.92, 02-Jul-2019
91,Revenue,CAHD,Mental Health and Emotional Wellbeing,Other Small Contracts,Age UK South Gloucestershire,13725.00, 01-Jul-2019
92,Revenue,CAHD,Central - Community based support,Other Small Contracts,Agincare UK Limited,345.29, 17-Jul-2019
93,Revenue,CAHD,South - community based support,Other Small Contracts,Agincare UK Limited,572.33, 17-Jul-2019
94,Revenue,CAHD,Central - Community based support,Other Small Contracts,Agincare UK Limited,586.52, 11-Jul-2019
95,Revenue,CAHD,South - community based support,Other Small Contracts,Agincare UK Limited,335.83, 11-Jul-2019
96,Revenue,CAHD,Central - Community based support,Other Small Contracts,Agincare UK Limited,411.51, 11-Jul-2019
97,Revenue,CAHD,South - community based support,Other Small Contracts,Agincare UK Limited,283.80, 11-Jul-2019
98,Revenue,CAHD,Central - Community based support,Other Small Contracts,Agincare UK Limited,316.91, 30-Jul-2019
99,Revenue,CAHD,South - community based support,Other Small Contracts,Agincare UK Limited,321.64, 30-Jul-2019
100,Revenue,CAHD,Extra Care Housing,Private & Voluntary Home Care,Agincare UK Limited,23256.50, 01-Jul-2019
101,Revenue,CAHD,Extra Care Housing,Private & Voluntary Home Care,Agincare UK Limited,11253.50, 01-Jul-2019
102,Revenue,CAHD,Extra Care Housing,Private & Voluntary Home Care,Agincare UK Limited,27590.00, 04-Jul-2019
103,Revenue,CAHD,Extra Care Housing,Private & Voluntary Home Care,Agincare UK Limited,1443.29, 15-Jul-2019
104,Revenue,CAHD,Extra Care Housing,Private & Voluntary Home Care,Agincare UK Limited,5948.28, 23-Jul-2019
105,Revenue,CAHD,Extra Care Housing,Private & Voluntary Home Care,Agincare UK Limited,3916.19, 15-Jul-2019
106,Revenue,CAHD,Prison Assessments & Costs,Other Supplies & Services,Agincare UK Limited,5364.25, 22-Jul-2019
107,Revenue,CAHD,CSC - Professional Fees Foster Carers,Children - Family Support,Individual,1171.43, 05-Jul-2019
108,Revenue,CAHD,CSC - Age Related Allowances,Children - Family Support,Individual,1359.86, 05-Jul-2019
109,Revenue,CAHD,18-25 Year Olds,Permanent Residential,Alexander House,14182.68, 02-Jul-2019
110,Revenue,CAHD,18-25 Year Olds,Permanent Residential,Alexander House,42543.06, 30-Jul-2019
111,Revenue,CAHD,18-25 Year Olds,Permanent Residential,Alexander House,12155.16, 30-Jul-2019
112,Revenue,CAHD,18-25 Year Olds,Permanent Residential,Alexander House,11870.28, 30-Jul-2019
113,Revenue,CAHD,South - community based support,Other Small Contracts,AliMo Care Ltd,477.36, 11-Jul-2019
114,Revenue,CAHD,North - Community based support,Other Small Contracts,AliMo Care Ltd,126.36, 11-Jul-2019
115,Revenue,CAHD,South - community based support,Other Small Contracts,AliMo Care Ltd,453.96, 11-Jul-2019
116,Revenue,CAHD,North - Community based support,Other Small Contracts,AliMo Care Ltd,121.68, 11-Jul-2019
117,Revenue,CAHD,South - community based support,Other Small Contracts,AliMo Care Ltd,505.44, 11-Jul-2019
118,Revenue,CAHD,North - Community based support,Other Small Contracts,AliMo Care Ltd,126.36, 11-Jul-2019
119,Revenue,CAHD,South - community based support,Other Small Contracts,AliMo Care Ltd,444.60, 25-Jul-2019
120,Revenue,CAHD,North - Community based support,Other Small Contracts,AliMo Care Ltd,121.68, 25-Jul-2019
121,Revenue,CAHD,South - community based support,Other Small Contracts,AliMo Care Ltd,524.16, 31-Jul-2019
122,Revenue,CAHD,North - Community based support,Other Small Contracts,AliMo Care Ltd,131.04, 31-Jul-2019
123,Revenue,CAHD,North - bed purchasing and direct  payments,Permanent Nursing,Allambie Court,2320.44, 02-Jul-2019
124,Revenue,CAHD,North - bed purchasing and direct  payments,Permanent Nursing,Allambie Court,2320.44, 30-Jul-2019
125,Revenue,CAHD,North - bed purchasing and direct  payments,Permanent Nursing,Allambie Court,2320.44, 02-Jul-2019
126,Revenue,CAHD,North - bed purchasing and direct  payments,Permanent Nursing,Allambie Court,2320.44, 30-Jul-2019
127,Revenue,CAHD,Central - Bed Purchasing and Direct Payments,Permanent Residential,Individual,1560.00, 01-Jul-2019
128,Revenue,CAHD,CSC - Care Leavers Support Costs,Rent Allowances,Alliance Homes,1119.86, 19-Jul-2019
129,Revenue,CAHD,Mental Health and Emotional Wellbeing,Other Small Contracts,Alzheimers Society,11142.75, 01-Jul-2019
130,Revenue,CAHD,North - bed purchasing and direct  payments,Respite Planned - Residential,Amber House,7225.32, 02-Jul-2019
131,Revenue,CAHD,North - bed purchasing and direct  payments,Respite Planned - Residential,Amber House,4386.80, 02-Jul-2019
132,Revenue,CAHD,North - bed purchasing and direct  payments,Respite Planned - Residential,Amber House,7225.32, 30-Jul-2019
133,Revenue,CAHD,CSC - Residential Placements,Permanent Residential,Amberleigh Care Ltd,3337.71, 30-Jul-2019
134,Revenue,CAHD,North - bed purchasing and direct  payments,Permanent Nursing,Amerind Grove Nursing Home,2706.32, 02-Jul-2019
135,Revenue,CAHD,North - bed purchasing and direct  payments,Permanent Nursing,Amerind Grove Nursing Home,2706.32, 30-Jul-2019
136,Revenue,CAHD,CSC - Agency Fostering,Foster Parent Allowances,Amicus Foster Care Ltd,4907.10, 04-Jul-2019
137,Revenue,CAHD,CSC - Agency Fostering,Foster Parent Allowances,Amicus Foster Care Ltd,3157.20, 01-Jul-2019
138,Revenue,CAHD,CSC - Parent & Child Assessments,Foster Parent Allowances,Amicus Foster Care Ltd,7379.40, 04-Jul-2019
139,Revenue,CAHD,CSC - Agency Fostering,Foster Parent Allowances,Amicus Foster Care Ltd,4721.61, 04-Jul-2019
140,Revenue,CAHD,CSC - Agency Fostering,Foster Parent Allowances,Amicus Foster Care Ltd,5336.10, 04-Jul-2019
141,Revenue,CAHD,CSC - Agency Fostering,Foster Parent Allowances,Amicus Foster Care Ltd,807.16, 04-Jul-2019
142,Revenue,CAHD,Supporting People Programme,Grants to Voluntary Bodies,Anchor Hanover Group,1039.00, 01-Jul-2019
143,Revenue,CAHD,Supporting People Programme,Grants to Voluntary Bodies,Anchor Hanover Group,847.00, 01-Jul-2019
144,Revenue,CAHD,CSC - Section 17 0-25,Preventative Assistance,Angel Care Support Limited,3528.00, 15-Jul-2019
145,Revenue,CAHD,A & CL - Employability 18/19,Computer Equipment - Purchase,Appliances Direct,1283.33, 23-Jul-2019
146,Revenue,CAHD,"Education, Learning and Skills",Premises Hire,Aquaterra Leisure,713.50, 16-Jul-2019
147,Revenue,CAHD,Jointly Funded H&SC Packages,Permanent Residential,Ash View House,1111.40, 02-Jul-2019
148,Revenue,CAHD,South - Bed Purchasing and Direct payments,Permanent Residential,Ash View House,5421.04, 02-Jul-2019
149,Revenue,CAHD,Jointly Funded H&SC Packages,Permanent Residential,Ash View House,1111.40, 30-Jul-2019
150,Revenue,CAHD,South - Bed Purchasing and Direct payments,Permanent Residential,Ash View House,5421.04, 30-Jul-2019
151,Revenue,CAHD,S117 Placements PCT,Permanent Residential,Ash View House,7556.32, 02-Jul-2019
152,Revenue,CAHD,S117 Placements PCT,Permanent Residential,Ash View House,7556.32, 30-Jul-2019
153,Revenue,CAHD,18-25 Year Olds,Permanent Residential,Ash View House,7099.52, 02-Jul-2019
154,Revenue,CAHD,18-25 Year Olds,Permanent Residential,Ash View House,7099.52, 30-Jul-2019
155,Revenue,CAHD,Section 117 Placements MH Younger,Permanent Residential,Ash View House,4924.12, 02-Jul-2019
156,Revenue,CAHD,Jointly Funded H&SC Packages,Permanent Residential,Ash View House,2110.40, 02-Jul-2019
157,Revenue,CAHD,Section 117 Placements MH Younger,Permanent Residential,Ash View House,4924.12, 30-Jul-2019
158,Revenue,CAHD,Jointly Funded H&SC Packages,Permanent Residential,Ash View House,2110.40, 30-Jul-2019
159,Revenue,CAHD,South - S117,Permanent Residential,Ash View House,6692.80, 02-Jul-2019
160,Revenue,CAHD,South - S117,Permanent Residential,Ash View House,6692.80, 30-Jul-2019
161,Revenue,CAHD,18-25 Year Olds,Permanent Residential,Ash View House,6615.52, 02-Jul-2019
162,Revenue,CAHD,18-25 Year Olds,Permanent Residential,Ash View House,6615.52, 30-Jul-2019
163,Revenue,CAHD,Bed and Breakfast,Bed & Breakfast,Ashley Guest Houses Limited,440.00, 01-Jul-2019
164,Revenue,CAHD,Drug and Alcohol Programme,Electricity,Ashville Asset Management Limited,448.29, 18-Jul-2019
165,Revenue,CAHD,North - bed purchasing and direct  payments,Permanent Residential,Aspects 2 Limited,7231.88, 02-Jul-2019
166,Revenue,CAHD,North - bed purchasing and direct  payments,Permanent Residential,Aspects 2 Limited,7231.88, 30-Jul-2019
167,Revenue,CAHD,Supporting People Programme,Grants to Voluntary Bodies,Aspects and Milestones Trust,3441.00, 01-Jul-2019
168,Revenue,CAHD,Supporting People Programme,Grants to Voluntary Bodies,Aspects and Milestones Trust,1725.00, 01-Jul-2019
169,Revenue,CAHD,CSC - Legal Fees,Legal Fees,Aspire Social Work Services Limited,3487.00, 16-Jul-2019
170,Revenue,CAHD,CSC - Vinney Green Secure Unit,Service Contracts (Premises),Assa Abloy Limited,2810.00, 31-Jul-2019
171,Revenue,CAHD,South - Bed Purchasing and Direct payments,Adults - Family Support,Ategi Limited,14361.02, 24-Jul-2019
172,Revenue,CAHD,Independent Special Placements - Pre 16,Other Private Contractors,Aurora Care & Education,85000.00, 26-Jul-2019
173,Revenue,CAHD,Independent Special Placements - Pre 16,Other Private Contractors,Aurora Care & Education,26333.34, 26-Jul-2019
174,Revenue,CAHD,Independent Special Placements - Post 16,Other Private Contractors,Aurora Care & Education,62497.60, 26-Jul-2019
175,Revenue,CAHD,Independent Special Placements - Post 16,Other Private Contractors,Aurora Care & Education,62497.60, 26-Jul-2019
176,Revenue,CAHD,Independent Special Placements - Pre 16,Other Private Contractors,Aurora Hedgeway School,1115.25, 03-Jul-2019
177,Revenue,CAHD,South - Bed Purchasing and Direct payments,Permanent Residential,Autism Specialised Care Homes,6506.88, 02-Jul-2019
178,Revenue,CAHD,South - Bed Purchasing and Direct payments,Permanent Residential,Autism Specialised Care Homes,6506.88, 30-Jul-2019
179,Revenue,CAHD,North - bed purchasing and direct  payments,Permanent Residential,Avery Homes Downend Limited,2400.00, 02-Jul-2019
180,Revenue,CAHD,North - bed purchasing and direct  payments,Permanent Residential,Avery Homes Downend Limited,1800.00, 02-Jul-2019
181,Revenue,CAHD,North - bed purchasing and direct  payments,Fees & Charges Income - General,Avery Homes Downend Limited,1800.00, 02-Jul-2019
182,Revenue,CAHD,North - bed purchasing and direct  payments,Fees & Charges Income - General,Avery Homes Downend Limited,10500.00, 02-Jul-2019
183,Revenue,CAHD,North - bed purchasing and direct  payments,Fees & Charges Income - General,Avery Homes Downend Limited,1403.16, 02-Jul-2019
184,Revenue,CAHD,North - bed purchasing and direct  payments,Permanent Residential,Avery Homes Downend Limited,4200.00, 30-Jul-2019
185,Revenue,CAHD,North - bed purchasing and direct  payments,Permanent Residential,Avery Homes Downend Limited,4300.80, 02-Jul-2019
186,Revenue,CAHD,North - bed purchasing and direct  payments,Permanent Residential,Avery Homes Downend Limited,4300.80, 30-Jul-2019
187,Revenue,CAHD,North - bed purchasing and direct  payments,Permanent Residential,Avery Homes Downend Limited,7261.43, 30-Jul-2019
188,Revenue,CAHD,North - bed purchasing and direct  payments,Permanent Residential,Avery Homes Downend Limited,4420.00, 30-Jul-2019
189,Revenue,CAHD,North - bed purchasing and direct  payments,Permanent Residential,Avery Homes Downend Limited,5420.00, 02-Jul-2019
190,Revenue,CAHD,North - bed purchasing and direct  payments,Permanent Residential,Avery Homes Downend Limited,5420.00, 30-Jul-2019
191,Revenue,CAHD,North - bed purchasing and direct  payments,Permanent Residential,Avery Homes Downend Limited,4420.00, 02-Jul-2019
192,Revenue,CAHD,North - bed purchasing and direct  payments,Permanent Residential,Avery Homes Downend Limited,4420.00, 30-Jul-2019
193,Revenue,CAHD,Younger Adult Mental Health,Health Services (Third Party Payments),Avon & Wiltshire Mental Health,1693.33, 10-Jul-2019
194,Revenue,CAHD,Alexandra Way,Premises Maintenance by Contractor,Avon Armour Limited,1486.00, 26-Jul-2019
195,Revenue,CAHD,Early Years High Needs Support,Other Private Contractors,Baker Street Nursery & Pre-School,910.13, 26-Jul-2019
196,Revenue,CAHD,CSC - Quality Review Unit,Agency Staff (Admin/Support Staff) Pay,Baltimore Consulting Group,2400.00, 09-Jul-2019
197,Revenue,CAHD,CSC - Quality Review Unit,Agency Staff (Admin/Support Staff) Pay,Baltimore Consulting Group,1440.00, 16-Jul-2019
198,Revenue,CAHD,CSC - Quality Review Unit,Agency Staff (Admin/Support Staff) Pay,Baltimore Consulting Group,2400.00, 30-Jul-2019
199,Revenue,CAHD,Children & Young People�s Health,Other Small Contracts,Barnardos,7650.00, 01-Jul-2019
200,Revenue,CAHD,Pensions - Non DSG,Annual Pension,Bath & North East Somerset Council,109620.97, 08-Jul-2019
201,Revenue,CAHD,Training - Adult Services,Training Expenses,Bawa Healthcare & Leisure,2735.00, 23-Jul-2019
202,Revenue,CAHD,Central - Bed Purchasing and Direct Payments,Permanent Nursing,Beaufort Care Ltd,5571.00, 01-Jul-2019
203,Revenue,CAHD,South Glos Users in South Glos Homes,Permanent Nursing,Beaufort Grange Care Home,662.24, 02-Jul-2019
204,Revenue,CAHD,South Glos Users in South Glos Homes,Permanent Nursing,Beaufort Grange Care Home,662.24, 30-Jul-2019
205,Revenue,CAHD,South Glos Users in South Glos Homes,Permanent Nursing,Beaufort Grange Care Home,662.24, 02-Jul-2019
206,Revenue,CAHD,South Glos Users in South Glos Homes,Permanent Nursing,Beaufort Grange Care Home,662.24, 30-Jul-2019
207,Revenue,CAHD,South Glos Users in South Glos Homes,Permanent Nursing,Beaufort Grange Care Home,662.24, 02-Jul-2019
208,Revenue,CAHD,South Glos Users in South Glos Homes,Permanent Nursing,Beaufort Grange Care Home,662.24, 30-Jul-2019
209,Revenue,CAHD,North - bed purchasing and direct  payments,Respite Planned - Nursing,Beaufort Grange Care Home,4350.00, 02-Jul-2019
210,Revenue,CAHD,South Glos Users in South Glos Homes,Permanent Nursing,Beaufort Grange Care Home,662.24, 02-Jul-2019
211,Revenue,CAHD,South Glos Users in South Glos Homes,Permanent Nursing,Beaufort Grange Care Home,662.24, 30-Jul-2019
212,Revenue,CAHD,South Glos Users in South Glos Homes,Permanent Nursing,Beaufort Grange Care Home,662.24, 02-Jul-2019
213,Revenue,CAHD,South Glos Users in South Glos Homes,Permanent Nursing,Beaufort Grange Care Home,662.24, 30-Jul-2019
214,Revenue,CAHD,South Glos Users in South Glos Homes,Permanent Nursing,Beaufort Grange Care Home,662.24, 02-Jul-2019
215,Revenue,CAHD,South Glos Users in South Glos Homes,Permanent Nursing,Beaufort Grange Care Home,662.24, 30-Jul-2019
216,Revenue,CAHD,South Glos Users in South Glos Homes,Permanent Nursing,Beaufort Grange Care Home,662.24, 02-Jul-2019
217,Revenue,CAHD,South Glos Users in South Glos Homes,Permanent Nursing,Beaufort Grange Care Home,662.24, 30-Jul-2019
218,Revenue,CAHD,South Glos Users in South Glos Homes,Permanent Nursing,Beaufort Grange Care Home,662.24, 02-Jul-2019
219,Revenue,CAHD,South Glos Users in South Glos Homes,Permanent Nursing,Beaufort Grange Care Home,662.24, 30-Jul-2019
220,Revenue,CAHD,North - S117,Permanent Nursing,Beaufort Grange Care Home,4877.04, 02-Jul-2019
221,Revenue,CAHD,South Glos Users in South Glos Homes,Permanent Nursing,Beaufort Grange Care Home,662.24, 02-Jul-2019
222,Revenue,CAHD,North - S117,Permanent Nursing,Beaufort Grange Care Home,4877.04, 30-Jul-2019
223,Revenue,CAHD,South Glos Users in South Glos Homes,Permanent Nursing,Beaufort Grange Care Home,662.24, 30-Jul-2019
224,Revenue,CAHD,South Glos Users in South Glos Homes,Permanent Nursing,Beaufort Grange Care Home,662.24, 02-Jul-2019
225,Revenue,CAHD,South Glos Users in South Glos Homes,Permanent Nursing,Beaufort Grange Care Home,662.24, 30-Jul-2019
226,Revenue,CAHD,South Glos Users in South Glos Homes,Permanent Nursing,Beaufort Grange Care Home,662.24, 02-Jul-2019
227,Revenue,CAHD,South Glos Users in South Glos Homes,Permanent Nursing,Beaufort Grange Care Home,662.24, 30-Jul-2019
228,Revenue,CAHD,South Glos Users in South Glos Homes,Permanent Nursing,Beaufort Grange Care Home,662.24, 02-Jul-2019
229,Revenue,CAHD,South Glos Users in South Glos Homes,Permanent Nursing,Beaufort Grange Care Home,662.24, 30-Jul-2019
230,Revenue,CAHD,South Glos Users in South Glos Homes,Permanent Nursing,Beaufort Grange Care Home,662.24, 02-Jul-2019
231,Revenue,CAHD,South Glos Users in South Glos Homes,Permanent Nursing,Beaufort Grange Care Home,662.24, 30-Jul-2019
232,Revenue,CAHD,South Glos Users in South Glos Homes,Permanent Nursing,Beaufort Grange Care Home,1490.04, 02-Jul-2019
233,Revenue,CAHD,South Glos Users in South Glos Homes,Permanent Nursing,Beaufort Grange Care Home,662.24, 02-Jul-2019
234,Revenue,CAHD,South Glos Users in South Glos Homes,Permanent Nursing,Beaufort Grange Care Home,662.24, 30-Jul-2019
235,Revenue,CAHD,South Glos Users in South Glos Homes,Permanent Nursing,Beaufort Grange Care Home,662.24, 02-Jul-2019
236,Revenue,CAHD,South Glos Users in South Glos Homes,Permanent Nursing,Beaufort Grange Care Home,662.24, 30-Jul-2019
237,Revenue,CAHD,South Glos Users in South Glos Homes,Permanent Nursing,Beaufort Grange Care Home,662.24, 02-Jul-2019
238,Revenue,CAHD,South Glos Users in South Glos Homes,Permanent Nursing,Beaufort Grange Care Home,662.24, 30-Jul-2019
239,Revenue,CAHD,South Glos Users in South Glos Homes,Permanent Nursing,Beaufort Grange Care Home,662.24, 02-Jul-2019
240,Revenue,CAHD,South Glos Users in South Glos Homes,Permanent Nursing,Beaufort Grange Care Home,662.24, 30-Jul-2019
241,Revenue,CAHD,South Glos Users in South Glos Homes,Permanent Nursing,Beaufort Grange Care Home,662.24, 02-Jul-2019
242,Revenue,CAHD,South Glos Users in South Glos Homes,Permanent Nursing,Beaufort Grange Care Home,662.24, 30-Jul-2019
243,Revenue,CAHD,South Glos Users in South Glos Homes,Permanent Nursing,Beaufort Grange Care Home,662.24, 02-Jul-2019
244,Revenue,CAHD,South Glos Users in South Glos Homes,Permanent Nursing,Beaufort Grange Care Home,662.24, 30-Jul-2019
245,Revenue,CAHD,North - bed purchasing and direct  payments,Respite Emergency - Residential,Beaufort Grange Care Home,3396.77, 02-Jul-2019
246,Revenue,CAHD,North - bed purchasing and direct  payments,Respite Emergency - Residential,Beaufort Grange Care Home,4111.87, 30-Jul-2019
247,Revenue,CAHD,South Glos Users in South Glos Homes,Permanent Nursing,Beaufort Grange Care Home,662.24, 02-Jul-2019
248,Revenue,CAHD,South Glos Users in South Glos Homes,Permanent Nursing,Beaufort Grange Care Home,662.24, 30-Jul-2019
249,Revenue,CAHD,South Glos Users in South Glos Homes,Permanent Nursing,Beaufort Grange Care Home,662.24, 02-Jul-2019
250,Revenue,CAHD,South Glos Users in South Glos Homes,Permanent Nursing,Beaufort Grange Care Home,662.24, 30-Jul-2019
251,Revenue,CAHD,South Glos Users in South Glos Homes,Permanent Nursing,Beaufort Grange Care Home,662.24, 02-Jul-2019
252,Revenue,CAHD,South Glos Users in South Glos Homes,Permanent Nursing,Beaufort Grange Care Home,662.24, 30-Jul-2019
253,Revenue,CAHD,South - Bed Purchasing and Direct payments,Permanent Residential,Beaufort Grange Care Home,5156.20, 02-Jul-2019
254,Revenue,CAHD,South - Bed Purchasing and Direct payments,Permanent Residential,Beaufort Grange Care Home,5156.20, 30-Jul-2019
255,Revenue,CAHD,South Glos Users in South Glos Homes,Permanent Nursing,Beaufort Grange Care Home,662.24, 02-Jul-2019
256,Revenue,CAHD,South Glos Users in South Glos Homes,Permanent Nursing,Beaufort Grange Care Home,662.24, 30-Jul-2019
257,Revenue,CAHD,South Glos Users in South Glos Homes,Permanent Nursing,Beaufort Grange Care Home,662.24, 02-Jul-2019
258,Revenue,CAHD,South Glos Users in South Glos Homes,Permanent Nursing,Beaufort Grange Care Home,662.24, 30-Jul-2019
259,Revenue,CAHD,South Glos Users in South Glos Homes,Permanent Nursing,Beaufort Grange Care Home,662.24, 02-Jul-2019
260,Revenue,CAHD,South Glos Users in South Glos Homes,Permanent Nursing,Beaufort Grange Care Home,662.24, 30-Jul-2019
261,Revenue,CAHD,South Glos Users in South Glos Homes,Permanent Nursing,Beaufort Grange Care Home,662.24, 02-Jul-2019
262,Revenue,CAHD,South Glos Users in South Glos Homes,Permanent Nursing,Beaufort Grange Care Home,662.24, 30-Jul-2019
263,Revenue,CAHD,South Glos Users in South Glos Homes,Permanent Nursing,Beaufort Grange Care Home,662.24, 02-Jul-2019
264,Revenue,CAHD,South Glos Users in South Glos Homes,Permanent Nursing,Beaufort Grange Care Home,662.24, 30-Jul-2019
265,Revenue,CAHD,South Glos Users in South Glos Homes,Permanent Nursing,Beaufort Grange Care Home,662.24, 02-Jul-2019
266,Revenue,CAHD,South Glos Users in South Glos Homes,Permanent Nursing,Beaufort Grange Care Home,662.24, 30-Jul-2019
267,Revenue,CAHD,South Glos Users in South Glos Homes,Permanent Nursing,Beaufort Grange Care Home,662.24, 02-Jul-2019
268,Revenue,CAHD,South Glos Users in South Glos Homes,Permanent Nursing,Beaufort Grange Care Home,662.24, 30-Jul-2019
269,Revenue,CAHD,South Glos Users in South Glos Homes,Permanent Nursing,Beaufort Grange Care Home,662.24, 02-Jul-2019
270,Revenue,CAHD,South Glos Users in South Glos Homes,Permanent Nursing,Beaufort Grange Care Home,662.24, 30-Jul-2019
271,Revenue,CAHD,South Glos Users in South Glos Homes,Permanent Nursing,Beaufort Grange Care Home,662.24, 02-Jul-2019
272,Revenue,CAHD,South Glos Users in South Glos Homes,Permanent Nursing,Beaufort Grange Care Home,662.24, 30-Jul-2019
273,Revenue,CAHD,South Glos Users in South Glos Homes,Permanent Nursing,Beaufort Grange Care Home,662.24, 02-Jul-2019
274,Revenue,CAHD,South Glos Users in South Glos Homes,Permanent Nursing,Beaufort Grange Care Home,662.24, 30-Jul-2019
275,Revenue,CAHD,South Glos Users in South Glos Homes,Permanent Nursing,Beaufort Grange Care Home,1821.16, 02-Jul-2019
276,Revenue,CAHD,South Glos Users in South Glos Homes,Permanent Nursing,Beaufort Grange Care Home,662.24, 02-Jul-2019
277,Revenue,CAHD,South Glos Users in South Glos Homes,Permanent Nursing,Beaufort Grange Care Home,632.64, 02-Jul-2019
278,Revenue,CAHD,South Glos Users in South Glos Homes,Permanent Nursing,Beaufort Grange Care Home,662.24, 30-Jul-2019
279,Revenue,CAHD,South Glos Users in South Glos Homes,Permanent Nursing,Beaufort Grange Care Home,662.24, 02-Jul-2019
280,Revenue,CAHD,South Glos Users in South Glos Homes,Permanent Nursing,Beaufort Grange Care Home,662.24, 30-Jul-2019
281,Revenue,CAHD,North - bed purchasing and direct  payments,Permanent Residential,Beaufort House,2549.56, 02-Jul-2019
282,Revenue,CAHD,North - bed purchasing and direct  payments,Permanent Residential,Beaufort House,2549.56, 30-Jul-2019
283,Revenue,CAHD,Central - Bed Purchasing and Direct Payments,Permanent Residential,Beaufort House,2867.20, 02-Jul-2019
284,Revenue,CAHD,Central - Bed Purchasing and Direct Payments,Permanent Residential,Beaufort House,2867.20, 30-Jul-2019
285,Revenue,CAHD,Central - Bed Purchasing and Direct Payments,Permanent Residential,Beaufort House,2775.60, 02-Jul-2019
286,Revenue,CAHD,Central - Bed Purchasing and Direct Payments,Permanent Residential,Beaufort House,2775.60, 30-Jul-2019
287,Revenue,CAHD,North - bed purchasing and direct  payments,Permanent Residential,Beaufort House,2571.40, 02-Jul-2019
288,Revenue,CAHD,North - bed purchasing and direct  payments,Permanent Residential,Beaufort House,2571.40, 30-Jul-2019
289,Revenue,CAHD,South - Bed Purchasing and Direct payments,Permanent Residential,Beaufort House,2536.84, 02-Jul-2019
290,Revenue,CAHD,South - Bed Purchasing and Direct payments,Permanent Residential,Beaufort House,2536.84, 30-Jul-2019
291,Revenue,CAHD,Central - Bed Purchasing and Direct Payments,Respite Emergency - Residential,Beaufort House,2550.00, 30-Jul-2019
292,Revenue,CAHD,North - bed purchasing and direct  payments,Permanent Residential,Beaufort House,3072.00, 02-Jul-2019
293,Revenue,CAHD,North - bed purchasing and direct  payments,Permanent Residential,Beaufort House,3072.00, 30-Jul-2019
294,Revenue,CAHD,Central - Bed Purchasing and Direct Payments,Permanent Residential,Beaufort House,2775.60, 02-Jul-2019
295,Revenue,CAHD,Central - Bed Purchasing and Direct Payments,Permanent Residential,Beaufort House,2775.60, 30-Jul-2019
296,Revenue,CAHD,North - bed purchasing and direct  payments,Permanent Residential,Beaufort House,2699.92, 02-Jul-2019
297,Revenue,CAHD,North - bed purchasing and direct  payments,Permanent Residential,Beaufort House,2699.92, 30-Jul-2019
298,Revenue,CAHD,South - Bed Purchasing and Direct payments,Permanent Residential,Beaufort House,2713.00, 02-Jul-2019
299,Revenue,CAHD,South - Bed Purchasing and Direct payments,Permanent Residential,Beaufort House,2713.00, 30-Jul-2019
300,Revenue,CAHD,Central - Bed Purchasing and Direct Payments,Respite Planned - Residential,Beaufort House,2550.00, 30-Jul-2019
301,Revenue,CAHD,South - Bed Purchasing and Direct payments,Permanent Residential,Beech House,2959.64, 02-Jul-2019
302,Revenue,CAHD,South Glos Users in South Glos Homes,Permanent Nursing,Beech House,662.24, 02-Jul-2019
303,Revenue,CAHD,South - Bed Purchasing and Direct payments,Permanent Residential,Beech House,2959.64, 30-Jul-2019
304,Revenue,CAHD,South Glos Users in South Glos Homes,Permanent Nursing,Beech House,662.24, 30-Jul-2019
305,Revenue,CAHD,South Glos Users in South Glos Homes,Permanent Nursing,Beech House,1821.16, 02-Jul-2019
306,Revenue,CAHD,South Glos Users in South Glos Homes,Permanent Nursing,Beech House,1559.01, 02-Jul-2019
307,Revenue,CAHD,South Glos Users in South Glos Homes,Permanent Nursing,Beech House,662.24, 02-Jul-2019
308,Revenue,CAHD,South Glos Users in South Glos Homes,Permanent Nursing,Beech House,662.24, 30-Jul-2019
309,Revenue,CAHD,South Glos Users in South Glos Homes,Permanent Nursing,Beech House,662.24, 02-Jul-2019
310,Revenue,CAHD,South Glos Users in South Glos Homes,Permanent Nursing,Beech House,662.24, 30-Jul-2019
311,Revenue,CAHD,South Glos Users in South Glos Homes,Permanent Nursing,Beech House,662.24, 02-Jul-2019
312,Revenue,CAHD,South Glos Users in South Glos Homes,Permanent Nursing,Beech House,662.24, 30-Jul-2019
313,Revenue,CAHD,South Glos Users in South Glos Homes,Permanent Nursing,Beech House,662.24, 02-Jul-2019
314,Revenue,CAHD,South Glos Users in South Glos Homes,Permanent Nursing,Beech House,662.24, 30-Jul-2019
315,Revenue,CAHD,South Glos Users in South Glos Homes,Permanent Nursing,Beech House,662.24, 02-Jul-2019
316,Revenue,CAHD,South Glos Users in South Glos Homes,Permanent Nursing,Beech House,662.24, 30-Jul-2019
317,Revenue,CAHD,South Glos Users in South Glos Homes,Permanent Nursing,Beech House,662.24, 02-Jul-2019
318,Revenue,CAHD,South Glos Users in South Glos Homes,Permanent Nursing,Beech House,662.24, 30-Jul-2019
319,Revenue,CAHD,North - bed purchasing and direct  payments,Permanent Nursing,Beech House,3547.76, 02-Jul-2019
320,Revenue,CAHD,South Glos Users in South Glos Homes,Permanent Nursing,Beech House,662.24, 02-Jul-2019
321,Revenue,CAHD,North - bed purchasing and direct  payments,Permanent Nursing,Beech House,3547.76, 30-Jul-2019
322,Revenue,CAHD,South Glos Users in South Glos Homes,Permanent Nursing,Beech House,662.24, 30-Jul-2019
323,Revenue,CAHD,North - bed purchasing and direct  payments,Permanent Residential,Beech House,2959.64, 02-Jul-2019
324,Revenue,CAHD,South Glos Users in South Glos Homes,Permanent Nursing,Beech House,662.24, 02-Jul-2019
325,Revenue,CAHD,North - bed purchasing and direct  payments,Permanent Residential,Beech House,2959.64, 30-Jul-2019
326,Revenue,CAHD,South Glos Users in South Glos Homes,Permanent Nursing,Beech House,662.24, 30-Jul-2019
327,Revenue,CAHD,North - bed purchasing and direct  payments,Permanent Nursing,Beech House,4283.20, 02-Jul-2019
328,Revenue,CAHD,North - bed purchasing and direct  payments,Permanent Nursing,Beech House,4283.20, 30-Jul-2019
329,Revenue,CAHD,South Glos Users in South Glos Homes,Permanent Nursing,Beech House,662.24, 02-Jul-2019
330,Revenue,CAHD,South Glos Users in South Glos Homes,Permanent Nursing,Beech House,662.24, 30-Jul-2019
331,Revenue,CAHD,South Glos Users in South Glos Homes,Permanent Nursing,Beech House,662.24, 02-Jul-2019
332,Revenue,CAHD,South Glos Users in South Glos Homes,Permanent Nursing,Beech House,662.24, 30-Jul-2019
333,Revenue,CAHD,South Glos Users in South Glos Homes,Permanent Nursing,Beech House,662.24, 02-Jul-2019
334,Revenue,CAHD,South Glos Users in South Glos Homes,Permanent Nursing,Beech House,662.24, 30-Jul-2019
335,Revenue,CAHD,South Glos Users in South Glos Homes,Permanent Nursing,Beech House,662.24, 02-Jul-2019
336,Revenue,CAHD,South Glos Users in South Glos Homes,Permanent Nursing,Beech House,662.24, 30-Jul-2019
337,Revenue,CAHD,North - bed purchasing and direct  payments,Permanent Nursing,Beech House,3993.60, 02-Jul-2019
338,Revenue,CAHD,South Glos Users in South Glos Homes,Permanent Nursing,Beech House,662.24, 02-Jul-2019
339,Revenue,CAHD,North - bed purchasing and direct  payments,Permanent Nursing,Beech House,3993.60, 30-Jul-2019
340,Revenue,CAHD,South Glos Users in South Glos Homes,Permanent Nursing,Beech House,662.24, 30-Jul-2019
341,Revenue,CAHD,South Glos Users in South Glos Homes,Permanent Nursing,Beech House,1821.16, 02-Jul-2019
342,Revenue,CAHD,South Glos Users in South Glos Homes,Permanent Nursing,Beech House,994.15, 02-Jul-2019
343,Revenue,CAHD,South Glos Users in South Glos Homes,Permanent Nursing,Beech House,662.24, 02-Jul-2019
344,Revenue,CAHD,South Glos Users in South Glos Homes,Permanent Nursing,Beech House,662.24, 30-Jul-2019
345,Revenue,CAHD,South Glos Users in South Glos Homes,Permanent Nursing,Beech House,662.24, 02-Jul-2019
346,Revenue,CAHD,South Glos Users in South Glos Homes,Permanent Nursing,Beech House,662.24, 30-Jul-2019
347,Revenue,CAHD,North - bed purchasing and direct  payments,Permanent Residential,Beech House,4069.48, 02-Jul-2019
348,Revenue,CAHD,South Glos Users in South Glos Homes,Permanent Nursing,Beech House,662.24, 02-Jul-2019
349,Revenue,CAHD,North - bed purchasing and direct  payments,Permanent Residential,Beech House,4069.48, 30-Jul-2019
350,Revenue,CAHD,South Glos Users in South Glos Homes,Permanent Nursing,Beech House,662.24, 30-Jul-2019
351,Revenue,CAHD,North - bed purchasing and direct  payments,Permanent Residential,Beech House,4075.52, 02-Jul-2019
352,Revenue,CAHD,North - bed purchasing and direct  payments,Permanent Residential,Beech House,4075.52, 30-Jul-2019
353,Revenue,CAHD,South Glos Users in South Glos Homes,Permanent Nursing,Beech House,662.24, 02-Jul-2019
354,Revenue,CAHD,South Glos Users in South Glos Homes,Permanent Nursing,Beech House,662.24, 30-Jul-2019
355,Revenue,CAHD,South Glos Users in South Glos Homes,Permanent Nursing,Beech House,662.24, 02-Jul-2019
356,Revenue,CAHD,North - bed purchasing and direct  payments,Permanent Nursing,Beech House,14782.46, 30-Jul-2019
357,Revenue,CAHD,North - bed purchasing and direct  payments,Permanent Nursing,Beech House,9722.27, 30-Jul-2019
358,Revenue,CAHD,North - bed purchasing and direct  payments,Permanent Nursing,Beech House,4223.56, 30-Jul-2019
359,Revenue,CAHD,North - bed purchasing and direct  payments,Fees & Charges Income - General,Beech House,2797.34, 30-Jul-2019
360,Revenue,CAHD,South Glos Users in South Glos Homes,Permanent Nursing,Beech House,662.24, 30-Jul-2019
361,Revenue,CAHD,South Glos Users in South Glos Homes,Permanent Nursing,Beech House,662.24, 02-Jul-2019
362,Revenue,CAHD,South Glos Users in South Glos Homes,Permanent Nursing,Beech House,662.24, 30-Jul-2019
363,Revenue,CAHD,North - bed purchasing and direct  payments,Permanent Nursing,Beech House,3443.44, 02-Jul-2019
364,Revenue,CAHD,South Glos Users in South Glos Homes,Permanent Nursing,Beech House,662.24, 02-Jul-2019
365,Revenue,CAHD,South Glos Users in South Glos Homes,Permanent Nursing,Beech House,662.24, 02-Jul-2019
366,Revenue,CAHD,South Glos Users in South Glos Homes,Permanent Nursing,Beech House,662.24, 30-Jul-2019
367,Revenue,CAHD,South Glos Users in South Glos Homes,Permanent Nursing,Beech House,662.24, 02-Jul-2019
368,Revenue,CAHD,South Glos Users in South Glos Homes,Permanent Nursing,Beech House,662.24, 30-Jul-2019
369,Revenue,CAHD,South Glos Users in South Glos Homes,Permanent Nursing,Beech House,662.24, 02-Jul-2019
370,Revenue,CAHD,South Glos Users in South Glos Homes,Permanent Nursing,Beech House,662.24, 30-Jul-2019
371,Revenue,CAHD,North - bed purchasing and direct  payments,Permanent Residential,Beech House,4280.32, 02-Jul-2019
372,Revenue,CAHD,North - bed purchasing and direct  payments,Permanent Residential,Beech House,4280.32, 30-Jul-2019
373,Revenue,CAHD,Statemented Support Payments to OLAs,Other L.A.'s - General,Beechen Cliff School,719.29, 24-Jul-2019
374,Revenue,CAHD,South Glos Users in South Glos Homes,Permanent Nursing,Beechwood Care Home,1028.00, 02-Jul-2019
375,Revenue,CAHD,South Glos Users in South Glos Homes,Permanent Nursing,Beechwood Care Home,1028.00, 30-Jul-2019
376,Revenue,CAHD,Independent Special Placements - Pre 16,Other Private Contractors,Belgrave School,4700.00, 10-Jul-2019
377,Revenue,CAHD,South - S117,Permanent Residential,Bidna House,3692.64, 02-Jul-2019
378,Revenue,CAHD,South - S117,Permanent Residential,Bidna House,3692.64, 30-Jul-2019
379,Revenue,CAHD,Central - Community based support,Other Small Contracts,Blakehill Healthcare Ltd,1050.00, 31-Jul-2019
380,Revenue,CAHD,Central - Community based support,Other Small Contracts,Blakehill Healthcare Ltd,1625.00, 26-Jul-2019
381,Revenue,CAHD,Central - Community based support,Other Small Contracts,Blakehill Healthcare Ltd,2000.00, 16-Jul-2019
382,Revenue,CAHD,Central - Community based support,Other Small Contracts,Blakehill Healthcare Ltd,3500.00, 01-Jul-2019
383,Revenue,CAHD,Central - Community based support,Other Small Contracts,Blakehill Healthcare Ltd,3500.00, 26-Jul-2019
384,Revenue,CAHD,Central - Community based support,Other Small Contracts,Blakehill Healthcare Ltd,1400.00, 01-Jul-2019
385,Revenue,CAHD,Central - Community based support,Other Small Contracts,Blakehill Healthcare Ltd,5237.50, 01-Jul-2019
386,Revenue,CAHD,Central - Community based support,Other Small Contracts,Blakehill Healthcare Ltd,1337.50, 12-Jul-2019
387,Revenue,CAHD,Central - Community based support,Other Small Contracts,Blakehill Healthcare Ltd,1562.50, 26-Jul-2019
388,Revenue,CAHD,Central - Community based support,Other Small Contracts,Blakehill Healthcare Ltd,3450.00, 12-Jul-2019
389,Revenue,CAHD,South Glos Users in South Glos Homes,Permanent Nursing,Blossom Field,662.24, 02-Jul-2019
390,Revenue,CAHD,South Glos Users in South Glos Homes,Permanent Nursing,Blossom Field,662.24, 30-Jul-2019
391,Revenue,CAHD,South Glos Users in South Glos Homes,Permanent Nursing,Blossom Field,662.24, 02-Jul-2019
392,Revenue,CAHD,South Glos Users in South Glos Homes,Permanent Nursing,Blossom Field,662.24, 30-Jul-2019
393,Revenue,CAHD,North - S117,Permanent Nursing,Blossom Field,3693.56, 02-Jul-2019
394,Revenue,CAHD,South Glos Users in South Glos Homes,Permanent Nursing,Blossom Field,662.24, 02-Jul-2019
395,Revenue,CAHD,North - S117,Permanent Nursing,Blossom Field,3693.56, 30-Jul-2019
396,Revenue,CAHD,South Glos Users in South Glos Homes,Permanent Nursing,Blossom Field,662.24, 30-Jul-2019
397,Revenue,CAHD,South Glos Users in South Glos Homes,Permanent Nursing,Blossom Field,662.24, 02-Jul-2019
398,Revenue,CAHD,North - bed purchasing and direct  payments,Permanent Nursing,Blossom Field,4730.40, 02-Jul-2019
399,Revenue,CAHD,North - bed purchasing and direct  payments,Permanent Nursing,Blossom Field,4730.40, 30-Jul-2019
400,Revenue,CAHD,South Glos Users in South Glos Homes,Permanent Nursing,Blossom Field,662.24, 30-Jul-2019
401,Revenue,CAHD,North - bed purchasing and direct  payments,Permanent Nursing,Blossom Field,4770.40, 02-Jul-2019
402,Revenue,CAHD,South Glos Users in South Glos Homes,Permanent Nursing,Blossom Field,662.24, 02-Jul-2019
403,Revenue,CAHD,North - bed purchasing and direct  payments,Permanent Nursing,Blossom Field,4770.40, 30-Jul-2019
404,Revenue,CAHD,South Glos Users in South Glos Homes,Permanent Nursing,Blossom Field,662.24, 30-Jul-2019
405,Revenue,CAHD,South Glos Users in South Glos Homes,Permanent Nursing,Blossom Field,733.19, 02-Jul-2019
406,Revenue,CAHD,South Glos Users in South Glos Homes,Permanent Nursing,Blossom Field,662.24, 02-Jul-2019
407,Revenue,CAHD,South Glos Users in South Glos Homes,Permanent Nursing,Blossom Field,662.24, 30-Jul-2019
408,Revenue,CAHD,North - bed purchasing and direct  payments,Permanent Nursing,Blossom Field,4267.36, 02-Jul-2019
409,Revenue,CAHD,South Glos Users in South Glos Homes,Permanent Nursing,Blossom Field,662.24, 02-Jul-2019
410,Revenue,CAHD,North - bed purchasing and direct  payments,Fees & Charges Income - General,Blossom Field,772.76, 30-Jul-2019
411,Revenue,CAHD,North - bed purchasing and direct  payments,Permanent Nursing,Blossom Field,3891.20, 02-Jul-2019
412,Revenue,CAHD,South Glos Users in South Glos Homes,Permanent Nursing,Blossom Field,662.24, 02-Jul-2019
413,Revenue,CAHD,North - bed purchasing and direct  payments,Permanent Nursing,Blossom Field,3891.20, 30-Jul-2019
414,Revenue,CAHD,South Glos Users in South Glos Homes,Permanent Nursing,Blossom Field,662.24, 30-Jul-2019
415,Revenue,CAHD,Bed Purchasing - Southmead Hospital,Permanent Nursing,Blossom Field,5000.00, 02-Jul-2019
416,Revenue,CAHD,Bed Purchasing - Southmead Hospital,Permanent Nursing,Blossom Field,5000.00, 30-Jul-2019
417,Revenue,CAHD,South Glos Users in South Glos Homes,Permanent Nursing,Blossom Field,662.24, 02-Jul-2019
418,Revenue,CAHD,South Glos Users in South Glos Homes,Permanent Nursing,Blossom Field,662.24, 30-Jul-2019
419,Revenue,CAHD,South - Bed Purchasing and Direct payments,Permanent Nursing,Blossom Field,4413.08, 02-Jul-2019
420,Revenue,CAHD,South Glos Users in South Glos Homes,Permanent Nursing,Blossom Field,662.24, 02-Jul-2019
421,Revenue,CAHD,South - Bed Purchasing and Direct payments,Permanent Nursing,Blossom Field,4413.08, 30-Jul-2019
422,Revenue,CAHD,South Glos Users in South Glos Homes,Permanent Nursing,Blossom Field,662.24, 30-Jul-2019
423,Revenue,CAHD,North - bed purchasing and direct  payments,Permanent Nursing,Blossom Field,3533.92, 02-Jul-2019
424,Revenue,CAHD,South Glos Users in South Glos Homes,Permanent Nursing,Blossom Field,662.24, 02-Jul-2019
425,Revenue,CAHD,North - bed purchasing and direct  payments,Fees & Charges Income - General,Blossom Field,7229.83, 30-Jul-2019
426,Revenue,CAHD,North - bed purchasing and direct  payments,Permanent Nursing,Blossom Field,3533.92, 30-Jul-2019
427,Revenue,CAHD,South Glos Users in South Glos Homes,Permanent Nursing,Blossom Field,662.24, 30-Jul-2019
428,Revenue,CAHD,North - bed purchasing and direct  payments,Fees & Charges Income - General,Blossom Field,4343.80, 30-Jul-2019
429,Revenue,CAHD,North - bed purchasing and direct  payments,Fees & Charges Income - General,Blossom Field,554.29, 30-Jul-2019
430,Revenue,CAHD,North - bed purchasing and direct  payments,Permanent Nursing,Blossom Field,4799.88, 02-Jul-2019
431,Revenue,CAHD,South Glos Users in South Glos Homes,Permanent Nursing,Blossom Field,662.24, 02-Jul-2019
432,Revenue,CAHD,North - bed purchasing and direct  payments,Permanent Nursing,Blossom Field,4799.88, 30-Jul-2019
433,Revenue,CAHD,South Glos Users in South Glos Homes,Permanent Nursing,Blossom Field,662.24, 30-Jul-2019
434,Revenue,CAHD,South Glos Users in South Glos Homes,Permanent Nursing,Blossom Field,662.24, 02-Jul-2019
435,Revenue,CAHD,South Glos Users in South Glos Homes,Permanent Nursing,Blossom Field,662.24, 30-Jul-2019
436,Revenue,CAHD,South Glos Users in South Glos Homes,Permanent Nursing,Blossom Field,662.24, 02-Jul-2019
437,Revenue,CAHD,South Glos Users in South Glos Homes,Permanent Nursing,Blossom Field,662.24, 30-Jul-2019
438,Revenue,CAHD,North - bed purchasing and direct  payments,Permanent Nursing,Blossom Field,6250.00, 02-Jul-2019
439,Revenue,CAHD,North - bed purchasing and direct  payments,Fees & Charges Income - General,Blossom Field,691.41, 02-Jul-2019
440,Revenue,CAHD,South Glos Users in South Glos Homes,Permanent Nursing,Blossom Field,662.24, 02-Jul-2019
441,Revenue,CAHD,South Glos Users in South Glos Homes,Permanent Nursing,Blossom Field,662.24, 30-Jul-2019
442,Revenue,CAHD,Central - Bed Purchasing and Direct Payments,Permanent Nursing,Blossom Field,4267.36, 02-Jul-2019
443,Revenue,CAHD,South Glos Users in South Glos Homes,Permanent Nursing,Blossom Field,1821.16, 02-Jul-2019
444,Revenue,CAHD,South Glos Users in South Glos Homes,Permanent Nursing,Blossom Field,662.24, 02-Jul-2019
445,Revenue,CAHD,Central - Bed Purchasing and Direct Payments,Permanent Nursing,Blossom Field,4267.36, 30-Jul-2019
446,Revenue,CAHD,South Glos Users in South Glos Homes,Permanent Nursing,Blossom Field,662.24, 30-Jul-2019
447,Revenue,CAHD,South Glos Users in South Glos Homes,Permanent Nursing,Blossom Field,662.24, 02-Jul-2019
448,Revenue,CAHD,South Glos Users in South Glos Homes,Permanent Nursing,Blossom Field,662.24, 30-Jul-2019
449,Revenue,CAHD,South Glos Users in South Glos Homes,Permanent Nursing,Blossom Field,662.24, 02-Jul-2019
450,Revenue,CAHD,South Glos Users in South Glos Homes,Permanent Nursing,Blossom Field,662.24, 30-Jul-2019
451,Revenue,CAHD,South Glos Users in South Glos Homes,Permanent Nursing,Blossom Field,662.24, 02-Jul-2019
452,Revenue,CAHD,South Glos Users in South Glos Homes,Permanent Nursing,Blossom Field,662.24, 02-Jul-2019
453,Revenue,CAHD,South Glos Users in South Glos Homes,Permanent Nursing,Blossom Field,662.24, 30-Jul-2019
454,Revenue,CAHD,North - bed purchasing and direct  payments,Permanent Nursing,Blossom Field,4267.36, 02-Jul-2019
455,Revenue,CAHD,South Glos Users in South Glos Homes,Permanent Nursing,Blossom Field,662.24, 02-Jul-2019
456,Revenue,CAHD,North - bed purchasing and direct  payments,Permanent Nursing,Blossom Field,4267.36, 30-Jul-2019
457,Revenue,CAHD,South Glos Users in South Glos Homes,Permanent Nursing,Blossom Field,662.24, 30-Jul-2019
458,Revenue,CAHD,South Glos Users in South Glos Homes,Permanent Nursing,Blossom Field,662.24, 02-Jul-2019
459,Revenue,CAHD,South Glos Users in South Glos Homes,Permanent Nursing,Blossom Field,662.24, 30-Jul-2019
460,Revenue,CAHD,South Glos Users in South Glos Homes,Permanent Nursing,Blossom Field,662.24, 02-Jul-2019
461,Revenue,CAHD,South Glos Users in South Glos Homes,Permanent Nursing,Blossom Field,662.24, 30-Jul-2019
462,Revenue,CAHD,North - bed purchasing and direct  payments,Permanent Nursing,Blossom Field,3634.96, 02-Jul-2019
463,Revenue,CAHD,South Glos Users in South Glos Homes,Permanent Nursing,Blossom Field,662.24, 02-Jul-2019
464,Revenue,CAHD,North - bed purchasing and direct  payments,Permanent Nursing,Blossom Field,3634.96, 30-Jul-2019
465,Revenue,CAHD,South Glos Users in South Glos Homes,Permanent Nursing,Blossom Field,662.24, 30-Jul-2019
466,Revenue,CAHD,North - bed purchasing and direct  payments,Permanent Nursing,Blossom Field,8035.71, 30-Jul-2019
467,Revenue,CAHD,North - bed purchasing and direct  payments,Permanent Nursing,Blossom Field,5000.00, 30-Jul-2019
468,Revenue,CAHD,South Glos Users in South Glos Homes,Permanent Nursing,Blossom Field,662.24, 02-Jul-2019
469,Revenue,CAHD,South Glos Users in South Glos Homes,Permanent Nursing,Blossom Field,662.24, 30-Jul-2019
470,Revenue,CAHD,North - bed purchasing and direct  payments,Permanent Residential,Bluebells,7399.20, 30-Jul-2019
471,Revenue,CAHD,Central - Community based support,Other Small Contracts,Bluebird Care (South Gloucestershire),1464.70, 24-Jul-2019
472,Revenue,CAHD,South - community based support,Other Small Contracts,Bluebird Care (South Gloucestershire),554.26, 24-Jul-2019
473,Revenue,CAHD,North - Community based support,Other Small Contracts,Bluebird Care (South Gloucestershire),1213.45, 24-Jul-2019
474,Revenue,CAHD,Central - Community based support,Other Small Contracts,Bluebird Care (South Gloucestershire),1653.45, 11-Jul-2019
475,Revenue,CAHD,South - community based support,Other Small Contracts,Bluebird Care (South Gloucestershire),543.48, 11-Jul-2019
476,Revenue,CAHD,North - Community based support,Other Small Contracts,Bluebird Care (South Gloucestershire),1508.35, 11-Jul-2019
477,Revenue,CAHD,Central - Community based support,Other Small Contracts,Bluebird Care (South Gloucestershire),1623.25, 24-Jul-2019
478,Revenue,CAHD,South - community based support,Other Small Contracts,Bluebird Care (South Gloucestershire),595.24, 24-Jul-2019
479,Revenue,CAHD,North - Community based support,Other Small Contracts,Bluebird Care (South Gloucestershire),1531.45, 24-Jul-2019
480,Revenue,CAHD,Central - Community based support,Other Small Contracts,Bluebird Care (South Gloucestershire),1600.60, 24-Jul-2019
481,Revenue,CAHD,South - community based support,Other Small Contracts,Bluebird Care (South Gloucestershire),601.72, 24-Jul-2019
482,Revenue,CAHD,North - Community based support,Other Small Contracts,Bluebird Care (South Gloucestershire),1169.85, 24-Jul-2019
483,Revenue,CAHD,Central - Community based support,Other Small Contracts,Bluebird Care (South Gloucestershire),1474.39, 24-Jul-2019
484,Revenue,CAHD,South - community based support,Other Small Contracts,Bluebird Care (South Gloucestershire),571.52, 24-Jul-2019
485,Revenue,CAHD,North - Community based support,Other Small Contracts,Bluebird Care (South Gloucestershire),931.15, 24-Jul-2019
486,Revenue,CAHD,Central - Community based support,Other Small Contracts,Bluebird Care (South Gloucestershire),1608.15, 25-Jul-2019
487,Revenue,CAHD,South - community based support,Other Small Contracts,Bluebird Care (South Gloucestershire),573.68, 25-Jul-2019
488,Revenue,CAHD,North - Community based support,Other Small Contracts,Bluebird Care (South Gloucestershire),953.95, 25-Jul-2019
489,Revenue,CAHD,Training - Adult Services,Training Expenses,Bob Dawson,1375.00, 02-Jul-2019
490,Revenue,CAHD,Training - Adult Services,Training Expenses,Bob Dawson,775.00, 16-Jul-2019
491,Revenue,CAHD,Schools Specific Grant Income,Other Supplies & Services,Booktrust,645.90, 10-Jul-2019
492,Revenue,CAHD,S28A cases,Permanent Residential,Bradbury House,6505.16, 02-Jul-2019
493,Revenue,CAHD,S28A cases,Permanent Residential,Bradbury House,6505.16, 30-Jul-2019
494,Revenue,CAHD,18-25 Year Olds,Permanent Residential,Bradbury House,9917.08, 02-Jul-2019
495,Revenue,CAHD,18-25 Year Olds,Permanent Residential,Bradbury House,9917.08, 30-Jul-2019
496,Revenue,CAHD,North - S117,Permanent Residential,Bradbury House,5740.24, 02-Jul-2019
497,Revenue,CAHD,Jointly Funded H&SC Packages,Permanent Residential,Bradbury House,7927.00, 02-Jul-2019
498,Revenue,CAHD,North - S117,Permanent Residential,Bradbury House,5740.24, 30-Jul-2019
499,Revenue,CAHD,Jointly Funded H&SC Packages,Permanent Residential,Bradbury House,7927.00, 30-Jul-2019
500,Revenue,CAHD,Tobacco Control,Other Small Contracts,Bradley Stoke Surgery,520.00, 10-Jul-2019
501,Revenue,CAHD,CSC - Residential Placements,Permanent Residential,Branas ISAF Ltd,20357.14, 10-Jul-2019
502,Revenue,CAHD,CSC - Residential Placements,Permanent Residential,Branas ISAF Ltd,19285.71, 10-Jul-2019
503,Revenue,CAHD,Social Lettings Agency,Fees - General,Individual,8.15, 03-Jul-2019
504,Revenue,CAHD,Social Lettings Agency,Other Supplies & Services,Individual,766.10, 03-Jul-2019
505,Revenue,CAHD,North - bed purchasing and direct  payments,Permanent Residential,Bridge House Care Home,2625.52, 02-Jul-2019
506,Revenue,CAHD,North - bed purchasing and direct  payments,Permanent Residential,Bridge House Care Home,2625.52, 30-Jul-2019
507,Revenue,CAHD,North - bed purchasing and direct  payments,Respite Planned - Residential,Bridge House Care Home,587.14, 02-Jul-2019
508,Revenue,CAHD,North - bed purchasing and direct  payments,Permanent Residential,Bridgwater Court,10773.64, 02-Jul-2019
509,Revenue,CAHD,North - bed purchasing and direct  payments,Permanent Residential,Bridgwater Court,10773.64, 30-Jul-2019
510,Revenue,CAHD,Early Years High Needs Support,Other Private Contractors,Bright Sparks Pre-School,819.11, 26-Jul-2019
511,Revenue,CAHD,Early Years High Needs Support,Other Private Contractors,Bright Sparks Pre-School,2568.93, 26-Jul-2019
512,Revenue,CAHD,Health Inequalities,Other Small Contracts,Bristol & Avon Chinese Womens Group,500.00, 01-Jul-2019
513,Revenue,CAHD,Statemented Support Academies,Other Public Bodies,Bristol & South Gloucestershire UTC,7157.54, 24-Jul-2019
514,Revenue,CAHD,Older People's Commissioned Se,Grants to Voluntary Bodies,Bristol Area Stroke Foundation,19052.75, 01-Jul-2019
515,Revenue,CAHD,Sexual Health,Other Small Contracts,Bristol City Council,22000.00, 19-Jul-2019
516,Revenue,CAHD,A & CL - Functional Skills 18/19,Examination Fees,Bristol City Council,1506.35, 30-Jul-2019
517,Revenue,CAHD,Schools Specific Grant Income,Other Public Bodies,Bristol City Council,630.00, 01-Jul-2019
518,Revenue,CAHD,Placements OLA Special Schools and RB,Other L.A.'s - General,Bristol City Council - Schools,2578.00, 26-Jul-2019
519,Revenue,CAHD,Placements OLA Special Schools and RB,Other L.A.'s - General,Bristol City Council - Schools,1350.17, 26-Jul-2019
520,Revenue,CAHD,Statemented Support Payments to OLAs,Other L.A.'s - General,Bristol City Council - Schools,1379.63, 24-Jul-2019
521,Revenue,CAHD,Schools Specific Grant Income,Other Public Bodies,Bristol City Council - Schools,630.00, 15-Jul-2019
522,Revenue,CAHD,Schools Specific Grant Income,Other Public Bodies,Bristol City Council - Schools,2300.00, 15-Jul-2019
523,Revenue,CAHD,Placements OLA Special Schools and RB,Other L.A.'s - General,Bristol City Council - Schools,914.33, 26-Jul-2019
524,Revenue,CAHD,Placements OLA Special Schools and RB,Other L.A.'s - General,Bristol City Council - Schools,2578.00, 26-Jul-2019
525,Revenue,CAHD,Placements OLA Special Schools and RB,Other L.A.'s - General,Bristol City Council - Schools,1305.58, 26-Jul-2019
526,Revenue,CAHD,Statemented Support Payments to OLAs,Other L.A.'s - General,Bristol City Council - Schools,660.33, 24-Jul-2019
527,Revenue,CAHD,Placements OLA Special Schools and RB,Other L.A.'s - General,Bristol City Council - Schools,3356.33, 26-Jul-2019
528,Revenue,CAHD,Statemented Support Payments to OLAs,Other L.A.'s - General,Bristol City Council - Schools,907.96, 24-Jul-2019
529,Revenue,CAHD,Placements OLA Special Schools and RB,Other L.A.'s - General,Bristol City Council - Schools,2578.00, 26-Jul-2019
530,Revenue,CAHD,Placements OLA Special Schools and RB,Other L.A.'s - General,Bristol City Council - Schools,1381.00, 26-Jul-2019
531,Revenue,CAHD,Placements OLA Special Schools and RB,Other L.A.'s - General,Bristol City Council - Schools,2050.17, 26-Jul-2019
532,Revenue,CAHD,Placements OLA Special Schools and RB,Other L.A.'s - General,Bristol City Council - Schools,1381.00, 26-Jul-2019
533,Revenue,CAHD,Placements OLA Special Schools and RB,Other L.A.'s - General,Bristol City Council - Schools,2050.17, 26-Jul-2019
534,Revenue,CAHD,Placements OLA Special Schools and RB,Other L.A.'s - General,Bristol City Council - Schools,2578.00, 26-Jul-2019
535,Revenue,CAHD,Placements OLA Special Schools and RB,Other L.A.'s - General,Bristol City Council - Schools,1675.30, 26-Jul-2019
536,Revenue,CAHD,Placements OLA Special Schools and RB,Other L.A.'s - General,Bristol City Council - Schools,809.00, 26-Jul-2019
537,Revenue,CAHD,Placements OLA Special Schools and RB,Other L.A.'s - General,Bristol City Council - Schools,883.50, 26-Jul-2019
538,Revenue,CAHD,Placements OLA Special Schools and RB,Other L.A.'s - General,Bristol City Council - Schools,4107.54, 26-Jul-2019
539,Revenue,CAHD,Placements OLA Special Schools and RB,Other L.A.'s - General,Bristol City Council - Schools,777.50, 26-Jul-2019
540,Revenue,CAHD,Placements OLA Special Schools and RB,Other L.A.'s - General,Bristol City Council - Schools,1031.20, 26-Jul-2019
541,Revenue,CAHD,Placements OLA Special Schools and RB,Other L.A.'s - General,Bristol City Council - Schools,2578.00, 26-Jul-2019
542,Revenue,CAHD,Placements OLA Special Schools and RB,Other L.A.'s - General,Bristol City Council - Schools,809.00, 26-Jul-2019
543,Revenue,CAHD,Placements OLA Special Schools and RB,Other L.A.'s - General,Bristol City Council - Schools,2578.00, 26-Jul-2019
544,Revenue,CAHD,Placements OLA Special Schools and RB,Other L.A.'s - General,Bristol City Council - Schools,883.50, 26-Jul-2019
545,Revenue,CAHD,Placements OLA Special Schools and RB,Other L.A.'s - General,Bristol City Council - Schools,2062.40, 26-Jul-2019
546,Revenue,CAHD,Placements OLA Special Schools and RB,Other L.A.'s - General,Bristol City Council - Schools,2578.00, 26-Jul-2019
547,Revenue,CAHD,Placements OLA Special Schools and RB,Other L.A.'s - General,Bristol City Council - Schools,1305.58, 26-Jul-2019
548,Revenue,CAHD,Placements OLA Special Schools and RB,Other L.A.'s - General,Bristol City Council - Schools,883.50, 26-Jul-2019
549,Revenue,CAHD,Training - Adult Services,Training Expenses,Bristol MIND,1875.00, 26-Jul-2019
550,Revenue,CAHD,Training - Adult Services,Training Expenses,Bristol MIND,1900.00, 26-Jul-2019
551,Revenue,CAHD,Statemented Support Payments to OLAs,Other L.A.'s - General,Broadlands Academy,1332.46, 24-Jul-2019
552,Revenue,CAHD,Parent Partnership,Fees - General,Browne Jacobson,7751.00, 30-Jul-2019
553,Revenue,CAHD,Parent Partnership,Fees - General,Browne Jacobson,643.50, 30-Jul-2019
554,Revenue,CAHD,Parent Partnership,Fees - General,Browne Jacobson,5355.87, 30-Jul-2019
555,Revenue,CAHD,South - community based support,Other Small Contracts,Brunelcare,21431.63, 01-Jul-2019
556,Revenue,CAHD,North - Community based support,Other Small Contracts,Brunelcare,302.72, 01-Jul-2019
557,Revenue,CAHD,South - community based support,Other Small Contracts,Brunelcare,21460.01, 23-Jul-2019
558,Revenue,CAHD,North - Community based support,Other Small Contracts,Brunelcare,307.45, 23-Jul-2019
559,Revenue,CAHD,South - community based support,Other Small Contracts,Brunelcare,21668.13, 11-Jul-2019
560,Revenue,CAHD,North - Community based support,Other Small Contracts,Brunelcare,288.53, 11-Jul-2019
561,Revenue,CAHD,South - community based support,Other Small Contracts,Brunelcare,21800.57, 23-Jul-2019
562,Revenue,CAHD,North - Community based support,Other Small Contracts,Brunelcare,297.99, 23-Jul-2019
563,Revenue,CAHD,Pathway 1 - Re-Ablement Home Care,Other Small Contracts,Brunelcare,12828.45, 24-Jul-2019
564,Revenue,CAHD,Information Systems - Software,Computer Equipment - Purchase,BT Global Services Solutions,488.14, 18-Jul-2019
565,Revenue,CAHD,Early Years High Needs Support,Other Private Contractors,Busy Bees Day Nursery,716.36, 26-Jul-2019
566,Revenue,CAHD,CSC - Parent & Child Assessments,Foster Parent Allowances,By the Bridge Ltd,2284.18, 26-Jul-2019
567,Revenue,CAHD,CSC - Parent & Child Assessments,Foster Parent Allowances,By the Bridge Ltd,1142.08, 26-Jul-2019
568,Revenue,CAHD,CSC - Agency Fostering,Foster Parent Allowances,By the Bridge Ltd,3710.57, 31-Jul-2019
569,Revenue,CAHD,Social Lettings Agency,Fees - General,Individual,16.16, 26-Jul-2019
570,Revenue,CAHD,Social Lettings Agency,Other Supplies & Services,Individual,710.96, 26-Jul-2019
571,Revenue,CAHD,LSE - Schools Priority Support,Software Support & Maintenance,Cabot Learning Federation,3000.00, 01-Jul-2019
572,Revenue,CAHD,Information Systems - Software,Software Support & Maintenance,Cabot Learning Federation,6500.00, 01-Jul-2019
573,Revenue,CAHD,Statemented Support Payments to OLAs,Other L.A.'s - General,Cabot Learning Federation,1544.71, 25-Jul-2019
574,Revenue,CAHD,Academy Resource Base Funding,Other Public Bodies,Cabot Learning Federation,1172.69, 23-Jul-2019
575,Revenue,CAHD,Academy Resource Base Funding,Other Public Bodies,Cabot Learning Federation,1172.69, 23-Jul-2019
576,Revenue,CAHD,Academy Resource Base Funding,Other Public Bodies,Cabot Learning Federation,1172.69, 23-Jul-2019
577,Revenue,CAHD,Academy Resource Base Funding,Other Public Bodies,Cabot Learning Federation,1698.31, 23-Jul-2019
578,Revenue,CAHD,Academy Resource Base Funding,Other Public Bodies,Cabot Learning Federation,1536.63, 23-Jul-2019
579,Revenue,CAHD,Academy Resource Base Funding,Other Public Bodies,Cabot Learning Federation,1536.63, 23-Jul-2019
580,Revenue,CAHD,Academy Resource Base Funding,Other Public Bodies,Cabot Learning Federation,1172.69, 23-Jul-2019
581,Revenue,CAHD,Academy Resource Base Funding,Other Public Bodies,Cabot Learning Federation,1172.69, 23-Jul-2019
582,Revenue,CAHD,Academy Resource Base Funding,Other Public Bodies,Cabot Learning Federation,1698.31, 23-Jul-2019
583,Revenue,CAHD,Academy Resource Base Funding,Other Public Bodies,Cabot Learning Federation,1698.31, 23-Jul-2019
584,Revenue,CAHD,Academy Resource Base Funding,Other Public Bodies,Cabot Learning Federation,1172.69, 23-Jul-2019
585,Revenue,CAHD,Academy Resource Base Funding,Other Public Bodies,Cabot Learning Federation,1536.63, 23-Jul-2019
586,Revenue,CAHD,Academy Resource Base Funding,Other Public Bodies,Cabot Learning Federation,889.61, 23-Jul-2019
587,Revenue,CAHD,Academy Resource Base Funding,Other Public Bodies,Cabot Learning Federation,1639.34, 30-Jul-2019
588,Revenue,CAHD,Academy Resource Base Funding,Other Public Bodies,Cabot Learning Federation,1693.98, 30-Jul-2019
589,Revenue,CAHD,Academy Resource Base Funding,Other Public Bodies,Cabot Learning Federation,1639.34, 30-Jul-2019
590,Revenue,CAHD,Academy Resource Base Funding,Other Public Bodies,Cabot Learning Federation,1693.98, 30-Jul-2019
591,Revenue,CAHD,Schools Specific Grant Income,Other Public Bodies,Cabot Learning Federation,630.00, 01-Jul-2019
592,Revenue,CAHD,Schools Specific Grant Income,Other Public Bodies,Cabot Learning Federation,630.00, 01-Jul-2019
593,Revenue,CAHD,Schools Specific Grant Income,Other Public Bodies,Cabot Learning Federation,630.00, 01-Jul-2019
594,Revenue,CAHD,Schools Specific Grant Income,Other Public Bodies,Cabot Learning Federation,630.00, 01-Jul-2019
595,Revenue,CAHD,Schools Specific Grant Income,Other Public Bodies,Cabot Learning Federation,630.00, 01-Jul-2019
596,Revenue,CAHD,Schools Specific Grant Income,Other Public Bodies,Cabot Learning Federation,630.00, 01-Jul-2019
597,Revenue,CAHD,Schools Specific Grant Income,Other Public Bodies,Cabot Learning Federation,630.00, 01-Jul-2019
598,Revenue,CAHD,Schools Specific Grant Income,Other Public Bodies,Cabot Learning Federation,630.00, 01-Jul-2019
599,Revenue,CAHD,Schools Specific Grant Income,Other Public Bodies,Cabot Learning Federation,630.00, 01-Jul-2019
600,Revenue,CAHD,Schools Specific Grant Income,Other Public Bodies,Cabot Learning Federation,630.00, 01-Jul-2019
601,Revenue,CAHD,Schools Specific Grant Income,Other Public Bodies,Cabot Learning Federation,630.00, 01-Jul-2019
602,Revenue,CAHD,Schools Specific Grant Income,Other Public Bodies,Cabot Learning Federation,630.00, 01-Jul-2019
603,Revenue,CAHD,Schools Specific Grant Income,Other Public Bodies,Cabot Learning Federation,630.00, 01-Jul-2019
604,Revenue,CAHD,Schools Specific Grant Income,Other Public Bodies,Cabot Learning Federation,630.00, 01-Jul-2019
605,Revenue,CAHD,Schools Specific Grant Income,Other Public Bodies,Cabot Learning Federation,630.00, 01-Jul-2019
606,Revenue,CAHD,Statemented Support Payments to OLAs,Other L.A.'s - General,Cabot Learning Federation,518.83, 25-Jul-2019
607,Revenue,CAHD,Statemented Support Academies,Other Public Bodies,Cabot Learning Federation,613.17, 25-Jul-2019
608,Revenue,CAHD,Statemented Support Academies,Other Public Bodies,Cabot Learning Federation,518.83, 25-Jul-2019
609,Revenue,CAHD,Statemented Support Academies,Other Public Bodies,Cabot Learning Federation,554.21, 25-Jul-2019
610,Revenue,CAHD,Statemented Support Academies,Other Public Bodies,Cabot Learning Federation,566.00, 25-Jul-2019
611,Revenue,CAHD,Statemented Support Payments to OLAs,Other L.A.'s - General,Cabot Learning Federation,1014.08, 25-Jul-2019
612,Revenue,CAHD,Statemented Support Academies,Other Public Bodies,Cabot Learning Federation,554.75, 25-Jul-2019
613,Revenue,CAHD,Statemented Support Academies,Schools Funding,Cabot Learning Federation,554.75, 25-Jul-2019
614,Revenue,CAHD,Statemented Support Academies,Other Public Bodies,Cabot Learning Federation,695.71, 25-Jul-2019
615,Revenue,CAHD,Statemented Support Academies,Other Public Bodies,Cabot Learning Federation,12017.91, 25-Jul-2019
616,Revenue,CAHD,Statemented Support Academies,Other Public Bodies,Cabot Learning Federation,918.75, 25-Jul-2019
617,Revenue,CAHD,Statemented Support Academies,Schools Funding,Cabot Learning Federation,918.75, 25-Jul-2019
618,Revenue,CAHD,Statemented Support Academies,Other Public Bodies,Cabot Learning Federation,5461.73, 25-Jul-2019
619,Revenue,CAHD,Statemented Support Payments to OLAs,Other L.A.'s - General,Cabot Learning Federation,872.58, 25-Jul-2019
620,Revenue,CAHD,Statemented Support Academies,Other Public Bodies,Cabot Learning Federation,554.21, 25-Jul-2019
621,Revenue,CAHD,Statemented Support Academies,Other Public Bodies,Cabot Learning Federation,742.88, 25-Jul-2019
622,Revenue,CAHD,Statemented Support Academies,Other Public Bodies,Cabot Learning Federation,943.33, 25-Jul-2019
623,Revenue,CAHD,Statemented Support Academies,Other Public Bodies,Cabot Learning Federation,813.63, 25-Jul-2019
624,Revenue,CAHD,Statemented Support Payments to OLAs,Other L.A.'s - General,Cabot Learning Federation,601.38, 25-Jul-2019
625,Revenue,CAHD,Statemented Support Academies,Other Public Bodies,Cabot Learning Federation,589.58, 25-Jul-2019
626,Revenue,CAHD,Statemented Support Academies,Other Public Bodies,Cabot Learning Federation,801.83, 25-Jul-2019
627,Revenue,CAHD,Statemented Support Academies,Other Public Bodies,Cabot Learning Federation,719.29, 25-Jul-2019
628,Revenue,CAHD,Statemented Support Academies,Other Public Bodies,Cabot Learning Federation,731.08, 25-Jul-2019
629,Revenue,CAHD,Statemented Support Academies,Other Public Bodies,Cabot Learning Federation,907.96, 25-Jul-2019
630,Revenue,CAHD,Statemented Support Academies,Other Public Bodies,Cabot Learning Federation,742.88, 25-Jul-2019
631,Revenue,CAHD,Statemented Support Academies,Other Public Bodies,Cabot Learning Federation,907.96, 25-Jul-2019
632,Revenue,CAHD,Mental Health  Projects,Project Funding,Cabot Learning Federation,2000.00, 08-Jul-2019
633,Revenue,CAHD,Statemented Support Payments to OLAs,Other L.A.'s - General,Cabot Learning Federation,601.38, 25-Jul-2019
634,Revenue,CAHD,Statemented Support Payments to OLAs,Other L.A.'s - General,Cabot Learning Federation,1073.04, 25-Jul-2019
635,Revenue,CAHD,Statemented Support Payments to OLAs,Other L.A.'s - General,Cabot Learning Federation,589.58, 25-Jul-2019
636,Revenue,CAHD,Statemented Support Academies,Other Public Bodies,Cabot Learning Federation,1297.08, 25-Jul-2019
637,Revenue,CAHD,Early Years High Needs Support,Other Private Contractors,Caerleon Childcare,515.74, 26-Jul-2019
638,Revenue,CAHD,Schools Specific Grant Income,Other Public Bodies,Caerphilly County Borough Council,630.00, 26-Jul-2019
639,Revenue,CAHD,CSC - Residential Placements,Permanent Residential,Cambian Childcare Ltd,19928.66, 19-Jul-2019
640,Revenue,CAHD,CSC - Residential Placements,Permanent Residential,Cambian Childcare Ltd,19042.99, 30-Jul-2019
641,Revenue,CAHD,CSC - Residential Placements,Permanent Residential,Cambian Childcare Ltd,23250.00, 26-Jul-2019
642,Revenue,CAHD,CSC - Residential Placements,Permanent Residential,Cambian Childcare Ltd,3542.99, 26-Jul-2019
643,Revenue,CAHD,Post 16 High Needs Placements,Other Private Contractors,Cambian Whinfell School Limited,39509.47, 01-Jul-2019
644,Revenue,CAHD,Cambrian Green Day Service,Catering,Cambrian Court Dining,544.50, 03-Jul-2019
645,Revenue,CAHD,Cambrian Green Day Service,Catering,Cambrian Court Dining,544.50, 12-Jul-2019
646,Revenue,CAHD,Cambrian Green Day Service,Catering,Cambrian Court Dining,605.00, 16-Jul-2019
647,Revenue,CAHD,Cambrian Green Day Service,Catering,Cambrian Court Dining,583.00, 25-Jul-2019
648,Revenue,CAHD,North - Community based support,Day Care / Social Activities,Camphill Communities Thornbury Limited,785.18, 05-Jul-2019
649,Revenue,CAHD,North - Community based support,Other Small Contracts,Camphill Communities Thornbury Limited,170.28, 05-Jul-2019
650,Revenue,CAHD,North - Community based support,Supported Living,Camphill Communities Thornbury Limited,983.84, 05-Jul-2019
651,Revenue,CAHD,North - Community based support,Day Care / Social Activities,Camphill Communities Thornbury Limited,704.77, 12-Jul-2019
652,Revenue,CAHD,North - Community based support,Other Small Contracts,Camphill Communities Thornbury Limited,170.28, 12-Jul-2019
653,Revenue,CAHD,North - Community based support,Supported Living,Camphill Communities Thornbury Limited,1054.79, 12-Jul-2019
654,Revenue,CAHD,North - Community based support,Day Care / Social Activities,Camphill Communities Thornbury Limited,960.19, 19-Jul-2019
655,Revenue,CAHD,North - Community based support,Other Small Contracts,Camphill Communities Thornbury Limited,170.28, 19-Jul-2019
656,Revenue,CAHD,North - Community based support,Supported Living,Camphill Communities Thornbury Limited,1064.25, 19-Jul-2019
657,Revenue,CAHD,North - Community based support,Day Care / Social Activities,Camphill Communities Thornbury Limited,1158.85, 26-Jul-2019
658,Revenue,CAHD,North - Community based support,Other Small Contracts,Camphill Communities Thornbury Limited,170.28, 26-Jul-2019
659,Revenue,CAHD,North - Community based support,Supported Living,Camphill Communities Thornbury Limited,941.27, 26-Jul-2019
660,Revenue,CAHD,North - S117,Permanent Residential,Canjayor,3937.76, 02-Jul-2019
661,Revenue,CAHD,North - S117,Permanent Residential,Canjayor,3797.13, 02-Jul-2019
662,Revenue,CAHD,North - S117,Permanent Residential,Canjayor,3937.76, 30-Jul-2019
663,Revenue,CAHD,Alexandra Way,Refuse Collection Charges,Cannon Hygiene Limited,616.47, 22-Jul-2019
664,Revenue,CAHD,CAH Director,Training Expenses,Capita Resourcing Limited,4150.00, 12-Jul-2019
665,Revenue,CAHD,CAH Director,Training Expenses,Capita Resourcing Limited,4721.25, 26-Jul-2019
666,Revenue,CAHD,CSC - Parent & Child Assessments,Foster Parent Allowances,Capstone Foster Care (South West) Limited,2349.27, 05-Jul-2019
667,Revenue,CAHD,CSC - Parent & Child Assessments,Foster Parent Allowances,Capstone Foster Care (South West) Limited,6407.10, 03-Jul-2019
668,Revenue,CAHD,CSC - Parent & Child Assessments,Foster Parent Allowances,Capstone Foster Care (South West) Limited,6620.67, 31-Jul-2019
669,Revenue,CAHD,Central - Community based support,Other Small Contracts,Care 1st Homecare,2768.60, 17-Jul-2019
670,Revenue,CAHD,Central - Community based support,Other Small Contracts,Care 1st Homecare,1691.68, 24-Jul-2019
671,Revenue,CAHD,Central - Community based support,Other Small Contracts,Care 1st Homecare,2720.64, 24-Jul-2019
672,Revenue,CAHD,Central - Community based support,Other Small Contracts,Care 1st Homecare,2929.92, 31-Jul-2019
673,Revenue,CAHD,Central - Community based support,Other Small Contracts,Care 1st Homecare,2929.92, 31-Jul-2019
674,Revenue,CAHD,Central - Community based support,Other Small Contracts,Care Horizons Limited,845.25, 01-Jul-2019
675,Revenue,CAHD,South - community based support,Other Small Contracts,Care Horizons Limited,251.16, 01-Jul-2019
676,Revenue,CAHD,North - Community based support,Day Care / Social Activities,Care Horizons Limited,425.04, 01-Jul-2019
677,Revenue,CAHD,North - Community based support,Other Small Contracts,Care Horizons Limited,656.88, 01-Jul-2019
678,Revenue,CAHD,Younger MH non-res purchasing,Other Small Contracts,Care Horizons Limited,371.91, 01-Jul-2019
679,Revenue,CAHD,Central - Community based support,Other Small Contracts,Care Horizons Limited,893.55, 03-Jul-2019
680,Revenue,CAHD,South - community based support,Other Small Contracts,Care Horizons Limited,246.33, 03-Jul-2019
681,Revenue,CAHD,North - Community based support,Day Care / Social Activities,Care Horizons Limited,405.72, 03-Jul-2019
682,Revenue,CAHD,North - Community based support,Other Small Contracts,Care Horizons Limited,531.30, 03-Jul-2019
683,Revenue,CAHD,Younger MH non-res purchasing,Other Small Contracts,Care Horizons Limited,342.93, 03-Jul-2019
684,Revenue,CAHD,Central - Community based support,Other Small Contracts,Care Horizons Limited,850.08, 11-Jul-2019
685,Revenue,CAHD,South - community based support,Other Small Contracts,Care Horizons Limited,173.88, 11-Jul-2019
686,Revenue,CAHD,North - Community based support,Day Care / Social Activities,Care Horizons Limited,405.72, 11-Jul-2019
687,Revenue,CAHD,North - Community based support,Other Small Contracts,Care Horizons Limited,521.64, 11-Jul-2019
688,Revenue,CAHD,Younger MH non-res purchasing,Other Small Contracts,Care Horizons Limited,449.19, 11-Jul-2019
689,Revenue,CAHD,Central - Community based support,Other Small Contracts,Care Horizons Limited,1260.63, 17-Jul-2019
690,Revenue,CAHD,South - community based support,Other Small Contracts,Care Horizons Limited,169.05, 17-Jul-2019
691,Revenue,CAHD,North - Community based support,Day Care / Social Activities,Care Horizons Limited,386.40, 17-Jul-2019
692,Revenue,CAHD,North - Community based support,Other Small Contracts,Care Horizons Limited,483.00, 17-Jul-2019
693,Revenue,CAHD,Younger MH non-res purchasing,Other Small Contracts,Care Horizons Limited,294.63, 17-Jul-2019
694,Revenue,CAHD,Central - Community based support,Other Small Contracts,Care Horizons Limited,1275.12, 23-Jul-2019
695,Revenue,CAHD,South - community based support,Other Small Contracts,Care Horizons Limited,227.01, 23-Jul-2019
696,Revenue,CAHD,North - Community based support,Day Care / Social Activities,Care Horizons Limited,342.93, 23-Jul-2019
697,Revenue,CAHD,North - Community based support,Other Small Contracts,Care Horizons Limited,473.34, 23-Jul-2019
698,Revenue,CAHD,Younger MH non-res purchasing,Other Small Contracts,Care Horizons Limited,304.29, 23-Jul-2019
699,Revenue,CAHD,18-25 Year Olds,Other Small Contracts,Care Horizons Limited,77.28, 31-Jul-2019
700,Revenue,CAHD,Central - Community based support,Other Small Contracts,Care Horizons Limited,1221.99, 31-Jul-2019
701,Revenue,CAHD,South - community based support,Other Small Contracts,Care Horizons Limited,178.71, 31-Jul-2019
702,Revenue,CAHD,North - Community based support,Day Care / Social Activities,Care Horizons Limited,381.57, 31-Jul-2019
703,Revenue,CAHD,North - Community based support,Other Small Contracts,Care Horizons Limited,429.87, 31-Jul-2019
704,Revenue,CAHD,Younger MH non-res purchasing,Other Small Contracts,Care Horizons Limited,405.72, 31-Jul-2019
705,Revenue,CAHD,Younger MH non-res purchasing,Other Small Contracts,Care Horizons Limited,667.50, 15-Jul-2019
706,Revenue,CAHD,Winter Incentive Payments,Other Small Contracts,Care Horizons Limited,1200.00, 22-Jul-2019
707,Revenue,CAHD,SLA Grants - Support Serv,Grants to Voluntary Bodies,Carers Support Centre,12275.00, 01-Jul-2019
708,Revenue,CAHD,SLA Grants - Support Serv,Grants to Voluntary Bodies,Carers Support Centre,25275.00, 01-Jul-2019
709,Revenue,CAHD,Health Inequalities,Other Small Contracts,Carers Support Centre,60477.00, 01-Jul-2019
710,Revenue,CAHD,CSC - Care Leavers Independent Living,Independent Living,Caretech Community Services,10125.00, 10-Jul-2019
711,Revenue,CAHD,CSC - Care Leavers Independent Living,Independent Living,Caretech Community Services,6589.28, 01-Jul-2019
712,Revenue,CAHD,CSC - Care Leavers Independent Living,Independent Living,Caretech Community Services,4982.14, 01-Jul-2019
713,Revenue,CAHD,CSC - Care Leavers Independent Living,Independent Living,Caretech Community Services,4821.43, 01-Jul-2019
714,Revenue,CAHD,CSC - Care Leavers Independent Living,Independent Living,Caretech Community Services,4821.43, 30-Jul-2019
715,Revenue,CAHD,South - community based support,Other Small Contracts,Caring Comes 1st Limited,628.32, 30-Jul-2019
716,Revenue,CAHD,South - community based support,Other Small Contracts,Caring Comes 1st Limited,628.32, 01-Jul-2019
717,Revenue,CAHD,South - community based support,Other Small Contracts,Caring Comes 1st Limited,536.40, 01-Jul-2019
718,Revenue,CAHD,South - community based support,Other Small Contracts,Caring Comes 1st Limited,1705.44, 01-Jul-2019
719,Revenue,CAHD,South - community based support,Other Small Contracts,Caring Comes 1st Limited,1150.05, 22-Jul-2019
720,Revenue,CAHD,Central - Community based support,Supported Living,Cartrefi Cymru Co Operative,1340.32, 02-Jul-2019
721,Revenue,CAHD,Central - Community based support,Supported Living,Cartrefi Cymru Co Operative,1340.32, 30-Jul-2019
722,Revenue,CAHD,Statemented Support Academies,Other Public Bodies,Castle School Education Trust,518.83, 24-Jul-2019
723,Revenue,CAHD,Statemented Support Academies,Other Public Bodies,Castle School Education Trust,566.00, 24-Jul-2019
724,Revenue,CAHD,Statemented Support Academies,Other Public Bodies,Castle School Education Trust,778.25, 24-Jul-2019
725,Revenue,CAHD,Statemented Support Academies,Other Public Bodies,Castle School Education Trust,931.54, 24-Jul-2019
726,Revenue,CAHD,Statemented Support Academies,Other Public Bodies,Castle School Education Trust,542.42, 24-Jul-2019
727,Revenue,CAHD,Statemented Support Academies,Other Public Bodies,Castle School Education Trust,672.13, 24-Jul-2019
728,Revenue,CAHD,Statemented Support Academies,Other Public Bodies,Castle School Education Trust,505.08, 01-Jul-2019
729,Revenue,CAHD,Statemented Support Academies,Schools Funding,Castle School Education Trust,505.08, 24-Jul-2019
730,Revenue,CAHD,Statemented Support Academies,Other Public Bodies,Castle School Education Trust,860.79, 24-Jul-2019
731,Revenue,CAHD,Statemented Support Academies,Other Public Bodies,Castle School Education Trust,1462.17, 24-Jul-2019
732,Revenue,CAHD,Statemented Support Academies,Other Public Bodies,Castle School Education Trust,860.79, 24-Jul-2019
733,Revenue,CAHD,Statemented Support Academies,Other Public Bodies,Castle School Education Trust,1002.29, 24-Jul-2019
734,Revenue,CAHD,Statemented Support Academies,Other Public Bodies,Castle School Education Trust,1120.21, 24-Jul-2019
735,Revenue,CAHD,Statemented Support Academies,Other Public Bodies,Castle School Education Trust,507.04, 24-Jul-2019
736,Revenue,CAHD,Statemented Support Academies,Other Public Bodies,Castle School Education Trust,589.58, 24-Jul-2019
737,Revenue,CAHD,Statemented Support Academies,Other Public Bodies,Castle School Education Trust,955.13, 24-Jul-2019
738,Revenue,CAHD,Statemented Support Academies,Other Public Bodies,Castle School Education Trust,577.79, 24-Jul-2019
739,Revenue,CAHD,Statemented Support Academies,Other Public Bodies,Castle School Education Trust,624.96, 24-Jul-2019
740,Revenue,CAHD,Statemented Support Academies,Other Public Bodies,Castle School Education Trust,825.42, 24-Jul-2019
741,Revenue,CAHD,Statemented Support Academies,Other Public Bodies,Castle School Education Trust,707.50, 24-Jul-2019
742,Revenue,CAHD,Statemented Support Academies,Other Public Bodies,Castle School Education Trust,849.00, 24-Jul-2019
743,Revenue,CAHD,Statemented Support Academies,Other Public Bodies,Castle School Education Trust,1238.13, 24-Jul-2019
744,Revenue,CAHD,Statemented Support Academies,Other Public Bodies,Castle School Education Trust,1061.25, 24-Jul-2019
745,Revenue,CAHD,Statemented Support Academies,Other Public Bodies,Castle School Education Trust,518.83, 24-Jul-2019
746,Revenue,CAHD,Statemented Support Academies,Other Public Bodies,Castle School Education Trust,577.79, 24-Jul-2019
747,Revenue,CAHD,Statemented Support Academies,Other Public Bodies,Castle School Education Trust,1143.79, 24-Jul-2019
748,Revenue,CAHD,Schools Specific Grant Income,Other Public Bodies,Castle School Education Trust,630.00, 01-Jul-2019
749,Revenue,CAHD,Schools Specific Grant Income,Other Public Bodies,Castle School Education Trust,630.00, 01-Jul-2019
750,Revenue,CAHD,Academy Resource Base Funding,Other Public Bodies,Castle School Education Trust,1698.31, 23-Jul-2019
751,Revenue,CAHD,Academy Resource Base Funding,Other Public Bodies,Castle School Education Trust,1698.31, 23-Jul-2019
752,Revenue,CAHD,Academy Resource Base Funding,Other Public Bodies,Castle School Education Trust,1698.31, 23-Jul-2019
753,Revenue,CAHD,Academy Resource Base Funding,Other Public Bodies,Castle School Education Trust,1698.31, 23-Jul-2019
754,Revenue,CAHD,Academy Resource Base Funding,Other Public Bodies,Castle School Education Trust,1698.31, 23-Jul-2019
755,Revenue,CAHD,Academy Resource Base Funding,Other Public Bodies,Castle School Education Trust,1698.31, 23-Jul-2019
756,Revenue,CAHD,Academy Resource Base Funding,Other Public Bodies,Castle School Education Trust,1698.31, 23-Jul-2019
757,Revenue,CAHD,Schools Specific Grant Income,Other Public Bodies,Castle School Education Trust,630.00, 01-Jul-2019
758,Revenue,CAHD,Schools Specific Grant Income,Other Public Bodies,Castle School Education Trust,630.00, 01-Jul-2019
759,Revenue,CAHD,Statemented Support Academies,Other Public Bodies,Castle School Education Trust,1485.75, 24-Jul-2019
760,Revenue,CAHD,Schools Specific Grant Income,Other Public Bodies,Castle School Education Trust,630.00, 01-Jul-2019
761,Revenue,CAHD,Schools Specific Grant Income,Other Public Bodies,Castle School Education Trust,630.00, 01-Jul-2019
762,Revenue,CAHD,Schools Specific Grant Income,Other Public Bodies,Castle School Education Trust,630.00, 01-Jul-2019
763,Revenue,CAHD,Schools Specific Grant Income,Other Public Bodies,Castle School Education Trust,630.00, 01-Jul-2019
764,Revenue,CAHD,Statemented Support Academies,Other Public Bodies,Castle School Education Trust,554.75, 01-Jul-2019
765,Revenue,CAHD,Statemented Support Academies,Other Public Bodies,Castle School Education Trust,918.75, 01-Jul-2019
766,Revenue,CAHD,Statemented Support Academies,Other Public Bodies,Castle School Education Trust,672.13, 24-Jul-2019
767,Revenue,CAHD,Statemented Support Academies,Other Public Bodies,Castle School Education Trust,872.58, 24-Jul-2019
768,Revenue,CAHD,Statemented Support Academies,Other Public Bodies,Castle School Education Trust,849.00, 24-Jul-2019
769,Revenue,CAHD,Statemented Support Academies,Other Public Bodies,Castle School Education Trust,907.96, 24-Jul-2019
770,Revenue,CAHD,Statemented Support Academies,Other Public Bodies,Castle School Education Trust,1190.96, 24-Jul-2019
771,Revenue,CAHD,Statemented Support Academies,Other Public Bodies,Castle School Education Trust,1556.50, 24-Jul-2019
772,Revenue,CAHD,Statemented Support Academies,Other Public Bodies,Castle School Education Trust,1025.88, 24-Jul-2019
773,Revenue,CAHD,Statemented Support Academies,Other Public Bodies,Castle School Education Trust,1473.96, 24-Jul-2019
774,Revenue,CAHD,SRRP,Other Public Bodies,Castle School Education Trust,9000.00, 12-Jul-2019
775,Revenue,CAHD,Statemented Support Academies,Schools Funding,Castle School Education Trust,630.58, 24-Jul-2019
776,Revenue,CAHD,Statemented Support Academies,Other Public Bodies,Castle School Education Trust,778.25, 24-Jul-2019
777,Revenue,CAHD,Statemented Support Academies,Other Public Bodies,Castle School Education Trust,630.58, 01-Jul-2019
778,Revenue,CAHD,Statemented Support Academies,Other Public Bodies,Castle School Education Trust,613.17, 24-Jul-2019
779,Revenue,CAHD,Schools Specific Grant Income,Other Public Bodies,Castle School Educational Turust,630.00, 01-Jul-2019
780,Revenue,CAHD,Schools Specific Grant Income,Other Public Bodies,Castle School Educational Turust,630.00, 01-Jul-2019
781,Revenue,CAHD,Schools Specific Grant Income,Other Public Bodies,Castle School Educational Turust,630.00, 01-Jul-2019
782,Revenue,CAHD,Social Lettings Agency,Fees - General,Individual,10.53, 01-Jul-2019
783,Revenue,CAHD,Social Lettings Agency,Fees & Charges Income - General,Individual,595.11, 01-Jul-2019
784,Revenue,CAHD,Schools Specific Grant Income,Other Public Bodies,Cathays High School,630.00, 15-Jul-2019
785,Revenue,CAHD,North - Community based support,Day Care / Social Activities,Causeway House,1956.13, 02-Jul-2019
786,Revenue,CAHD,North - Community based support,Day Care / Social Activities,Causeway House,2133.96, 30-Jul-2019
787,Revenue,CAHD,Central - Community based support,Day Care / Social Activities,Causeway House,1136.76, 02-Jul-2019
788,Revenue,CAHD,Central - Community based support,Day Care / Social Activities,Causeway House,1136.76, 30-Jul-2019
789,Revenue,CAHD,South - community based support,Day Care / Social Activities,Causeway House,5253.12, 02-Jul-2019
790,Revenue,CAHD,South - community based support,Day Care / Social Activities,Causeway House,5253.12, 30-Jul-2019
791,Revenue,CAHD,18-25 Year Olds,Day Care / Social Activities,Causeway House,1418.72, 02-Jul-2019
792,Revenue,CAHD,18-25 Year Olds,Day Care / Social Activities,Causeway House,1418.72, 30-Jul-2019
793,Revenue,CAHD,18-25 Year Olds,Day Care / Social Activities,Causeway House,4414.64, 02-Jul-2019
794,Revenue,CAHD,18-25 Year Olds,Day Care / Social Activities,Causeway House,4414.64, 30-Jul-2019
795,Revenue,CAHD,Central - Community based support,Day Care / Social Activities,Causeway House,3891.60, 02-Jul-2019
796,Revenue,CAHD,Central - Community based support,Day Care / Social Activities,Causeway House,3891.60, 30-Jul-2019
797,Revenue,CAHD,Central - Community based support,Day Care / Social Activities,Causeway House,1704.96, 02-Jul-2019
798,Revenue,CAHD,Central - Community based support,Day Care / Social Activities,Causeway House,1704.96, 30-Jul-2019
799,Revenue,CAHD,North - Community based support,Day Care / Social Activities,Causeway House,3226.20, 02-Jul-2019
800,Revenue,CAHD,North - Community based support,Day Care / Social Activities,Causeway House,3226.20, 30-Jul-2019
801,Revenue,CAHD,North - Community based support,Day Care / Social Activities,Causeway House,4806.44, 02-Jul-2019
802,Revenue,CAHD,North - Community based support,Day Care / Social Activities,Causeway House,4806.44, 30-Jul-2019
803,Revenue,CAHD,Central - Community based support,Day Care / Social Activities,Causeway House,3652.12, 02-Jul-2019
804,Revenue,CAHD,Central - Community based support,Day Care / Social Activities,Causeway House,3652.12, 30-Jul-2019
805,Revenue,CAHD,North - Community based support,Day Care / Social Activities,Causeway House,3149.08, 02-Jul-2019
806,Revenue,CAHD,North - Community based support,Day Care / Social Activities,Causeway House,3149.08, 30-Jul-2019
807,Revenue,CAHD,North - Community based support,Day Care / Social Activities,Causeway House,568.32, 02-Jul-2019
808,Revenue,CAHD,North - Community based support,Day Care / Social Activities,Causeway House,568.32, 30-Jul-2019
809,Revenue,CAHD,CSC - Adoption Support Fund,Post Adoption,CCS Adoption,900.00, 03-Jul-2019
810,Revenue,CAHD,South - Bed Purchasing and Direct payments,Permanent Nursing,Cedar Care Homes Limited,3095.92, 02-Jul-2019
811,Revenue,CAHD,South - Bed Purchasing and Direct payments,Permanent Nursing,Cedar Care Homes Limited,3095.92, 30-Jul-2019
812,Revenue,CAHD,North - bed purchasing and direct  payments,Respite Emergency - Residential,Cedar Care Homes Limited,6351.72, 02-Jul-2019
813,Revenue,CAHD,North - bed purchasing and direct  payments,Respite Emergency - Residential,Cedar Care Homes Limited,6028.27, 02-Jul-2019
814,Revenue,CAHD,North - bed purchasing and direct  payments,Permanent Nursing,Cedar Care Homes Limited,6028.27, 02-Jul-2019
815,Revenue,CAHD,North - bed purchasing and direct  payments,Fees & Charges Income - General,Cedar Care Homes Limited,752.42, 30-Jul-2019
816,Revenue,CAHD,North - bed purchasing and direct  payments,Fees & Charges Income - General,Cedar Care Homes Limited,5869.63, 30-Jul-2019
817,Revenue,CAHD,South - Bed Purchasing and Direct payments,Permanent Residential,Challenge House,2834.44, 02-Jul-2019
818,Revenue,CAHD,South - Bed Purchasing and Direct payments,Permanent Residential,Challenge House,2834.44, 30-Jul-2019
819,Revenue,CAHD,North - S117,Permanent Residential,Challenge House,2571.40, 02-Jul-2019
820,Revenue,CAHD,North - S117,Permanent Residential,Challenge House,2571.40, 30-Jul-2019
821,Revenue,CAHD,Central - Bed Purchasing and Direct Payments,Respite Emergency - Residential,Challenge House,577.54, 02-Jul-2019
822,Revenue,CAHD,North - bed purchasing and direct  payments,Permanent Residential,Challenge House,2233.00, 02-Jul-2019
823,Revenue,CAHD,North - bed purchasing and direct  payments,Permanent Residential,Challenge House,2233.00, 30-Jul-2019
824,Revenue,CAHD,North - bed purchasing and direct  payments,Permanent Residential,Challenge House,9217.86, 30-Jul-2019
825,Revenue,CAHD,North - bed purchasing and direct  payments,Permanent Residential,Challenge House,2900.00, 30-Jul-2019
826,Revenue,CAHD,North - bed purchasing and direct  payments,Permanent Residential,Challenge House,2370.72, 02-Jul-2019
827,Revenue,CAHD,North - bed purchasing and direct  payments,Permanent Residential,Challenge House,2370.72, 30-Jul-2019
828,Revenue,CAHD,North - bed purchasing and direct  payments,Respite Planned - Residential,Challenge House,1971.43, 02-Jul-2019
829,Revenue,CAHD,North - bed purchasing and direct  payments,Respite Planned - Residential,Challenge House,771.43, 30-Jul-2019
830,Revenue,CAHD,Central - Bed Purchasing and Direct Payments,Permanent Residential,Challenge House,2534.57, 02-Jul-2019
831,Revenue,CAHD,Central - Bed Purchasing and Direct Payments,Permanent Residential,Challenge House,2365.60, 02-Jul-2019
832,Revenue,CAHD,Central - Bed Purchasing and Direct Payments,Permanent Residential,Challenge House,2365.60, 30-Jul-2019
833,Revenue,CAHD,Central - Bed Purchasing and Direct Payments,Permanent Residential,Challenge House,2363.40, 02-Jul-2019
834,Revenue,CAHD,Central - Bed Purchasing and Direct Payments,Permanent Residential,Challenge House,2363.40, 30-Jul-2019
835,Revenue,CAHD,North - bed purchasing and direct  payments,Permanent Residential,Challenge House,2363.40, 02-Jul-2019
836,Revenue,CAHD,North - bed purchasing and direct  payments,Permanent Residential,Challenge House,2363.40, 30-Jul-2019
837,Revenue,CAHD,Central - Bed Purchasing and Direct Payments,Respite Emergency - Residential,Challenge House,2834.44, 02-Jul-2019
838,Revenue,CAHD,Central - Bed Purchasing and Direct Payments,Respite Emergency - Residential,Challenge House,2834.44, 30-Jul-2019
839,Revenue,CAHD,North - bed purchasing and direct  payments,Permanent Residential,Challenge House,2834.40, 02-Jul-2019
840,Revenue,CAHD,North - bed purchasing and direct  payments,Permanent Residential,Challenge House,2834.40, 30-Jul-2019
841,Revenue,CAHD,North - bed purchasing and direct  payments,Permanent Nursing,Challenge House,3130.36, 02-Jul-2019
842,Revenue,CAHD,North - bed purchasing and direct  payments,Permanent Nursing,Challenge House,3130.36, 30-Jul-2019
843,Revenue,CAHD,Central - Bed Purchasing and Direct Payments,Permanent Nursing,Challenge House,3000.00, 02-Jul-2019
844,Revenue,CAHD,Central - Bed Purchasing and Direct Payments,Permanent Nursing,Challenge House,3000.00, 30-Jul-2019
845,Revenue,CAHD,North - S117,Permanent Nursing,Challenge House,2395.80, 02-Jul-2019
846,Revenue,CAHD,North - S117,Permanent Nursing,Challenge House,2395.80, 30-Jul-2019
847,Revenue,CAHD,North - bed purchasing and direct  payments,Permanent Residential,Challenge House,2399.96, 02-Jul-2019
848,Revenue,CAHD,North - bed purchasing and direct  payments,Permanent Residential,Challenge House,2399.96, 30-Jul-2019
849,Revenue,CAHD,Central - Bed Purchasing and Direct Payments,Permanent Nursing,Challenge House,3056.00, 02-Jul-2019
850,Revenue,CAHD,Central - Bed Purchasing and Direct Payments,Permanent Nursing,Challenge House,3056.00, 30-Jul-2019
851,Revenue,CAHD,North - bed purchasing and direct  payments,Permanent Nursing,Challenge House,2571.40, 02-Jul-2019
852,Revenue,CAHD,North - bed purchasing and direct  payments,Permanent Nursing,Challenge House,2571.40, 30-Jul-2019
853,Revenue,CAHD,North - bed purchasing and direct  payments,Permanent Nursing,Challenge House,2395.80, 02-Jul-2019
854,Revenue,CAHD,North - bed purchasing and direct  payments,Permanent Nursing,Challenge House,2395.80, 30-Jul-2019
855,Revenue,CAHD,North - bed purchasing and direct  payments,Permanent Nursing,Challenge House,3130.36, 02-Jul-2019
856,Revenue,CAHD,North - bed purchasing and direct  payments,Permanent Nursing,Challenge House,3130.36, 30-Jul-2019
857,Revenue,CAHD,South Glos Users in South Glos Homes,Permanent Nursing,Challenge House,662.24, 02-Jul-2019
858,Revenue,CAHD,South Glos Users in South Glos Homes,Permanent Nursing,Challenge House,662.24, 30-Jul-2019
859,Revenue,CAHD,North - bed purchasing and direct  payments,Permanent Nursing,Challenge House,3000.00, 02-Jul-2019
860,Revenue,CAHD,North - bed purchasing and direct  payments,Permanent Nursing,Challenge House,6345.35, 30-Jul-2019
861,Revenue,CAHD,North - bed purchasing and direct  payments,Permanent Nursing,Challenge House,2337.76, 30-Jul-2019
862,Revenue,CAHD,North - bed purchasing and direct  payments,Fees & Charges Income - General,Challenge House,3225.20, 30-Jul-2019
863,Revenue,CAHD,South Glos Users in South Glos Homes,Permanent Nursing,Challenge House,662.24, 02-Jul-2019
864,Revenue,CAHD,South Glos Users in South Glos Homes,Permanent Nursing,Challenge House,662.24, 30-Jul-2019
865,Revenue,CAHD,South Glos Users in South Glos Homes,Permanent Nursing,Challenge House,662.24, 02-Jul-2019
866,Revenue,CAHD,South Glos Users in South Glos Homes,Permanent Nursing,Challenge House,662.24, 30-Jul-2019
867,Revenue,CAHD,South Glos Users in South Glos Homes,Permanent Nursing,Challenge House,662.24, 02-Jul-2019
868,Revenue,CAHD,South Glos Users in South Glos Homes,Permanent Nursing,Challenge House,662.24, 30-Jul-2019
869,Revenue,CAHD,South - Bed Purchasing and Direct payments,Permanent Nursing,Challenge House,2884.20, 02-Jul-2019
870,Revenue,CAHD,South Glos Users in South Glos Homes,Permanent Nursing,Challenge House,662.24, 02-Jul-2019
871,Revenue,CAHD,South - Bed Purchasing and Direct payments,Permanent Nursing,Challenge House,2884.20, 30-Jul-2019
872,Revenue,CAHD,South Glos Users in South Glos Homes,Permanent Nursing,Challenge House,662.24, 30-Jul-2019
873,Revenue,CAHD,North - bed purchasing and direct  payments,Permanent Nursing,Challenge House,3335.08, 02-Jul-2019
874,Revenue,CAHD,North - bed purchasing and direct  payments,Permanent Nursing,Challenge House,3335.08, 30-Jul-2019
875,Revenue,CAHD,North - bed purchasing and direct  payments,Permanent Nursing,Challenge House,3208.48, 02-Jul-2019
876,Revenue,CAHD,South Glos Users in South Glos Homes,Permanent Nursing,Challenge House,662.24, 02-Jul-2019
877,Revenue,CAHD,North - bed purchasing and direct  payments,Permanent Nursing,Challenge House,3208.48, 30-Jul-2019
878,Revenue,CAHD,South Glos Users in South Glos Homes,Permanent Nursing,Challenge House,662.24, 30-Jul-2019
879,Revenue,CAHD,South Glos Users in South Glos Homes,Permanent Nursing,Challenge House,662.24, 02-Jul-2019
880,Revenue,CAHD,South Glos Users in South Glos Homes,Permanent Nursing,Challenge House,662.24, 30-Jul-2019
881,Revenue,CAHD,North - bed purchasing and direct  payments,Permanent Nursing,Challenge House,3338.84, 02-Jul-2019
882,Revenue,CAHD,South Glos Users in South Glos Homes,Permanent Nursing,Challenge House,662.24, 02-Jul-2019
883,Revenue,CAHD,North - bed purchasing and direct  payments,Permanent Nursing,Challenge House,3338.84, 30-Jul-2019
884,Revenue,CAHD,South Glos Users in South Glos Homes,Permanent Nursing,Challenge House,662.24, 30-Jul-2019
885,Revenue,CAHD,South Glos Users in South Glos Homes,Permanent Nursing,Challenge House,662.24, 02-Jul-2019
886,Revenue,CAHD,South Glos Users in South Glos Homes,Permanent Nursing,Challenge House,662.24, 30-Jul-2019
887,Revenue,CAHD,South Glos Users in South Glos Homes,Permanent Nursing,Challenge House,1229.87, 02-Jul-2019
888,Revenue,CAHD,South Glos Users in South Glos Homes,Permanent Nursing,Challenge House,662.24, 02-Jul-2019
889,Revenue,CAHD,South Glos Users in South Glos Homes,Permanent Nursing,Challenge House,662.24, 30-Jul-2019
890,Revenue,CAHD,South Glos Users in South Glos Homes,Permanent Nursing,Challenge House,662.24, 02-Jul-2019
891,Revenue,CAHD,South Glos Users in South Glos Homes,Permanent Nursing,Challenge House,662.24, 30-Jul-2019
892,Revenue,CAHD,South Glos Users in South Glos Homes,Permanent Nursing,Challenge House,662.24, 02-Jul-2019
893,Revenue,CAHD,South Glos Users in South Glos Homes,Permanent Nursing,Challenge House,662.24, 30-Jul-2019
894,Revenue,CAHD,South - Bed Purchasing and Direct payments,Fees & Charges Income - General,Challenge House,2324.70, 30-Jul-2019
895,Revenue,CAHD,South - Bed Purchasing and Direct payments,Fees & Charges Income - General,Challenge House,2324.70, 30-Jul-2019
896,Revenue,CAHD,South - Bed Purchasing and Direct payments,Respite Planned - Residential,Challenge House,2250.00, 30-Jul-2019
897,Revenue,CAHD,South - Bed Purchasing and Direct payments,Permanent Residential,Challenge House,3000.00, 30-Jul-2019
898,Revenue,CAHD,South - Bed Purchasing and Direct payments,Fees & Charges Income - General,Challenge House,2066.40, 30-Jul-2019
899,Revenue,CAHD,South - Bed Purchasing and Direct payments,Permanent Residential,Challenge House,4928.57, 30-Jul-2019
900,Revenue,CAHD,South Glos Users in South Glos Homes,Permanent Nursing,Challenge House,662.24, 02-Jul-2019
901,Revenue,CAHD,South Glos Users in South Glos Homes,Permanent Nursing,Challenge House,662.24, 30-Jul-2019
902,Revenue,CAHD,South Glos Users in South Glos Homes,Permanent Nursing,Challenge House,1229.87, 02-Jul-2019
903,Revenue,CAHD,South Glos Users in South Glos Homes,Permanent Nursing,Challenge House,662.24, 02-Jul-2019
904,Revenue,CAHD,South Glos Users in South Glos Homes,Permanent Nursing,Challenge House,662.24, 30-Jul-2019
905,Revenue,CAHD,South Glos Users in South Glos Homes,Permanent Nursing,Challenge House,662.24, 02-Jul-2019
906,Revenue,CAHD,South Glos Users in South Glos Homes,Permanent Nursing,Challenge House,662.24, 30-Jul-2019
907,Revenue,CAHD,North - bed purchasing and direct  payments,Permanent Nursing,Challenge House,2827.52, 02-Jul-2019
908,Revenue,CAHD,South Glos Users in South Glos Homes,Permanent Nursing,Challenge House,662.24, 02-Jul-2019
909,Revenue,CAHD,North - bed purchasing and direct  payments,Permanent Nursing,Challenge House,2827.52, 30-Jul-2019
910,Revenue,CAHD,South Glos Users in South Glos Homes,Permanent Nursing,Challenge House,662.24, 30-Jul-2019
911,Revenue,CAHD,North - bed purchasing and direct  payments,Permanent Nursing,Challenge House,3338.84, 02-Jul-2019
912,Revenue,CAHD,South Glos Users in South Glos Homes,Permanent Nursing,Challenge House,662.24, 02-Jul-2019
913,Revenue,CAHD,North - bed purchasing and direct  payments,Permanent Nursing,Challenge House,3338.84, 30-Jul-2019
914,Revenue,CAHD,South Glos Users in South Glos Homes,Permanent Nursing,Challenge House,662.24, 30-Jul-2019
915,Revenue,CAHD,South Glos Users in South Glos Homes,Permanent Nursing,Challenge House,662.24, 02-Jul-2019
916,Revenue,CAHD,South Glos Users in South Glos Homes,Permanent Nursing,Challenge House,662.24, 30-Jul-2019
917,Revenue,CAHD,South Glos Users in South Glos Homes,Permanent Nursing,Challenge House,1442.74, 02-Jul-2019
918,Revenue,CAHD,South Glos Users in South Glos Homes,Permanent Nursing,Challenge House,662.24, 02-Jul-2019
919,Revenue,CAHD,South Glos Users in South Glos Homes,Permanent Nursing,Challenge House,662.24, 30-Jul-2019
920,Revenue,CAHD,North - bed purchasing and direct  payments,Permanent Nursing,Challenge House,2827.52, 02-Jul-2019
921,Revenue,CAHD,South Glos Users in South Glos Homes,Permanent Nursing,Challenge House,662.24, 02-Jul-2019
922,Revenue,CAHD,North - bed purchasing and direct  payments,Permanent Nursing,Challenge House,2827.52, 30-Jul-2019
923,Revenue,CAHD,South Glos Users in South Glos Homes,Permanent Nursing,Challenge House,662.24, 30-Jul-2019
924,Revenue,CAHD,South Glos Users in South Glos Homes,Permanent Nursing,Challenge House,662.24, 02-Jul-2019
925,Revenue,CAHD,South Glos Users in South Glos Homes,Permanent Nursing,Challenge House,662.24, 30-Jul-2019
926,Revenue,CAHD,North - bed purchasing and direct  payments,Permanent Nursing,Challenge House,3263.84, 02-Jul-2019
927,Revenue,CAHD,South Glos Users in South Glos Homes,Permanent Nursing,Challenge House,662.24, 02-Jul-2019
928,Revenue,CAHD,North - bed purchasing and direct  payments,Permanent Nursing,Challenge House,3263.84, 30-Jul-2019
929,Revenue,CAHD,South Glos Users in South Glos Homes,Permanent Nursing,Challenge House,662.24, 30-Jul-2019
930,Revenue,CAHD,CSC - Vinney Green Secure Unit,External Lecturers Fees,Changing Tunes,560.00, 26-Jul-2019
931,Revenue,CAHD,CSC - Vinney Green Secure Unit,External Lecturers Fees,Changing Tunes,720.00, 26-Jul-2019
932,Revenue,CAHD,Winter Incentive Payments,Other Small Contracts,Cherish Able Care Limited,2300.00, 22-Jul-2019
933,Revenue,CAHD,Central - Community based support,Other Small Contracts,Cherish Able Care Limited,2346.24, 01-Jul-2019
934,Revenue,CAHD,South - community based support,Other Small Contracts,Cherish Able Care Limited,5389.14, 01-Jul-2019
935,Revenue,CAHD,North - Community based support,Other Small Contracts,Cherish Able Care Limited,1617.66, 01-Jul-2019
936,Revenue,CAHD,Central - Community based support,Other Small Contracts,Cherish Able Care Limited,1513.60, 01-Jul-2019
937,Revenue,CAHD,South - community based support,Other Small Contracts,Cherish Able Care Limited,5597.26, 01-Jul-2019
938,Revenue,CAHD,North - Community based support,Other Small Contracts,Cherish Able Care Limited,1565.63, 01-Jul-2019
939,Revenue,CAHD,Central - Community based support,Other Small Contracts,Cherish Able Care Limited,1532.52, 11-Jul-2019
940,Revenue,CAHD,South - community based support,Other Small Contracts,Cherish Able Care Limited,5481.62, 11-Jul-2019
941,Revenue,CAHD,North - Community based support,Other Small Contracts,Cherish Able Care Limited,1579.82, 11-Jul-2019
942,Revenue,CAHD,Central - Community based support,Other Small Contracts,Cherish Able Care Limited,1527.79, 24-Jul-2019
943,Revenue,CAHD,South - community based support,Other Small Contracts,Cherish Able Care Limited,5702.35, 24-Jul-2019
944,Revenue,CAHD,North - Community based support,Other Small Contracts,Cherish Able Care Limited,1452.11, 24-Jul-2019
945,Revenue,CAHD,Central - Community based support,Other Small Contracts,Cherish Able Care Limited,1551.44, 24-Jul-2019
946,Revenue,CAHD,South - community based support,Other Small Contracts,Cherish Able Care Limited,5868.64, 24-Jul-2019
947,Revenue,CAHD,North - Community based support,Other Small Contracts,Cherish Able Care Limited,1480.49, 24-Jul-2019
948,Revenue,CAHD,South - community based support,Supported Living,Cherry Orchards,2503.20, 31-Jul-2019
949,Revenue,CAHD,South - community based support,Supported Living,Cherry Orchards,2503.20, 02-Jul-2019
950,Revenue,CAHD,South - community based support,Supported Living,Cherry Orchards,2208.18, 03-Jul-2019
951,Revenue,CAHD,South - community based support,Supported Living,Cherry Orchards,2648.80, 08-Jul-2019
952,Revenue,CAHD,South - community based support,Other Small Contracts,Cherry Orchards,6357.12, 24-Jul-2019
953,Revenue,CAHD,South - community based support,Other Small Contracts,Cherry Orchards,6357.12, 04-Jul-2019
954,Revenue,CAHD,South - community based support,Other Small Contracts,Cherry Orchards,6357.12, 17-Jul-2019
955,Revenue,CAHD,18-25 Year Olds,Other Small Contracts,Cherry Orchards,6357.12, 08-Jul-2019
956,Revenue,CAHD,18-25 Year Olds,Other Small Contracts,Cherry Orchards,6357.12, 05-Jul-2019
957,Revenue,CAHD,18-25 Year Olds,Other Small Contracts,Cherry Orchards,6357.12, 24-Jul-2019
958,Revenue,CAHD,S28A cases,Permanent Residential,Chescombe Lodge,9764.44, 02-Jul-2019
959,Revenue,CAHD,S28A cases,Permanent Residential,Chescombe Lodge,9764.44, 30-Jul-2019
960,Revenue,CAHD,CSC - Agency Fostering,Foster Parent Allowances,Child Care Bureau Limited,3801.30, 22-Jul-2019
961,Revenue,CAHD,CSC - LAC Placements,Other Supplies & Services,Childrens Contact Services Ltd,4721.10, 10-Jul-2019
962,Revenue,CAHD,CSC - LAC Placements,Other Supplies & Services,Childrens Contact Services Ltd,6966.30, 18-Jul-2019
963,Revenue,CAHD,CSC - LAC Placements,"Holidays, Outings & Visits",Childrens Contact Services Ltd,7913.75, 31-Jul-2019
964,Revenue,CAHD,CSC - Section 17 SOUTH,Preventative Assistance,Childrens Contact Services Ltd,655.00, 23-Jul-2019
965,Revenue,CAHD,Leadership and Business Support,Training Expenses,Chris Croft Training Limited,1150.00, 19-Jul-2019
966,Revenue,CAHD,Future Bright,Fees - General,Chrysalis Not for Profit Ltd,1000.00, 31-Jul-2019
967,Revenue,CAHD,18-25 Year Olds,Other Small Contracts,Cintre,102.48, 01-Jul-2019
968,Revenue,CAHD,Central - Community based support,Other Small Contracts,Cintre,312.32, 01-Jul-2019
969,Revenue,CAHD,South - community based support,Other Small Contracts,Cintre,702.72, 01-Jul-2019
970,Revenue,CAHD,18-25 Year Olds,Other Small Contracts,Cintre,102.48, 03-Jul-2019
971,Revenue,CAHD,Central - Community based support,Other Small Contracts,Cintre,351.36, 03-Jul-2019
972,Revenue,CAHD,South - community based support,Other Small Contracts,Cintre,610.00, 03-Jul-2019
973,Revenue,CAHD,18-25 Year Olds,Other Small Contracts,Cintre,102.48, 17-Jul-2019
974,Revenue,CAHD,Central - Community based support,Other Small Contracts,Cintre,376.95, 17-Jul-2019
975,Revenue,CAHD,South - community based support,Other Small Contracts,Cintre,566.08, 17-Jul-2019
976,Revenue,CAHD,18-25 Year Olds,Other Small Contracts,Cintre,107.36, 17-Jul-2019
977,Revenue,CAHD,Central - Community based support,Other Small Contracts,Cintre,312.32, 17-Jul-2019
978,Revenue,CAHD,South - community based support,Other Small Contracts,Cintre,663.68, 17-Jul-2019
979,Revenue,CAHD,18-25 Year Olds,Other Small Contracts,Cintre,87.84, 24-Jul-2019
980,Revenue,CAHD,Central - Community based support,Other Small Contracts,Cintre,229.36, 24-Jul-2019
981,Revenue,CAHD,South - community based support,Other Small Contracts,Cintre,814.96, 24-Jul-2019
982,Revenue,CAHD,18-25 Year Olds,Other Small Contracts,Cintre,102.48, 31-Jul-2019
983,Revenue,CAHD,Central - Community based support,Other Small Contracts,Cintre,380.64, 31-Jul-2019
984,Revenue,CAHD,South - community based support,Other Small Contracts,Cintre,649.04, 31-Jul-2019
985,Revenue,CAHD,Learning Difficulties,Other Private Contractors,Circadian Trust,607.50, 19-Jul-2019
986,Revenue,CAHD,Post 16 High Needs Placements,Other Private Contractors,City of Bath College,72702.41, 17-Jul-2019
987,Revenue,CAHD,Special Needs - Special Schools HTST,Client Transport,Individual,2177.28, 01-Jul-2019
988,Revenue,CAHD,CSC - Adoption Support Fund,Post Adoption,Individual,632.50, 15-Jul-2019
989,Revenue,CAHD,MH Purchasing - Younger,Permanent Residential,Claro Homes,2870.88, 02-Jul-2019
990,Revenue,CAHD,MH Purchasing - Younger,Permanent Residential,Claro Homes,2870.88, 30-Jul-2019
991,Revenue,CAHD,Section 117 Placements MH Younger,Permanent Residential,Claro Homes,3554.60, 02-Jul-2019
992,Revenue,CAHD,Section 117 Placements MH Younger,Permanent Residential,Claro Homes,3554.60, 30-Jul-2019
993,Revenue,CAHD,North - bed purchasing and direct  payments,Permanent Nursing,Claro Homes,3318.20, 02-Jul-2019
994,Revenue,CAHD,North - bed purchasing and direct  payments,Permanent Nursing,Claro Homes,3318.20, 30-Jul-2019
995,Revenue,CAHD,South - Bed Purchasing and Direct payments,Permanent Residential,Cleeve Lodge,3686.40, 02-Jul-2019
996,Revenue,CAHD,South - Bed Purchasing and Direct payments,Permanent Residential,Cleeve Lodge,3686.40, 30-Jul-2019
997,Revenue,CAHD,South - Bed Purchasing and Direct payments,Permanent Residential,Cleeve Lodge,3686.40, 02-Jul-2019
998,Revenue,CAHD,South - Bed Purchasing and Direct payments,Permanent Residential,Cleeve Lodge,3686.40, 30-Jul-2019
999,Revenue,CAHD,South - Bed Purchasing and Direct payments,Permanent Residential,Cleeve Lodge,1308.44, 02-Jul-2019
1000,Revenue,CAHD,South - Bed Purchasing and Direct payments,Permanent Residential,Cleeve Lodge,1308.44, 30-Jul-2019
1001,Revenue,CAHD,South - Bed Purchasing and Direct payments,Permanent Residential,Cleeve Lodge,2921.68, 02-Jul-2019
1002,Revenue,CAHD,South - Bed Purchasing and Direct payments,Permanent Residential,Cleeve Lodge,2921.68, 30-Jul-2019
1003,Revenue,CAHD,South - Bed Purchasing and Direct payments,Permanent Residential,Cleeve Lodge,3086.48, 02-Jul-2019
1004,Revenue,CAHD,South - Bed Purchasing and Direct payments,Permanent Residential,Cleeve Lodge,3086.48, 30-Jul-2019
1005,Revenue,CAHD,North - bed purchasing and direct  payments,Respite Emergency - Residential,Cleeve Lodge,2285.71, 30-Jul-2019
1006,Revenue,CAHD,North - bed purchasing and direct  payments,Respite Emergency - Residential,Cleeve Lodge,1714.29, 30-Jul-2019
1007,Revenue,CAHD,North - bed purchasing and direct  payments,Respite Planned - Residential,Cleeve Lodge,1714.29, 30-Jul-2019
1008,Revenue,CAHD,South - Bed Purchasing and Direct payments,Permanent Residential,Cleeve Lodge,22000.00, 30-Jul-2019
1009,Revenue,CAHD,South - Bed Purchasing and Direct payments,Permanent Residential,Cleeve Lodge,4000.00, 30-Jul-2019
1010,Revenue,CAHD,South - Bed Purchasing and Direct payments,Fees & Charges Income - General,Cleeve Lodge,4399.75, 30-Jul-2019
1011,Revenue,CAHD,South - Bed Purchasing and Direct payments,Permanent Residential,Cleeve Lodge,8357.14, 30-Jul-2019
1012,Revenue,CAHD,South - Bed Purchasing and Direct payments,Permanent Residential,Cleeve Lodge,1028.57, 30-Jul-2019
1013,Revenue,CAHD,Central - Bed Purchasing and Direct Payments,Respite Emergency - Residential,Cleeve Lodge,1000.00, 02-Jul-2019
1014,Revenue,CAHD,Central - Bed Purchasing and Direct Payments,Respite Emergency - Residential,Cleeve Lodge,1000.00, 02-Jul-2019
1015,Revenue,CAHD,South - Bed Purchasing and Direct payments,Permanent Residential,Cleeve Lodge,2893.00, 02-Jul-2019
1016,Revenue,CAHD,South - Bed Purchasing and Direct payments,Permanent Residential,Cleeve Lodge,2893.00, 30-Jul-2019
1017,Revenue,CAHD,South - Bed Purchasing and Direct payments,Permanent Residential,Cleeve Lodge,2635.60, 02-Jul-2019
1018,Revenue,CAHD,South - Bed Purchasing and Direct payments,Permanent Residential,Cleeve Lodge,2635.60, 30-Jul-2019
1019,Revenue,CAHD,South - Bed Purchasing and Direct payments,Respite Planned - Residential,Cleeve Lodge,1857.14, 02-Jul-2019
1020,Revenue,CAHD,North - bed purchasing and direct  payments,Permanent Nursing,Clevedon Court Nursing Home,8620.40, 02-Jul-2019
1021,Revenue,CAHD,North - bed purchasing and direct  payments,Permanent Nursing,Clevedon Court Nursing Home,8418.40, 02-Jul-2019
1022,Revenue,CAHD,North - bed purchasing and direct  payments,Permanent Nursing,Clevedon Court Nursing Home,3448.16, 02-Jul-2019
1023,Revenue,CAHD,North - bed purchasing and direct  payments,Fees & Charges Income - General,Clevedon Court Nursing Home,1361.27, 02-Jul-2019
1024,Revenue,CAHD,North - bed purchasing and direct  payments,Fees & Charges Income - General,Clevedon Court Nursing Home,1403.16, 02-Jul-2019
1025,Revenue,CAHD,North - bed purchasing and direct  payments,Permanent Nursing,Clevedon Court Nursing Home,3448.16, 30-Jul-2019
1026,Revenue,CAHD,Central - Community based support,Other Small Contracts,Clover Health and Home Care Ltd,1285.02, 12-Jul-2019
1027,Revenue,CAHD,Central - Community based support,Other Small Contracts,Clover Health and Home Care Ltd,1932.84, 12-Jul-2019
1028,Revenue,CAHD,North - Community based support,Other Small Contracts,Clover Health and Home Care Ltd,2676.24, 04-Jul-2019
1029,Revenue,CAHD,Central - Community based support,Other Small Contracts,Clover Health and Home Care Ltd,870.84, 26-Jul-2019
1030,Revenue,CAHD,Central - Community based support,Other Small Contracts,Clover Health and Home Care Ltd,1008.90, 30-Jul-2019
1031,Revenue,CAHD,Sexual Health,Other Small Contracts,Cohesian Consultancy,500.00, 01-Jul-2019
1032,Revenue,CAHD,Sexual Health,Other Small Contracts,Cohesian Consultancy,500.00, 01-Jul-2019
1033,Revenue,CAHD,South - Bed Purchasing and Direct payments,Permanent Residential,Collingwood Care Home,2826.24, 02-Jul-2019
1034,Revenue,CAHD,South - Bed Purchasing and Direct payments,Permanent Residential,Collingwood Care Home,2826.24, 30-Jul-2019
1035,Revenue,CAHD,South - Bed Purchasing and Direct payments,Permanent Residential,Collingwood Care Home,2241.28, 02-Jul-2019
1036,Revenue,CAHD,South - Bed Purchasing and Direct payments,Permanent Residential,Collingwood Care Home,2241.28, 30-Jul-2019
1037,Revenue,CAHD,South - Bed Purchasing and Direct payments,Permanent Residential,Collingwood Care Home,2420.80, 02-Jul-2019
1038,Revenue,CAHD,South - Bed Purchasing and Direct payments,Permanent Residential,Collingwood Care Home,2420.80, 30-Jul-2019
1039,Revenue,CAHD,North - bed purchasing and direct  payments,Permanent Residential,Collingwood Care Home,3535.71, 02-Jul-2019
1040,Revenue,CAHD,North - bed purchasing and direct  payments,Permanent Residential,Collingwood Care Home,3000.00, 02-Jul-2019
1041,Revenue,CAHD,North - bed purchasing and direct  payments,Permanent Residential,Collingwood Care Home,3000.00, 30-Jul-2019
1042,Revenue,CAHD,South - Bed Purchasing and Direct payments,Permanent Residential,Collingwood Care Home,2504.28, 02-Jul-2019
1043,Revenue,CAHD,South - Bed Purchasing and Direct payments,Permanent Residential,Collingwood Care Home,2504.28, 30-Jul-2019
1044,Revenue,CAHD,Statemented Support Equipment,Educational Supplies & Equipment,Connevans Limited,2472.25, 12-Jul-2019
1045,Revenue,CAHD,Bed and Breakfast,Bed & Breakfast,Connolly & Callaghan Limited,539.00, 24-Jul-2019
1046,Revenue,CAHD,Bed and Breakfast,Bed & Breakfast,Connolly & Callaghan Limited,623.00, 23-Jul-2019
1047,Revenue,CAHD,Bed and Breakfast,Bed & Breakfast,Connolly & Callaghan Limited,805.00, 25-Jul-2019
1048,Revenue,CAHD,Bed and Breakfast,Bed & Breakfast,Connolly & Callaghan Limited,574.00, 24-Jul-2019
1049,Revenue,CAHD,Bed and Breakfast,Bed & Breakfast,Connolly & Callaghan Limited,448.00, 25-Jul-2019
1050,Revenue,CAHD,Bed and Breakfast,Bed & Breakfast,Connolly & Callaghan Limited,490.00, 25-Jul-2019
1051,Revenue,CAHD,Bed and Breakfast,Bed & Breakfast,Connolly & Callaghan Limited,700.00, 24-Jul-2019
1052,Revenue,CAHD,Bed and Breakfast,Bed & Breakfast,Connolly & Callaghan Limited,504.00, 24-Jul-2019
1053,Revenue,CAHD,Bed and Breakfast,Bed & Breakfast,Connolly & Callaghan Limited,497.00, 25-Jul-2019
1054,Revenue,CAHD,Bed and Breakfast,Bed & Breakfast,Connolly & Callaghan Limited,448.00, 18-Jul-2019
1055,Revenue,CAHD,Bed and Breakfast,Bed & Breakfast,Connolly & Callaghan Limited,700.00, 02-Jul-2019
1056,Revenue,CAHD,Bed and Breakfast,Bed & Breakfast,Connolly & Callaghan Limited,448.00, 02-Jul-2019
1057,Revenue,CAHD,Bed and Breakfast,Bed & Breakfast,Connolly & Callaghan Limited,700.00, 02-Jul-2019
1058,Revenue,CAHD,Bed and Breakfast,Bed & Breakfast,Connolly & Callaghan Limited,448.00, 02-Jul-2019
1059,Revenue,CAHD,Bed and Breakfast,Bed & Breakfast,Connolly & Callaghan Limited,700.00, 02-Jul-2019
1060,Revenue,CAHD,Bed and Breakfast,Bed & Breakfast,Connolly & Callaghan Limited,448.00, 02-Jul-2019
1061,Revenue,CAHD,Bed and Breakfast,Bed & Breakfast,Connolly & Callaghan Limited,700.00, 02-Jul-2019
1062,Revenue,CAHD,Bed and Breakfast,Bed & Breakfast,Connolly & Callaghan Limited,448.00, 02-Jul-2019
1063,Revenue,CAHD,Bed and Breakfast,Bed & Breakfast,Connolly & Callaghan Limited,700.00, 02-Jul-2019
1064,Revenue,CAHD,Bed and Breakfast,Bed & Breakfast,Connolly & Callaghan Limited,637.00, 02-Jul-2019
1065,Revenue,CAHD,Bed and Breakfast,Bed & Breakfast,Connolly & Callaghan Limited,448.00, 02-Jul-2019
1066,Revenue,CAHD,Bed and Breakfast,Bed & Breakfast,Connolly & Callaghan Limited,700.00, 02-Jul-2019
1067,Revenue,CAHD,Bed and Breakfast,Bed & Breakfast,Connolly & Callaghan Limited,448.00, 02-Jul-2019
1068,Revenue,CAHD,Bed and Breakfast,Bed & Breakfast,Connolly & Callaghan Limited,448.00, 02-Jul-2019
1069,Revenue,CAHD,Bed and Breakfast,Bed & Breakfast,Connolly & Callaghan Limited,448.00, 02-Jul-2019
1070,Revenue,CAHD,Bed and Breakfast,Bed & Breakfast,Connolly & Callaghan Limited,539.00, 10-Jul-2019
1071,Revenue,CAHD,Bed and Breakfast,Bed & Breakfast,Connolly & Callaghan Limited,700.00, 10-Jul-2019
1072,Revenue,CAHD,Bed and Breakfast,Bed & Breakfast,Connolly & Callaghan Limited,504.00, 10-Jul-2019
1073,Revenue,CAHD,Bed and Breakfast,Bed & Breakfast,Connolly & Callaghan Limited,504.00, 03-Jul-2019
1074,Revenue,CAHD,Bed and Breakfast,Bed & Breakfast,Connolly & Callaghan Limited,497.00, 10-Jul-2019
1075,Revenue,CAHD,Bed and Breakfast,Bed & Breakfast,Connolly & Callaghan Limited,455.00, 03-Jul-2019
1076,Revenue,CAHD,Bed and Breakfast,Bed & Breakfast,Connolly & Callaghan Limited,441.00, 10-Jul-2019
1077,Revenue,CAHD,Bed and Breakfast,Bed & Breakfast,Connolly & Callaghan Limited,623.00, 03-Jul-2019
1078,Revenue,CAHD,Bed and Breakfast,Bed & Breakfast,Connolly & Callaghan Limited,539.00, 03-Jul-2019
1079,Revenue,CAHD,Bed and Breakfast,Bed & Breakfast,Connolly & Callaghan Limited,490.00, 10-Jul-2019
1080,Revenue,CAHD,Bed and Breakfast,Bed & Breakfast,Connolly & Callaghan Limited,455.00, 10-Jul-2019
1081,Revenue,CAHD,Bed and Breakfast,Bed & Breakfast,Connolly & Callaghan Limited,420.00, 10-Jul-2019
1082,Revenue,CAHD,Bed and Breakfast,Bed & Breakfast,Connolly & Callaghan Limited,497.00, 17-Jul-2019
1083,Revenue,CAHD,Bed and Breakfast,Bed & Breakfast,Connolly & Callaghan Limited,492.00, 10-Jul-2019
1084,Revenue,CAHD,Bed and Breakfast,Bed & Breakfast,Connolly & Callaghan Limited,539.00, 10-Jul-2019
1085,Revenue,CAHD,Bed and Breakfast,Bed & Breakfast,Connolly & Callaghan Limited,539.00, 16-Jul-2019
1086,Revenue,CAHD,Bed and Breakfast,Bed & Breakfast,Connolly & Callaghan Limited,490.00, 03-Jul-2019
1087,Revenue,CAHD,Bed and Breakfast,Bed & Breakfast,Connolly & Callaghan Limited,623.00, 03-Jul-2019
1088,Revenue,CAHD,Bed and Breakfast,Bed & Breakfast,Connolly & Callaghan Limited,490.00, 03-Jul-2019
1089,Revenue,CAHD,Bed and Breakfast,Bed & Breakfast,Connolly & Callaghan Limited,532.00, 18-Jul-2019
1090,Revenue,CAHD,Bed and Breakfast,Bed & Breakfast,Connolly & Callaghan Limited,490.00, 10-Jul-2019
1091,Revenue,CAHD,Bed and Breakfast,Bed & Breakfast,Connolly & Callaghan Limited,504.00, 11-Jul-2019
1092,Revenue,CAHD,Bed and Breakfast,Bed & Breakfast,Connolly & Callaghan Limited,504.00, 11-Jul-2019
1093,Revenue,CAHD,Bed and Breakfast,Bed & Breakfast,Connolly & Callaghan Limited,497.00, 11-Jul-2019
1094,Revenue,CAHD,Bed and Breakfast,Bed & Breakfast,Connolly & Callaghan Limited,455.00, 11-Jul-2019
1095,Revenue,CAHD,Bed and Breakfast,Bed & Breakfast,Connolly & Callaghan Limited,441.00, 18-Jul-2019
1096,Revenue,CAHD,Bed and Breakfast,Bed & Breakfast,Connolly & Callaghan Limited,539.00, 11-Jul-2019
1097,Revenue,CAHD,Bed and Breakfast,Bed & Breakfast,Connolly & Callaghan Limited,455.00, 11-Jul-2019
1098,Revenue,CAHD,Bed and Breakfast,Bed & Breakfast,Connolly & Callaghan Limited,539.00, 11-Jul-2019
1099,Revenue,CAHD,Bed and Breakfast,Bed & Breakfast,Connolly & Callaghan Limited,490.00, 17-Jul-2019
1100,Revenue,CAHD,Bed and Breakfast,Bed & Breakfast,Connolly & Callaghan Limited,497.00, 11-Jul-2019
1101,Revenue,CAHD,Bed and Breakfast,Bed & Breakfast,Connolly & Callaghan Limited,574.00, 11-Jul-2019
1102,Revenue,CAHD,Bed and Breakfast,Bed & Breakfast,Connolly & Callaghan Limited,539.00, 11-Jul-2019
1103,Revenue,CAHD,Bed and Breakfast,Bed & Breakfast,Connolly & Callaghan Limited,539.00, 18-Jul-2019
1104,Revenue,CAHD,Bed and Breakfast,Bed & Breakfast,Connolly & Callaghan Limited,490.00, 11-Jul-2019
1105,Revenue,CAHD,Bed and Breakfast,Bed & Breakfast,Connolly & Callaghan Limited,623.00, 11-Jul-2019
1106,Revenue,CAHD,Bed and Breakfast,Bed & Breakfast,Connolly & Callaghan Limited,490.00, 11-Jul-2019
1107,Revenue,CAHD,Bed and Breakfast,Bed & Breakfast,Connolly & Callaghan Limited,490.00, 11-Jul-2019
1108,Revenue,CAHD,Bed and Breakfast,Bed & Breakfast,Connolly & Callaghan Limited,504.00, 19-Jul-2019
1109,Revenue,CAHD,Bed and Breakfast,Bed & Breakfast,Connolly & Callaghan Limited,504.00, 19-Jul-2019
1110,Revenue,CAHD,Bed and Breakfast,Bed & Breakfast,Connolly & Callaghan Limited,497.00, 19-Jul-2019
1111,Revenue,CAHD,Bed and Breakfast,Bed & Breakfast,Connolly & Callaghan Limited,455.00, 19-Jul-2019
1112,Revenue,CAHD,Bed and Breakfast,Bed & Breakfast,Connolly & Callaghan Limited,441.00, 24-Jul-2019
1113,Revenue,CAHD,Bed and Breakfast,Bed & Breakfast,Connolly & Callaghan Limited,510.00, 19-Jul-2019
1114,Revenue,CAHD,Bed and Breakfast,Bed & Breakfast,Connolly & Callaghan Limited,539.00, 22-Jul-2019
1115,Revenue,CAHD,Bed and Breakfast,Bed & Breakfast,Connolly & Callaghan Limited,455.00, 19-Jul-2019
1116,Revenue,CAHD,Bed and Breakfast,Bed & Breakfast,Connolly & Callaghan Limited,539.00, 19-Jul-2019
1117,Revenue,CAHD,Bed and Breakfast,Bed & Breakfast,Connolly & Callaghan Limited,490.00, 19-Jul-2019
1118,Revenue,CAHD,Bed and Breakfast,Bed & Breakfast,Connolly & Callaghan Limited,497.00, 19-Jul-2019
1119,Revenue,CAHD,Bed and Breakfast,Bed & Breakfast,Connolly & Callaghan Limited,574.00, 19-Jul-2019
1120,Revenue,CAHD,Bed and Breakfast,Bed & Breakfast,Connolly & Callaghan Limited,539.00, 22-Jul-2019
1121,Revenue,CAHD,Bed and Breakfast,Bed & Breakfast,Connolly & Callaghan Limited,539.00, 22-Jul-2019
1122,Revenue,CAHD,Bed and Breakfast,Bed & Breakfast,Connolly & Callaghan Limited,490.00, 22-Jul-2019
1123,Revenue,CAHD,Bed and Breakfast,Bed & Breakfast,Connolly & Callaghan Limited,623.00, 22-Jul-2019
1124,Revenue,CAHD,Bed and Breakfast,Bed & Breakfast,Connolly & Callaghan Limited,490.00, 22-Jul-2019
1125,Revenue,CAHD,Bed and Breakfast,Bed & Breakfast,Connolly & Callaghan Limited,490.00, 22-Jul-2019
1126,Revenue,CAHD,Bed and Breakfast,Bed & Breakfast,Connolly & Callaghan Limited,455.00, 30-Jul-2019
1127,Revenue,CAHD,Bed and Breakfast,Bed & Breakfast,Connolly & Callaghan Limited,441.00, 30-Jul-2019
1128,Revenue,CAHD,Bed and Breakfast,Bed & Breakfast,Connolly & Callaghan Limited,714.00, 30-Jul-2019
1129,Revenue,CAHD,Bed and Breakfast,Bed & Breakfast,Connolly & Callaghan Limited,539.00, 31-Jul-2019
1130,Revenue,CAHD,Bed and Breakfast,Bed & Breakfast,Connolly & Callaghan Limited,497.00, 30-Jul-2019
1131,Revenue,CAHD,Bed and Breakfast,Bed & Breakfast,Connolly & Callaghan Limited,574.00, 30-Jul-2019
1132,Revenue,CAHD,Bed and Breakfast,Bed & Breakfast,Connolly & Callaghan Limited,539.00, 30-Jul-2019
1133,Revenue,CAHD,Bed and Breakfast,Bed & Breakfast,Connolly & Callaghan Limited,539.00, 30-Jul-2019
1134,Revenue,CAHD,Bed and Breakfast,Bed & Breakfast,Connolly & Callaghan Limited,490.00, 30-Jul-2019
1135,Revenue,CAHD,Bed and Breakfast,Bed & Breakfast,Connolly & Callaghan Limited,623.00, 30-Jul-2019
1136,Revenue,CAHD,Bed and Breakfast,Bed & Breakfast,Connolly & Callaghan Limited,490.00, 31-Jul-2019
1137,Revenue,CAHD,Bed and Breakfast,Bed & Breakfast,Connolly & Callaghan Limited,426.00, 30-Jul-2019
1138,Revenue,CAHD,Bed and Breakfast,Bed & Breakfast,Connolly & Callaghan Limited,490.00, 30-Jul-2019
1139,Revenue,CAHD,CSC - Vinney Green Secure Unit,Service Contracts (Premises),Coram Voice,1948.50, 11-Jul-2019
1140,Revenue,CAHD,Alexandra Way,Cleaning & Domestic Services,Countrywide Healthcare Supplies Ltd,482.38, 22-Jul-2019
1141,Revenue,CAHD,Early Years High Needs Support,Other Private Contractors,Courtney Ladybirds Pre-School,716.36, 26-Jul-2019
1142,Revenue,CAHD,North - bed purchasing and direct  payments,Permanent Residential,Cream Iii Ltd,8644.00, 02-Jul-2019
1143,Revenue,CAHD,North - bed purchasing and direct  payments,Permanent Residential,Cream Iii Ltd,8644.00, 30-Jul-2019
1144,Revenue,CAHD,S28A cases,Permanent Residential,Creedy Court,10597.96, 02-Jul-2019
1145,Revenue,CAHD,S28A cases,Permanent Residential,Creedy Court,10597.96, 30-Jul-2019
1146,Revenue,CAHD,S28A cases,Permanent Residential,Creedy Court,8904.92, 02-Jul-2019
1147,Revenue,CAHD,S28A cases,Permanent Residential,Creedy Court,8904.92, 30-Jul-2019
1148,Revenue,CAHD,North - bed purchasing and direct  payments,Permanent Residential,Creedy Court,14054.00, 02-Jul-2019
1149,Revenue,CAHD,North - bed purchasing and direct  payments,Permanent Residential,Creedy Court,14054.00, 30-Jul-2019
1150,Revenue,CAHD,Healthy Lifestyle & Wellbeing Service,Other Supplies & Services,Creotec Limited,2800.00, 05-Jul-2019
1151,Revenue,CAHD,Training Budget - Children`s Social Serv,Training Expenses,Cruidin Training and Consultancy Ltd,2105.60, 11-Jul-2019
1152,Revenue,CAHD,Training Budget - Children`s Social Serv,Training Expenses,Cruidin Training and Consultancy Ltd,1059.50, 26-Jul-2019
1153,Revenue,CAHD,Homelessness Contingency,Other Supplies & Services,Curo Housing Group,1496.92, 10-Jul-2019
1154,Revenue,CAHD,South - Bed Purchasing and Direct payments,Permanent Residential,Daneswood,12268.80, 02-Jul-2019
1155,Revenue,CAHD,South - Bed Purchasing and Direct payments,Permanent Residential,Daneswood,12268.80, 30-Jul-2019
1156,Revenue,CAHD,South - community based support,Day Care / Social Activities,Daneswood,1413.28, 02-Jul-2019
1157,Revenue,CAHD,South - community based support,Day Care / Social Activities,Daneswood,1413.28, 30-Jul-2019
1158,Revenue,CAHD,North - bed purchasing and direct  payments,Permanent Residential,Daneswood,10264.00, 02-Jul-2019
1159,Revenue,CAHD,North - bed purchasing and direct  payments,Permanent Residential,Daneswood,10264.00, 30-Jul-2019
1160,Revenue,CAHD,North - S117,Permanent Nursing,Danshell Healthcare Group,10872.28, 02-Jul-2019
1161,Revenue,CAHD,Jointly Funded H&SC Packages,Permanent Nursing,Danshell Healthcare Group,1613.28, 02-Jul-2019
1162,Revenue,CAHD,North - S117,Permanent Nursing,Danshell Healthcare Group,10872.28, 30-Jul-2019
1163,Revenue,CAHD,Jointly Funded H&SC Packages,Permanent Nursing,Danshell Healthcare Group,1613.28, 30-Jul-2019
1164,Revenue,CAHD,Learning Difficulties PSL,Other Supplies & Services,Individual,2108.40, 22-Jul-2019
1165,Revenue,CAHD,North - Community based support,Day Care / Social Activities,Deafblind Uk,626.08, 12-Jul-2019
1166,Revenue,CAHD,South - community based support,Day Care / Social Activities,Deafblind Uk,1039.74, 30-Jul-2019
1167,Revenue,CAHD,North - Community based support,Day Care / Social Activities,Deafblind Uk,626.08, 30-Jul-2019
1168,Revenue,CAHD,CAHC - Complaints & Advocacy Service,Complaints External Expenses,Dena Allen,882.50, 31-Jul-2019
1169,Revenue,CAHD,Schools Specific Grant Income,Other Public Bodies,Dene Magna School,630.00, 01-Jul-2019
1170,Revenue,CAHD,South - community based support,Supported Living,Design House,2661.20, 02-Jul-2019
1171,Revenue,CAHD,South - community based support,Supported Living,Design House,2661.20, 30-Jul-2019
1172,Revenue,CAHD,South - community based support,Supported Living,Design House,3063.00, 02-Jul-2019
1173,Revenue,CAHD,South - community based support,Supported Living,Design House,3063.00, 30-Jul-2019
1174,Revenue,CAHD,South - community based support,Supported Living,Design House,3132.76, 02-Jul-2019
1175,Revenue,CAHD,South - community based support,Supported Living,Design House,3132.76, 30-Jul-2019
1176,Revenue,CAHD,South - community based support,Supported Living,Design House,2993.28, 02-Jul-2019
1177,Revenue,CAHD,South - community based support,Supported Living,Design House,2993.28, 30-Jul-2019
1178,Revenue,CAHD,South - community based support,Day Care / Social Activities,Design House,516.32, 02-Jul-2019
1179,Revenue,CAHD,South - community based support,Day Care / Social Activities,Design House,516.32, 30-Jul-2019
1180,Revenue,CAHD,18-25 Year Olds,Supported Living,Design House,823.56, 02-Jul-2019
1181,Revenue,CAHD,Central - Community based support,Day Care / Social Activities,Design House,2440.84, 02-Jul-2019
1182,Revenue,CAHD,Central - Community based support,Day Care / Social Activities,Design House,2440.84, 30-Jul-2019
1183,Revenue,CAHD,South - community based support,Day Care / Social Activities,Design House,921.28, 02-Jul-2019
1184,Revenue,CAHD,South - community based support,Day Care / Social Activities,Design House,921.28, 30-Jul-2019
1185,Revenue,CAHD,South - community based support,Supported Living,Design House,2638.60, 02-Jul-2019
1186,Revenue,CAHD,South - community based support,Supported Living,Design House,2638.60, 30-Jul-2019
1187,Revenue,CAHD,South - community based support,Supported Living,Design House,2638.60, 02-Jul-2019
1188,Revenue,CAHD,South - community based support,Supported Living,Design House,2638.60, 30-Jul-2019
1189,Revenue,CAHD,South - community based support,Supported Living,Design House,2149.32, 02-Jul-2019
1190,Revenue,CAHD,South - community based support,Supported Living,Design House,2149.32, 30-Jul-2019
1191,Revenue,CAHD,South - community based support,Day Care / Social Activities,Design House,516.32, 02-Jul-2019
1192,Revenue,CAHD,South - community based support,Supported Living,Design House,1896.52, 02-Jul-2019
1193,Revenue,CAHD,South - community based support,Day Care / Social Activities,Design House,516.32, 30-Jul-2019
1194,Revenue,CAHD,South - community based support,Supported Living,Design House,1896.52, 30-Jul-2019
1195,Revenue,CAHD,South - community based support,Supported Living,Design House,2516.60, 02-Jul-2019
1196,Revenue,CAHD,South - community based support,Supported Living,Design House,2516.60, 30-Jul-2019
1197,Revenue,CAHD,South - community based support,Supported Living,Design House,4307.12, 02-Jul-2019
1198,Revenue,CAHD,South - community based support,Supported Living,Design House,4307.12, 30-Jul-2019
1199,Revenue,CAHD,North - Community based support,Supported Living,Design House,3054.24, 02-Jul-2019
1200,Revenue,CAHD,North - Community based support,Supported Living,Design House,3054.24, 30-Jul-2019
1201,Revenue,CAHD,South - community based support,Day Care / Social Activities,Design House,1505.96, 02-Jul-2019
1202,Revenue,CAHD,South - community based support,Day Care / Social Activities,Design House,1505.96, 30-Jul-2019
1203,Revenue,CAHD,South - community based support,Supported Living,Design House,2924.68, 02-Jul-2019
1204,Revenue,CAHD,South - community based support,Supported Living,Design House,2924.68, 30-Jul-2019
1205,Revenue,CAHD,South - community based support,Supported Living,Design House,2542.80, 02-Jul-2019
1206,Revenue,CAHD,South - community based support,Supported Living,Design House,2542.80, 30-Jul-2019
1207,Revenue,CAHD,South - community based support,Supported Living,Design House,2257.48, 02-Jul-2019
1208,Revenue,CAHD,South - community based support,Supported Living,Design House,2257.48, 30-Jul-2019
1209,Revenue,CAHD,South - community based support,Supported Living,Design House,2257.48, 02-Jul-2019
1210,Revenue,CAHD,South - community based support,Supported Living,Design House,2257.48, 30-Jul-2019
1211,Revenue,CAHD,Central - Community based support,Other Small Contracts,Dhek Bhal,42.16, 03-Jul-2019
1212,Revenue,CAHD,South - community based support,Other Small Contracts,Dhek Bhal,500.65, 03-Jul-2019
1213,Revenue,CAHD,Central - Community based support,Other Small Contracts,Dhek Bhal,42.16, 17-Jul-2019
1214,Revenue,CAHD,South - community based support,Other Small Contracts,Dhek Bhal,484.84, 17-Jul-2019
1215,Revenue,CAHD,Central - Community based support,Other Small Contracts,Dhek Bhal,42.16, 25-Jul-2019
1216,Revenue,CAHD,South - community based support,Other Small Contracts,Dhek Bhal,495.38, 25-Jul-2019
1217,Revenue,CAHD,South - community based support,Supported Living,Dimensions  Suite 2,1903.12, 02-Jul-2019
1218,Revenue,CAHD,South - community based support,Supported Living,Dimensions  Suite 2,1903.12, 30-Jul-2019
1219,Revenue,CAHD,South - community based support,Supported Living,Dimensions  Suite 2,1902.28, 02-Jul-2019
1220,Revenue,CAHD,South - community based support,Supported Living,Dimensions  Suite 2,1902.28, 30-Jul-2019
1221,Revenue,CAHD,South - community based support,Supported Living,Dimensions  Suite 2,1902.28, 02-Jul-2019
1222,Revenue,CAHD,South - community based support,Supported Living,Dimensions  Suite 2,1902.28, 30-Jul-2019
1223,Revenue,CAHD,South - community based support,Supported Living,Dimensions  Suite 2,1902.28, 02-Jul-2019
1224,Revenue,CAHD,South - community based support,Supported Living,Dimensions  Suite 2,1902.28, 30-Jul-2019
1225,Revenue,CAHD,South - Bed Purchasing and Direct payments,Permanent Residential,Dimensions  Suite 2,5630.76, 02-Jul-2019
1226,Revenue,CAHD,South - Bed Purchasing and Direct payments,Permanent Residential,Dimensions  Suite 2,5630.76, 30-Jul-2019
1227,Revenue,CAHD,South - Bed Purchasing and Direct payments,Permanent Residential,Dimensions  Suite 2,2806.12, 02-Jul-2019
1228,Revenue,CAHD,South - Bed Purchasing and Direct payments,Permanent Residential,Dimensions  Suite 2,2806.12, 30-Jul-2019
1229,Revenue,CAHD,CSC - Section 17 SOUTH,Other Supplies & Services,Dobbins Industrial Cleaning Limited,680.00, 31-Jul-2019
1230,Revenue,CAHD,Central - Community based support,Other Small Contracts,DoCare Limited,14110.54, 01-Jul-2019
1231,Revenue,CAHD,South - community based support,Day Care / Social Activities,DoCare Limited,64.80, 01-Jul-2019
1232,Revenue,CAHD,South - community based support,Other Small Contracts,DoCare Limited,424.20, 01-Jul-2019
1233,Revenue,CAHD,North - Community based support,Other Small Contracts,DoCare Limited,5243.05, 01-Jul-2019
1234,Revenue,CAHD,Central - Community based support,Other Small Contracts,DoCare Limited,13779.36, 17-Jul-2019
1235,Revenue,CAHD,South - community based support,Day Care / Social Activities,DoCare Limited,64.80, 17-Jul-2019
1236,Revenue,CAHD,South - community based support,Other Small Contracts,DoCare Limited,413.85, 17-Jul-2019
1237,Revenue,CAHD,North - Community based support,Other Small Contracts,DoCare Limited,5696.44, 17-Jul-2019
1238,Revenue,CAHD,Central - Community based support,Other Small Contracts,DoCare Limited,13923.84, 17-Jul-2019
1239,Revenue,CAHD,South - community based support,Day Care / Social Activities,DoCare Limited,70.20, 17-Jul-2019
1240,Revenue,CAHD,South - community based support,Other Small Contracts,DoCare Limited,440.55, 17-Jul-2019
1241,Revenue,CAHD,North - Community based support,Other Small Contracts,DoCare Limited,6123.97, 17-Jul-2019
1242,Revenue,CAHD,Central - Community based support,Other Small Contracts,DoCare Limited,14050.22, 31-Jul-2019
1243,Revenue,CAHD,South - community based support,Day Care / Social Activities,DoCare Limited,81.00, 31-Jul-2019
1244,Revenue,CAHD,South - community based support,Other Small Contracts,DoCare Limited,435.15, 31-Jul-2019
1245,Revenue,CAHD,North - Community based support,Other Small Contracts,DoCare Limited,5421.76, 31-Jul-2019
1246,Revenue,CAHD,0-18 Social Care Support Team,Legal Fees,Douglas Leach,800.00, 26-Jul-2019
1247,Revenue,CAHD,Tobacco Control,Other Small Contracts,Downend Health Group,635.00, 10-Jul-2019
1248,Revenue,CAHD,Statemented Support Academies,Other Public Bodies,Downend School,978.71, 24-Jul-2019
1249,Revenue,CAHD,Statemented Support Academies,Other Public Bodies,Downend School,1025.88, 24-Jul-2019
1250,Revenue,CAHD,Statemented Support Academies,Other Public Bodies,Downend School,1014.08, 24-Jul-2019
1251,Revenue,CAHD,Statemented Support Academies,Other Public Bodies,Downend School,801.83, 24-Jul-2019
1252,Revenue,CAHD,Statemented Support Academies,Other Public Bodies,Downend School,530.63, 24-Jul-2019
1253,Revenue,CAHD,Statemented Support Academies,Other Public Bodies,Downend School,1108.42, 24-Jul-2019
1254,Revenue,CAHD,Statemented Support Academies,Other Public Bodies,Downend School,554.21, 24-Jul-2019
1255,Revenue,CAHD,Statemented Support Academies,Other Public Bodies,Downend School,1709.79, 24-Jul-2019
1256,Revenue,CAHD,Social Lettings Agency,Other Supplies & Services,Individual,534.84, 24-Jul-2019
1257,Revenue,CAHD,Central - Bed Purchasing and Direct Payments,Permanent Nursing,Drakes Court,6195.86, 02-Jul-2019
1258,Revenue,CAHD,Central - Bed Purchasing and Direct Payments,Fees & Charges Income - General,Drakes Court,1589.53, 02-Jul-2019
1259,Revenue,CAHD,Bed and Breakfast,Bed & Breakfast,Individual,706.65, 10-Jul-2019
1260,Revenue,CAHD,Bed and Breakfast,Bed & Breakfast,Individual,418.25, 02-Jul-2019
1261,Revenue,CAHD,Bed and Breakfast,Bed & Breakfast,Individual,418.25, 02-Jul-2019
1262,Revenue,CAHD,Bed and Breakfast,Bed & Breakfast,Individual,418.25, 03-Jul-2019
1263,Revenue,CAHD,Bed and Breakfast,Bed & Breakfast,Individual,418.25, 01-Jul-2019
1264,Revenue,CAHD,Bed and Breakfast,Bed & Breakfast,Individual,418.25, 24-Jul-2019
1265,Revenue,CAHD,Bed and Breakfast,Bed & Breakfast,Individual,418.25, 17-Jul-2019
1266,Revenue,CAHD,Bed and Breakfast,Bed & Breakfast,Individual,418.25, 17-Jul-2019
1267,Revenue,CAHD,Bed and Breakfast,Bed & Breakfast,Individual,418.25, 24-Jul-2019
1268,Revenue,CAHD,Bed and Breakfast,Bed & Breakfast,Individual,418.25, 24-Jul-2019
1269,Revenue,CAHD,Bed and Breakfast,Bed & Breakfast,Individual,418.25, 31-Jul-2019
1270,Revenue,CAHD,North - bed purchasing and direct  payments,Permanent Residential,East Court,2763.56, 02-Jul-2019
1271,Revenue,CAHD,North - bed purchasing and direct  payments,Permanent Residential,East Court,2763.56, 30-Jul-2019
1272,Revenue,CAHD,CSC - Ofsted Work,Conference Expenses,Edge Church International,2460.00, 04-Jul-2019
1273,Revenue,CAHD,South - Bed Purchasing and Direct payments,Permanent Residential,Edgecumbe Lodge,2662.40, 02-Jul-2019
1274,Revenue,CAHD,South - Bed Purchasing and Direct payments,Permanent Residential,Edgecumbe Lodge,2662.40, 30-Jul-2019
1275,Revenue,CAHD,South - Bed Purchasing and Direct payments,Permanent Residential,Edgecumbe Lodge,2662.40, 02-Jul-2019
1276,Revenue,CAHD,South - Bed Purchasing and Direct payments,Permanent Residential,Edgecumbe Lodge,2662.40, 30-Jul-2019
1277,Revenue,CAHD,South - Bed Purchasing and Direct payments,Permanent Residential,Edgecumbe Lodge,2230.32, 02-Jul-2019
1278,Revenue,CAHD,South - Bed Purchasing and Direct payments,Permanent Residential,Edgecumbe Lodge,2230.32, 30-Jul-2019
1279,Revenue,CAHD,North - S117,Permanent Residential,Edgecumbe Lodge,2719.76, 02-Jul-2019
1280,Revenue,CAHD,North - S117,Permanent Residential,Edgecumbe Lodge,2719.76, 30-Jul-2019
1281,Revenue,CAHD,South - Bed Purchasing and Direct payments,Permanent Residential,Edgecumbe Lodge,2662.40, 02-Jul-2019
1282,Revenue,CAHD,South - Bed Purchasing and Direct payments,Permanent Residential,Edgecumbe Lodge,2662.40, 30-Jul-2019
1283,Revenue,CAHD,North - bed purchasing and direct  payments,Respite Emergency - Residential,Edgecumbe Lodge,2740.00, 02-Jul-2019
1284,Revenue,CAHD,North - bed purchasing and direct  payments,Permanent Residential,Edgecumbe Lodge,2740.00, 30-Jul-2019
1285,Revenue,CAHD,South - Bed Purchasing and Direct payments,Permanent Residential,Edgecumbe Lodge,2303.60, 02-Jul-2019
1286,Revenue,CAHD,South - Bed Purchasing and Direct payments,Permanent Residential,Edgecumbe Lodge,2303.60, 30-Jul-2019
1287,Revenue,CAHD,South - Bed Purchasing and Direct payments,Permanent Residential,Edgecumbe Lodge,2504.28, 02-Jul-2019
1288,Revenue,CAHD,South - Bed Purchasing and Direct payments,Permanent Residential,Edgecumbe Lodge,2504.28, 30-Jul-2019
1289,Revenue,CAHD,South - Bed Purchasing and Direct payments,Permanent Residential,Edgecumbe Lodge,2536.84, 02-Jul-2019
1290,Revenue,CAHD,South - Bed Purchasing and Direct payments,Permanent Residential,Edgecumbe Lodge,2536.84, 30-Jul-2019
1291,Revenue,CAHD,South - Bed Purchasing and Direct payments,Permanent Residential,Edgecumbe Lodge,2662.40, 02-Jul-2019
1292,Revenue,CAHD,South - Bed Purchasing and Direct payments,Permanent Residential,Edgecumbe Lodge,2662.40, 30-Jul-2019
1293,Revenue,CAHD,South - Bed Purchasing and Direct payments,Permanent Residential,Edgemont House Ltd,3835.61, 02-Jul-2019
1294,Revenue,CAHD,South - Bed Purchasing and Direct payments,Permanent Residential,Edgemont House Ltd,2826.24, 02-Jul-2019
1295,Revenue,CAHD,South - Bed Purchasing and Direct payments,Permanent Residential,Edgemont House Ltd,2826.24, 30-Jul-2019
1296,Revenue,CAHD,South - Bed Purchasing and Direct payments,Permanent Residential,Edgemont House Ltd,2022.76, 02-Jul-2019
1297,Revenue,CAHD,South - Bed Purchasing and Direct payments,Permanent Residential,Edgemont House Ltd,2022.76, 30-Jul-2019
1298,Revenue,CAHD,North - bed purchasing and direct  payments,Respite Planned - Residential,Edgemont House Ltd,11142.86, 02-Jul-2019
1299,Revenue,CAHD,North - bed purchasing and direct  payments,Respite Planned - Residential,Edgemont House Ltd,3291.43, 02-Jul-2019
1300,Revenue,CAHD,South Glos Users in South Glos Homes,Permanent Nursing,Edgemont View Nursing Home,662.24, 02-Jul-2019
1301,Revenue,CAHD,South Glos Users in South Glos Homes,Permanent Nursing,Edgemont View Nursing Home,662.24, 30-Jul-2019
1302,Revenue,CAHD,South - Bed Purchasing and Direct payments,Permanent Nursing,Edgemont View Nursing Home,3584.00, 02-Jul-2019
1303,Revenue,CAHD,South - Bed Purchasing and Direct payments,Permanent Nursing,Edgemont View Nursing Home,3584.00, 30-Jul-2019
1304,Revenue,CAHD,South - Bed Purchasing and Direct payments,Fees & Charges Income - General,Edgemont View Nursing Home,1987.05, 30-Jul-2019
1305,Revenue,CAHD,South Glos Users in South Glos Homes,Permanent Nursing,Edgemont View Nursing Home,662.24, 02-Jul-2019
1306,Revenue,CAHD,South Glos Users in South Glos Homes,Permanent Nursing,Edgemont View Nursing Home,662.24, 30-Jul-2019
1307,Revenue,CAHD,South Glos Users in South Glos Homes,Permanent Nursing,Edgemont View Nursing Home,662.24, 02-Jul-2019
1308,Revenue,CAHD,South Glos Users in South Glos Homes,Permanent Nursing,Edgemont View Nursing Home,662.24, 30-Jul-2019
1309,Revenue,CAHD,South - Bed Purchasing and Direct payments,Permanent Nursing,Edgemont View Nursing Home,2560.00, 02-Jul-2019
1310,Revenue,CAHD,South Glos Users in South Glos Homes,Permanent Nursing,Edgemont View Nursing Home,662.24, 02-Jul-2019
1311,Revenue,CAHD,South - Bed Purchasing and Direct payments,Permanent Nursing,Edgemont View Nursing Home,2560.00, 30-Jul-2019
1312,Revenue,CAHD,South Glos Users in South Glos Homes,Permanent Nursing,Edgemont View Nursing Home,662.24, 30-Jul-2019
1313,Revenue,CAHD,South - Bed Purchasing and Direct payments,Permanent Nursing,Edgemont View Nursing Home,4129.44, 02-Jul-2019
1314,Revenue,CAHD,South Glos Users in South Glos Homes,Permanent Nursing,Edgemont View Nursing Home,662.24, 02-Jul-2019
1315,Revenue,CAHD,South - Bed Purchasing and Direct payments,Permanent Nursing,Edgemont View Nursing Home,4129.44, 30-Jul-2019
1316,Revenue,CAHD,South Glos Users in South Glos Homes,Permanent Nursing,Edgemont View Nursing Home,662.24, 30-Jul-2019
1317,Revenue,CAHD,South Glos Users in South Glos Homes,Permanent Nursing,Edgemont View Nursing Home,662.24, 02-Jul-2019
1318,Revenue,CAHD,South Glos Users in South Glos Homes,Permanent Nursing,Edgemont View Nursing Home,662.24, 30-Jul-2019
1319,Revenue,CAHD,South Glos Users in South Glos Homes,Permanent Nursing,Edgemont View Nursing Home,662.24, 02-Jul-2019
1320,Revenue,CAHD,South Glos Users in South Glos Homes,Permanent Nursing,Edgemont View Nursing Home,662.24, 30-Jul-2019
1321,Revenue,CAHD,South Glos Users in South Glos Homes,Permanent Nursing,Edgemont View Nursing Home,662.24, 02-Jul-2019
1322,Revenue,CAHD,South Glos Users in South Glos Homes,Permanent Nursing,Edgemont View Nursing Home,662.24, 30-Jul-2019
1323,Revenue,CAHD,South - Bed Purchasing and Direct payments,Permanent Nursing,Edgemont View Nursing Home,3005.16, 02-Jul-2019
1324,Revenue,CAHD,South Glos Users in South Glos Homes,Permanent Nursing,Edgemont View Nursing Home,662.24, 02-Jul-2019
1325,Revenue,CAHD,South - Bed Purchasing and Direct payments,Permanent Nursing,Edgemont View Nursing Home,3005.16, 30-Jul-2019
1326,Revenue,CAHD,South Glos Users in South Glos Homes,Permanent Nursing,Edgemont View Nursing Home,662.24, 30-Jul-2019
1327,Revenue,CAHD,South Glos Users in South Glos Homes,Permanent Nursing,Edgemont View Nursing Home,662.24, 02-Jul-2019
1328,Revenue,CAHD,South Glos Users in South Glos Homes,Permanent Nursing,Edgemont View Nursing Home,662.24, 30-Jul-2019
1329,Revenue,CAHD,South Glos Users in South Glos Homes,Permanent Nursing,Edgemont View Nursing Home,948.96, 30-Jul-2019
1330,Revenue,CAHD,South Glos Users in South Glos Homes,Permanent Nursing,Edgemont View Nursing Home,662.24, 02-Jul-2019
1331,Revenue,CAHD,South Glos Users in South Glos Homes,Permanent Nursing,Edgemont View Nursing Home,662.24, 30-Jul-2019
1332,Revenue,CAHD,South - Bed Purchasing and Direct payments,Respite Emergency - Residential,Edgemont View Nursing Home,3500.00, 02-Jul-2019
1333,Revenue,CAHD,South - Bed Purchasing and Direct payments,Respite Emergency - Residential,Edgemont View Nursing Home,2125.00, 02-Jul-2019
1334,Revenue,CAHD,South - Bed Purchasing and Direct payments,Respite Emergency - Residential,Edgemont View Nursing Home,1375.00, 30-Jul-2019
1335,Revenue,CAHD,South Glos Users in South Glos Homes,Permanent Nursing,Edgemont View Nursing Home,662.24, 02-Jul-2019
1336,Revenue,CAHD,South Glos Users in South Glos Homes,Permanent Nursing,Edgemont View Nursing Home,662.24, 30-Jul-2019
1337,Revenue,CAHD,South - Bed Purchasing and Direct payments,Permanent Nursing,Edgemont View Nursing Home,3005.16, 02-Jul-2019
1338,Revenue,CAHD,South Glos Users in South Glos Homes,Permanent Nursing,Edgemont View Nursing Home,662.24, 02-Jul-2019
1339,Revenue,CAHD,South - Bed Purchasing and Direct payments,Permanent Nursing,Edgemont View Nursing Home,3005.16, 30-Jul-2019
1340,Revenue,CAHD,South Glos Users in South Glos Homes,Permanent Nursing,Edgemont View Nursing Home,662.24, 30-Jul-2019
1341,Revenue,CAHD,South Glos Users in South Glos Homes,Permanent Nursing,Edgemont View Nursing Home,662.24, 02-Jul-2019
1342,Revenue,CAHD,South Glos Users in South Glos Homes,Permanent Nursing,Edgemont View Nursing Home,662.24, 30-Jul-2019
1343,Revenue,CAHD,South - Bed Purchasing and Direct payments,Permanent Nursing,Edgemont View Nursing Home,3584.00, 02-Jul-2019
1344,Revenue,CAHD,South - Bed Purchasing and Direct payments,Permanent Nursing,Edgemont View Nursing Home,3584.00, 30-Jul-2019
1345,Revenue,CAHD,South Glos Users in South Glos Homes,Permanent Nursing,Edgemont View Nursing Home,2483.40, 30-Jul-2019
1346,Revenue,CAHD,South Glos Users in South Glos Homes,Permanent Nursing,Edgemont View Nursing Home,662.24, 30-Jul-2019
1347,Revenue,CAHD,South Glos Users in South Glos Homes,Permanent Nursing,Edgemont View Nursing Home,542.26, 30-Jul-2019
1348,Revenue,CAHD,South - Bed Purchasing and Direct payments,Permanent Nursing,Edgemont View Nursing Home,3400.00, 02-Jul-2019
1349,Revenue,CAHD,South - Bed Purchasing and Direct payments,Permanent Nursing,Edgemont View Nursing Home,3400.00, 30-Jul-2019
1350,Revenue,CAHD,South Glos Users in South Glos Homes,Permanent Nursing,Edgemont View Nursing Home,2152.28, 30-Jul-2019
1351,Revenue,CAHD,South Glos Users in South Glos Homes,Permanent Nursing,Edgemont View Nursing Home,662.24, 30-Jul-2019
1352,Revenue,CAHD,CSC - Vinney Green Secure Unit,Educational Materials,Edusoft Limited,1400.00, 15-Jul-2019
1353,Revenue,CAHD,Planning and Partnerships Procurement,Other Supplies & Services,Eldercare,2971.92, 30-Jul-2019
1354,Revenue,CAHD,Planning and Partnerships Procurement,Other Supplies & Services,Eldercare,2979.24, 30-Jul-2019
1355,Revenue,CAHD,Planning and Partnerships Procurement,Other Supplies & Services,Eldercare,2585.27, 02-Jul-2019
1356,Revenue,CAHD,Planning and Partnerships Procurement,Other Supplies & Services,Eldercare,2486.32, 30-Jul-2019
1357,Revenue,CAHD,Supporting People Programme,Grants to Voluntary Bodies,Elim Housing Association Limited,5372.63, 01-Jul-2019
1358,Revenue,CAHD,Pathway 1 - Re-Ablement Home Care,Other Small Contracts,Elite Home Care Ltd,788.64, 11-Jul-2019
1359,Revenue,CAHD,South - community based support,Day Care / Social Activities,Elite Home Care Ltd,208.32, 01-Jul-2019
1360,Revenue,CAHD,South - community based support,Other Small Contracts,Elite Home Care Ltd,8345.72, 01-Jul-2019
1361,Revenue,CAHD,North - Community based support,Other Small Contracts,Elite Home Care Ltd,292.64, 01-Jul-2019
1362,Revenue,CAHD,South - community based support,Day Care / Social Activities,Elite Home Care Ltd,203.36, 03-Jul-2019
1363,Revenue,CAHD,South - community based support,Other Small Contracts,Elite Home Care Ltd,8222.52, 03-Jul-2019
1364,Revenue,CAHD,North - Community based support,Other Small Contracts,Elite Home Care Ltd,287.68, 03-Jul-2019
1365,Revenue,CAHD,South - community based support,Day Care / Social Activities,Elite Home Care Ltd,208.32, 11-Jul-2019
1366,Revenue,CAHD,South - community based support,Other Small Contracts,Elite Home Care Ltd,8336.77, 11-Jul-2019
1367,Revenue,CAHD,North - Community based support,Other Small Contracts,Elite Home Care Ltd,282.72, 11-Jul-2019
1368,Revenue,CAHD,South - community based support,Day Care / Social Activities,Elite Home Care Ltd,203.36, 17-Jul-2019
1369,Revenue,CAHD,South - community based support,Other Small Contracts,Elite Home Care Ltd,9407.73, 17-Jul-2019
1370,Revenue,CAHD,North - Community based support,Other Small Contracts,Elite Home Care Ltd,282.72, 17-Jul-2019
1371,Revenue,CAHD,South - community based support,Day Care / Social Activities,Elite Home Care Ltd,203.36, 24-Jul-2019
1372,Revenue,CAHD,South - community based support,Other Small Contracts,Elite Home Care Ltd,9209.73, 24-Jul-2019
1373,Revenue,CAHD,North - Community based support,Other Small Contracts,Elite Home Care Ltd,272.80, 24-Jul-2019
1374,Revenue,CAHD,South - community based support,Day Care / Social Activities,Elite Home Care Ltd,208.32, 30-Jul-2019
1375,Revenue,CAHD,South - community based support,Other Small Contracts,Elite Home Care Ltd,8560.14, 30-Jul-2019
1376,Revenue,CAHD,North - Community based support,Other Small Contracts,Elite Home Care Ltd,282.72, 30-Jul-2019
1377,Revenue,CAHD,CSC - Legal Fees,Legal Fees,Elizabeth Harris,450.00, 23-Jul-2019
1378,Revenue,CAHD,CSC - Legal Fees,Legal Fees,Elizabeth Harris,800.00, 30-Jul-2019
1379,Revenue,CAHD,Special ISB,Other Public Bodies,Enable Trust,1536.63, 23-Jul-2019
1380,Revenue,CAHD,Special ISB,Other Public Bodies,Enable Trust,889.61, 23-Jul-2019
1381,Revenue,CAHD,Special ISB,Other Public Bodies,Enable Trust,1536.63, 23-Jul-2019
1382,Revenue,CAHD,Special ISB,Other Public Bodies,Enable Trust,1172.69, 23-Jul-2019
1383,Revenue,CAHD,Special ISB,Other Public Bodies,Enable Trust,1172.69, 23-Jul-2019
1384,Revenue,CAHD,Special ISB,Other Public Bodies,Enable Trust,1172.69, 23-Jul-2019
1385,Revenue,CAHD,Special ISB,Other Public Bodies,Enable Trust,1536.63, 23-Jul-2019
1386,Revenue,CAHD,Special ISB,Other Public Bodies,Enable Trust,889.61, 23-Jul-2019
1387,Revenue,CAHD,Special ISB,Other Public Bodies,Enable Trust,1172.69, 23-Jul-2019
1388,Revenue,CAHD,Special ISB,Other Public Bodies,Enable Trust,1172.69, 23-Jul-2019
1389,Revenue,CAHD,Special ISB,Other Public Bodies,Enable Trust,1172.69, 23-Jul-2019
1390,Revenue,CAHD,Special ISB,Other Public Bodies,Enable Trust,646.93, 23-Jul-2019
1391,Revenue,CAHD,Special ISB,Other Public Bodies,Enable Trust,1536.63, 23-Jul-2019
1392,Revenue,CAHD,Special ISB,Other Public Bodies,Enable Trust,646.93, 23-Jul-2019
1393,Revenue,CAHD,Special ISB,Other Public Bodies,Enable Trust,889.61, 23-Jul-2019
1394,Revenue,CAHD,Special ISB,Other Public Bodies,Enable Trust,889.61, 23-Jul-2019
1395,Revenue,CAHD,Special ISB,Other Public Bodies,Enable Trust,1172.69, 23-Jul-2019
1396,Revenue,CAHD,Special ISB,Other Public Bodies,Enable Trust,1172.69, 23-Jul-2019
1397,Revenue,CAHD,Special ISB,Other Public Bodies,Enable Trust,1172.69, 23-Jul-2019
1398,Revenue,CAHD,Special ISB,Other Public Bodies,Enable Trust,889.61, 23-Jul-2019
1399,Revenue,CAHD,Special ISB,Other Public Bodies,Enable Trust,1172.69, 23-Jul-2019
1400,Revenue,CAHD,Special ISB,Other Public Bodies,Enable Trust,1536.63, 23-Jul-2019
1401,Revenue,CAHD,Special ISB,Other Public Bodies,Enable Trust,646.93, 23-Jul-2019
1402,Revenue,CAHD,Special ISB,Other Public Bodies,Enable Trust,889.61, 23-Jul-2019
1403,Revenue,CAHD,Special ISB,Other Public Bodies,Enable Trust,1536.63, 23-Jul-2019
1404,Revenue,CAHD,Special ISB,Other Public Bodies,Enable Trust,1172.69, 23-Jul-2019
1405,Revenue,CAHD,Special ISB,Other Public Bodies,Enable Trust,889.61, 23-Jul-2019
1406,Revenue,CAHD,Special ISB,Other Public Bodies,Enable Trust,1172.69, 23-Jul-2019
1407,Revenue,CAHD,Special ISB,Other Public Bodies,Enable Trust,889.61, 23-Jul-2019
1408,Revenue,CAHD,Special ISB,Other Public Bodies,Enable Trust,2183.55, 23-Jul-2019
1409,Revenue,CAHD,Special ISB,Other Public Bodies,Enable Trust,1172.69, 23-Jul-2019
1410,Revenue,CAHD,Special ISB,Other Public Bodies,Enable Trust,1172.69, 23-Jul-2019
1411,Revenue,CAHD,Special ISB,Other Public Bodies,Enable Trust,1172.69, 23-Jul-2019
1412,Revenue,CAHD,Special ISB,Other Public Bodies,Enable Trust,1172.69, 23-Jul-2019
1413,Revenue,CAHD,Special ISB,Other Public Bodies,Enable Trust,1172.69, 23-Jul-2019
1414,Revenue,CAHD,Special ISB,Other Public Bodies,Enable Trust,1536.63, 23-Jul-2019
1415,Revenue,CAHD,Special ISB,Other Public Bodies,Enable Trust,1172.69, 23-Jul-2019
1416,Revenue,CAHD,Special ISB,Other Public Bodies,Enable Trust,1536.63, 23-Jul-2019
1417,Revenue,CAHD,Special ISB,Other Public Bodies,Enable Trust,1172.69, 23-Jul-2019
1418,Revenue,CAHD,Special ISB,Other Public Bodies,Enable Trust,889.61, 23-Jul-2019
1419,Revenue,CAHD,Special ISB,Other Public Bodies,Enable Trust,1536.63, 23-Jul-2019
1420,Revenue,CAHD,Special ISB,Other Public Bodies,Enable Trust,1172.69, 23-Jul-2019
1421,Revenue,CAHD,Special ISB,Other Public Bodies,Enable Trust,1536.63, 23-Jul-2019
1422,Revenue,CAHD,Special ISB,Other Public Bodies,Enable Trust,1172.69, 23-Jul-2019
1423,Revenue,CAHD,Special ISB,Other Public Bodies,Enable Trust,889.61, 23-Jul-2019
1424,Revenue,CAHD,Special ISB,Other Public Bodies,Enable Trust,1172.69, 23-Jul-2019
1425,Revenue,CAHD,Special ISB,Other Public Bodies,Enable Trust,1172.69, 23-Jul-2019
1426,Revenue,CAHD,Special ISB,Other Public Bodies,Enable Trust,1172.69, 23-Jul-2019
1427,Revenue,CAHD,Special ISB,Other Public Bodies,Enable Trust,1536.63, 23-Jul-2019
1428,Revenue,CAHD,Special ISB,Other Public Bodies,Enable Trust,889.61, 23-Jul-2019
1429,Revenue,CAHD,Special ISB,Other Public Bodies,Enable Trust,1172.69, 23-Jul-2019
1430,Revenue,CAHD,Special ISB,Other Public Bodies,Enable Trust,1172.69, 23-Jul-2019
1431,Revenue,CAHD,Special ISB,Other Public Bodies,Enable Trust,1536.63, 23-Jul-2019
1432,Revenue,CAHD,Special ISB,Other Public Bodies,Enable Trust,889.61, 23-Jul-2019
1433,Revenue,CAHD,Special ISB,Other Public Bodies,Enable Trust,889.61, 23-Jul-2019
1434,Revenue,CAHD,Special ISB,Other Public Bodies,Enable Trust,889.61, 23-Jul-2019
1435,Revenue,CAHD,Special ISB,Other Public Bodies,Enable Trust,1536.63, 23-Jul-2019
1436,Revenue,CAHD,Special ISB,Other Public Bodies,Enable Trust,1536.63, 23-Jul-2019
1437,Revenue,CAHD,Special ISB,Other Public Bodies,Enable Trust,646.93, 23-Jul-2019
1438,Revenue,CAHD,Special ISB,Other Public Bodies,Enable Trust,1172.69, 23-Jul-2019
1439,Revenue,CAHD,Special ISB,Other Public Bodies,Enable Trust,1536.63, 23-Jul-2019
1440,Revenue,CAHD,Special ISB,Other Public Bodies,Enable Trust,13287.72, 30-Jul-2019
1441,Revenue,CAHD,Special ISB,Other Public Bodies,Enable Trust,4098.35, 30-Jul-2019
1442,Revenue,CAHD,Special ISB,Other Public Bodies,Enable Trust,4234.95, 30-Jul-2019
1443,Revenue,CAHD,Special ISB,Other Public Bodies,Enable Trust,4098.35, 30-Jul-2019
1444,Revenue,CAHD,Special ISB,Other Public Bodies,Enable Trust,4234.95, 30-Jul-2019
1445,Revenue,CAHD,Special Recoupment Income,Schools Funding,Enable Trust,5012.76, 12-Jul-2019
1446,Revenue,CAHD,Special ISB,Other Public Bodies,Enable Trust,1698.31, 23-Jul-2019
1447,Revenue,CAHD,Special ISB,Other Public Bodies,Enable Trust,889.61, 23-Jul-2019
1448,Revenue,CAHD,Special ISB,Other Public Bodies,Enable Trust,1172.69, 23-Jul-2019
1449,Revenue,CAHD,Special ISB,Other Public Bodies,Enable Trust,2183.55, 23-Jul-2019
1450,Revenue,CAHD,Special ISB,Other Public Bodies,Enable Trust,2183.55, 23-Jul-2019
1451,Revenue,CAHD,Special ISB,Other Public Bodies,Enable Trust,1504.21, 23-Jul-2019
1452,Revenue,CAHD,Special ISB,Other Public Bodies,Enable Trust,1504.21, 23-Jul-2019
1453,Revenue,CAHD,Special ISB,Other Public Bodies,Enable Trust,1698.31, 23-Jul-2019
1454,Revenue,CAHD,Special ISB,Other Public Bodies,Enable Trust,889.61, 23-Jul-2019
1455,Revenue,CAHD,Special ISB,Other Public Bodies,Enable Trust,889.61, 23-Jul-2019
1456,Revenue,CAHD,Special ISB,Other Public Bodies,Enable Trust,1172.69, 23-Jul-2019
1457,Revenue,CAHD,Special ISB,Other Public Bodies,Enable Trust,1172.69, 23-Jul-2019
1458,Revenue,CAHD,Special ISB,Other Public Bodies,Enable Trust,1172.69, 23-Jul-2019
1459,Revenue,CAHD,Special ISB,Other Public Bodies,Enable Trust,1172.69, 23-Jul-2019
1460,Revenue,CAHD,Special ISB,Other Public Bodies,Enable Trust,889.61, 23-Jul-2019
1461,Revenue,CAHD,Special ISB,Other Public Bodies,Enable Trust,1698.31, 23-Jul-2019
1462,Revenue,CAHD,Special ISB,Other Public Bodies,Enable Trust,889.61, 23-Jul-2019
1463,Revenue,CAHD,Special ISB,Other Public Bodies,Enable Trust,1698.31, 23-Jul-2019
1464,Revenue,CAHD,Special ISB,Other Public Bodies,Enable Trust,1172.69, 23-Jul-2019
1465,Revenue,CAHD,Special ISB,Other Public Bodies,Enable Trust,2183.55, 23-Jul-2019
1466,Revenue,CAHD,Special ISB,Other Public Bodies,Enable Trust,2507.01, 23-Jul-2019
1467,Revenue,CAHD,Special ISB,Other Public Bodies,Enable Trust,889.61, 23-Jul-2019
1468,Revenue,CAHD,Special ISB,Other Public Bodies,Enable Trust,889.61, 23-Jul-2019
1469,Revenue,CAHD,Special ISB,Other Public Bodies,Enable Trust,1698.31, 23-Jul-2019
1470,Revenue,CAHD,Special ISB,Other Public Bodies,Enable Trust,1504.21, 23-Jul-2019
1471,Revenue,CAHD,Special ISB,Other Public Bodies,Enable Trust,1172.69, 23-Jul-2019
1472,Revenue,CAHD,Special ISB,Other Public Bodies,Enable Trust,1172.69, 23-Jul-2019
1473,Revenue,CAHD,Special ISB,Other Public Bodies,Enable Trust,1172.69, 23-Jul-2019
1474,Revenue,CAHD,Special ISB,Other Public Bodies,Enable Trust,1698.31, 23-Jul-2019
1475,Revenue,CAHD,Special ISB,Other Public Bodies,Enable Trust,1698.31, 23-Jul-2019
1476,Revenue,CAHD,Special ISB,Other Public Bodies,Enable Trust,1172.69, 23-Jul-2019
1477,Revenue,CAHD,Special ISB,Other Public Bodies,Enable Trust,1172.69, 23-Jul-2019
1478,Revenue,CAHD,Special ISB,Other Public Bodies,Enable Trust,889.61, 23-Jul-2019
1479,Revenue,CAHD,Special ISB,Other Public Bodies,Enable Trust,1172.69, 23-Jul-2019
1480,Revenue,CAHD,Special ISB,Other Public Bodies,Enable Trust,1172.69, 23-Jul-2019
1481,Revenue,CAHD,Special ISB,Other Public Bodies,Enable Trust,1172.69, 23-Jul-2019
1482,Revenue,CAHD,Special ISB,Other Public Bodies,Enable Trust,1698.31, 23-Jul-2019
1483,Revenue,CAHD,Special ISB,Other Public Bodies,Enable Trust,1698.31, 23-Jul-2019
1484,Revenue,CAHD,Special ISB,Other Public Bodies,Enable Trust,889.61, 23-Jul-2019
1485,Revenue,CAHD,Special ISB,Other Public Bodies,Enable Trust,1172.69, 23-Jul-2019
1486,Revenue,CAHD,Special ISB,Other Public Bodies,Enable Trust,889.61, 23-Jul-2019
1487,Revenue,CAHD,Special ISB,Other Public Bodies,Enable Trust,1172.69, 23-Jul-2019
1488,Revenue,CAHD,Special ISB,Other Public Bodies,Enable Trust,1172.69, 23-Jul-2019
1489,Revenue,CAHD,Special ISB,Other Public Bodies,Enable Trust,1172.69, 23-Jul-2019
1490,Revenue,CAHD,Special ISB,Other Public Bodies,Enable Trust,1010.95, 23-Jul-2019
1491,Revenue,CAHD,Special ISB,Other Public Bodies,Enable Trust,1172.69, 23-Jul-2019
1492,Revenue,CAHD,Special ISB,Other Public Bodies,Enable Trust,889.61, 23-Jul-2019
1493,Revenue,CAHD,Special ISB,Other Public Bodies,Enable Trust,1172.69, 23-Jul-2019
1494,Revenue,CAHD,Special ISB,Other Public Bodies,Enable Trust,1172.69, 23-Jul-2019
1495,Revenue,CAHD,Special ISB,Other Public Bodies,Enable Trust,2183.55, 23-Jul-2019
1496,Revenue,CAHD,Special ISB,Other Public Bodies,Enable Trust,1504.21, 23-Jul-2019
1497,Revenue,CAHD,Special ISB,Other Public Bodies,Enable Trust,1455.69, 23-Jul-2019
1498,Revenue,CAHD,Special ISB,Other Public Bodies,Enable Trust,1698.31, 23-Jul-2019
1499,Revenue,CAHD,Special ISB,Other Public Bodies,Enable Trust,889.61, 23-Jul-2019
1500,Revenue,CAHD,Special ISB,Other Public Bodies,Enable Trust,1172.69, 23-Jul-2019
1501,Revenue,CAHD,Special ISB,Other Public Bodies,Enable Trust,889.61, 23-Jul-2019
1502,Revenue,CAHD,Special ISB,Other Public Bodies,Enable Trust,1172.69, 23-Jul-2019
1503,Revenue,CAHD,Special ISB,Other Public Bodies,Enable Trust,646.93, 23-Jul-2019
1504,Revenue,CAHD,Special ISB,Other Public Bodies,Enable Trust,1698.31, 23-Jul-2019
1505,Revenue,CAHD,Special ISB,Other Public Bodies,Enable Trust,1698.31, 23-Jul-2019
1506,Revenue,CAHD,Special ISB,Other Public Bodies,Enable Trust,1536.63, 23-Jul-2019
1507,Revenue,CAHD,Special ISB,Other Public Bodies,Enable Trust,889.61, 23-Jul-2019
1508,Revenue,CAHD,Special ISB,Other Public Bodies,Enable Trust,1172.69, 23-Jul-2019
1509,Revenue,CAHD,Special ISB,Other Public Bodies,Enable Trust,1172.69, 23-Jul-2019
1510,Revenue,CAHD,Special ISB,Other Public Bodies,Enable Trust,1172.69, 23-Jul-2019
1511,Revenue,CAHD,Special ISB,Other Public Bodies,Enable Trust,1172.69, 23-Jul-2019
1512,Revenue,CAHD,Special ISB,Other Public Bodies,Enable Trust,889.61, 23-Jul-2019
1513,Revenue,CAHD,Special ISB,Other Public Bodies,Enable Trust,889.61, 23-Jul-2019
1514,Revenue,CAHD,Special ISB,Other Public Bodies,Enable Trust,889.61, 23-Jul-2019
1515,Revenue,CAHD,Special ISB,Other Public Bodies,Enable Trust,1172.69, 23-Jul-2019
1516,Revenue,CAHD,Special ISB,Other Public Bodies,Enable Trust,889.61, 23-Jul-2019
1517,Revenue,CAHD,Special ISB,Other Public Bodies,Enable Trust,889.61, 23-Jul-2019
1518,Revenue,CAHD,Special ISB,Other Public Bodies,Enable Trust,889.61, 23-Jul-2019
1519,Revenue,CAHD,Special ISB,Other Public Bodies,Enable Trust,1172.69, 23-Jul-2019
1520,Revenue,CAHD,Special ISB,Other Public Bodies,Enable Trust,1698.31, 23-Jul-2019
1521,Revenue,CAHD,Special ISB,Other Public Bodies,Enable Trust,1698.31, 23-Jul-2019
1522,Revenue,CAHD,Special ISB,Other Public Bodies,Enable Trust,2183.55, 23-Jul-2019
1523,Revenue,CAHD,Special ISB,Other Public Bodies,Enable Trust,889.61, 23-Jul-2019
1524,Revenue,CAHD,Special ISB,Other Public Bodies,Enable Trust,1172.69, 23-Jul-2019
1525,Revenue,CAHD,Special ISB,Other Public Bodies,Enable Trust,2183.55, 23-Jul-2019
1526,Revenue,CAHD,Special ISB,Other Public Bodies,Enable Trust,1698.31, 23-Jul-2019
1527,Revenue,CAHD,Special ISB,Other Public Bodies,Enable Trust,889.61, 23-Jul-2019
1528,Revenue,CAHD,Special ISB,Other Public Bodies,Enable Trust,889.61, 23-Jul-2019
1529,Revenue,CAHD,Special ISB,Other Public Bodies,Enable Trust,1172.69, 23-Jul-2019
1530,Revenue,CAHD,Special ISB,Other Public Bodies,Enable Trust,1698.31, 23-Jul-2019
1531,Revenue,CAHD,Special ISB,Other Public Bodies,Enable Trust,1698.31, 23-Jul-2019
1532,Revenue,CAHD,Special ISB,Other Public Bodies,Enable Trust,819.67, 30-Jul-2019
1533,Revenue,CAHD,Special ISB,Other Public Bodies,Enable Trust,846.99, 30-Jul-2019
1534,Revenue,CAHD,Schools Specific Grant Income,Other Public Bodies,Enable Trust,630.00, 01-Jul-2019
1535,Revenue,CAHD,Schools Specific Grant Income,Other Public Bodies,Enable Trust,630.00, 01-Jul-2019
1536,Revenue,CAHD,CSC - Ofsted Work,Agency Staff (Admin/Support Staff) Pay,Enid Noctor,3135.00, 11-Jul-2019
1537,Revenue,CAHD,South - Bed Purchasing and Direct payments,Permanent Nursing,Epworth House,3072.00, 02-Jul-2019
1538,Revenue,CAHD,South - Bed Purchasing and Direct payments,Permanent Nursing,Epworth House,3072.00, 30-Jul-2019
1539,Revenue,CAHD,South - Bed Purchasing and Direct payments,Fees & Charges Income - General,Epworth House,514.61, 02-Jul-2019
1540,Revenue,CAHD,North - S117,Permanent Residential,Evolve House,3276.80, 02-Jul-2019
1541,Revenue,CAHD,North - S117,Permanent Residential,Evolve House,3276.80, 30-Jul-2019
1542,Revenue,CAHD,South - Bed Purchasing and Direct payments,Permanent Residential,Evolve House,2681.76, 02-Jul-2019
1543,Revenue,CAHD,South - Bed Purchasing and Direct payments,Permanent Residential,Evolve House,2681.76, 30-Jul-2019
1544,Revenue,CAHD,Placements OLA Special Schools and RB,Other L.A.'s - General,Excalibur Academies Trust T/A,1511.83, 26-Jul-2019
1545,Revenue,CAHD,Extra Care Housing,Private & Voluntary Home Care,Extra Care Charitable Trust,30382.22, 12-Jul-2019
1546,Revenue,CAHD,North - bed purchasing and direct  payments,Permanent Residential,Eyre Court,3719.16, 02-Jul-2019
1547,Revenue,CAHD,North - bed purchasing and direct  payments,Permanent Residential,Eyre Court,3719.16, 30-Jul-2019
1548,Revenue,CAHD,South - Bed Purchasing and Direct payments,Permanent Nursing,Fairview Court,3810.56, 02-Jul-2019
1549,Revenue,CAHD,South Glos Users in South Glos Homes,Permanent Nursing,Fairview Court,662.24, 02-Jul-2019
1550,Revenue,CAHD,South - Bed Purchasing and Direct payments,Permanent Nursing,Fairview Court,3810.56, 30-Jul-2019
1551,Revenue,CAHD,South Glos Users in South Glos Homes,Permanent Nursing,Fairview Court,662.24, 30-Jul-2019
1552,Revenue,CAHD,South Glos Users in South Glos Homes,Permanent Nursing,Fairview Court,662.24, 02-Jul-2019
1553,Revenue,CAHD,South Glos Users in South Glos Homes,Permanent Nursing,Fairview Court,662.24, 30-Jul-2019
1554,Revenue,CAHD,South Glos Users in South Glos Homes,Permanent Nursing,Fairview Court,662.24, 02-Jul-2019
1555,Revenue,CAHD,South Glos Users in South Glos Homes,Permanent Nursing,Fairview Court,662.24, 30-Jul-2019
1556,Revenue,CAHD,South - Bed Purchasing and Direct payments,Permanent Nursing,Fairview Court,3810.56, 02-Jul-2019
1557,Revenue,CAHD,South Glos Users in South Glos Homes,Permanent Nursing,Fairview Court,662.24, 02-Jul-2019
1558,Revenue,CAHD,South - Bed Purchasing and Direct payments,Permanent Nursing,Fairview Court,3810.56, 30-Jul-2019
1559,Revenue,CAHD,South Glos Users in South Glos Homes,Permanent Nursing,Fairview Court,662.24, 30-Jul-2019
1560,Revenue,CAHD,South Glos Users in South Glos Homes,Permanent Nursing,Fairview Court,662.24, 02-Jul-2019
1561,Revenue,CAHD,South Glos Users in South Glos Homes,Permanent Nursing,Fairview Court,662.24, 30-Jul-2019
1562,Revenue,CAHD,South Glos Users in South Glos Homes,Permanent Nursing,Fairview Court,662.24, 02-Jul-2019
1563,Revenue,CAHD,South Glos Users in South Glos Homes,Permanent Nursing,Fairview Court,662.24, 30-Jul-2019
1564,Revenue,CAHD,South Glos Users in South Glos Homes,Permanent Nursing,Fairview Court,662.24, 02-Jul-2019
1565,Revenue,CAHD,South Glos Users in South Glos Homes,Permanent Nursing,Fairview Court,662.24, 30-Jul-2019
1566,Revenue,CAHD,South Glos Users in South Glos Homes,Permanent Nursing,Fairview Court,662.24, 02-Jul-2019
1567,Revenue,CAHD,South Glos Users in South Glos Homes,Permanent Nursing,Fairview Court,662.24, 30-Jul-2019
1568,Revenue,CAHD,South - Bed Purchasing and Direct payments,Permanent Nursing,Fairview Court,3547.76, 02-Jul-2019
1569,Revenue,CAHD,South Glos Users in South Glos Homes,Permanent Nursing,Fairview Court,662.24, 02-Jul-2019
1570,Revenue,CAHD,South - Bed Purchasing and Direct payments,Permanent Nursing,Fairview Court,3547.76, 30-Jul-2019
1571,Revenue,CAHD,South Glos Users in South Glos Homes,Permanent Nursing,Fairview Court,662.24, 30-Jul-2019
1572,Revenue,CAHD,South - Bed Purchasing and Direct payments,Permanent Nursing,Fairview Court,3810.56, 02-Jul-2019
1573,Revenue,CAHD,South Glos Users in South Glos Homes,Permanent Nursing,Fairview Court,662.24, 02-Jul-2019
1574,Revenue,CAHD,South - Bed Purchasing and Direct payments,Permanent Nursing,Fairview Court,3810.56, 30-Jul-2019
1575,Revenue,CAHD,South Glos Users in South Glos Homes,Permanent Nursing,Fairview Court,662.24, 30-Jul-2019
1576,Revenue,CAHD,South - Bed Purchasing and Direct payments,Permanent Nursing,Fairview Court,3506.00, 02-Jul-2019
1577,Revenue,CAHD,South Glos Users in South Glos Homes,Permanent Nursing,Fairview Court,662.24, 02-Jul-2019
1578,Revenue,CAHD,South - Bed Purchasing and Direct payments,Permanent Nursing,Fairview Court,3506.00, 30-Jul-2019
1579,Revenue,CAHD,South Glos Users in South Glos Homes,Permanent Nursing,Fairview Court,662.24, 30-Jul-2019
1580,Revenue,CAHD,South Glos Users in South Glos Homes,Permanent Nursing,Fairview Court,662.24, 02-Jul-2019
1581,Revenue,CAHD,South Glos Users in South Glos Homes,Permanent Nursing,Fairview Court,662.24, 30-Jul-2019
1582,Revenue,CAHD,South Glos Users in South Glos Homes,Permanent Nursing,Fairview Court,662.24, 02-Jul-2019
1583,Revenue,CAHD,South Glos Users in South Glos Homes,Permanent Nursing,Fairview Court,662.24, 30-Jul-2019
1584,Revenue,CAHD,South - S117,Permanent Nursing,Fairview Court,4173.84, 02-Jul-2019
1585,Revenue,CAHD,South Glos Users in South Glos Homes,Permanent Nursing,Fairview Court,662.24, 02-Jul-2019
1586,Revenue,CAHD,South - S117,Permanent Nursing,Fairview Court,4173.84, 30-Jul-2019
1587,Revenue,CAHD,South Glos Users in South Glos Homes,Permanent Nursing,Fairview Court,662.24, 30-Jul-2019
1588,Revenue,CAHD,South Glos Users in South Glos Homes,Permanent Nursing,Fairview Court,662.24, 02-Jul-2019
1589,Revenue,CAHD,South Glos Users in South Glos Homes,Permanent Nursing,Fairview Court,662.24, 30-Jul-2019
1590,Revenue,CAHD,South - Bed Purchasing and Direct payments,Permanent Nursing,Fairview Court,3382.48, 02-Jul-2019
1591,Revenue,CAHD,South Glos Users in South Glos Homes,Permanent Nursing,Fairview Court,662.24, 02-Jul-2019
1592,Revenue,CAHD,South - Bed Purchasing and Direct payments,Permanent Nursing,Fairview Court,3382.48, 30-Jul-2019
1593,Revenue,CAHD,South Glos Users in South Glos Homes,Permanent Nursing,Fairview Court,662.24, 30-Jul-2019
1594,Revenue,CAHD,South Glos Users in South Glos Homes,Permanent Nursing,Fairview Court,662.24, 02-Jul-2019
1595,Revenue,CAHD,South Glos Users in South Glos Homes,Permanent Nursing,Fairview Court,662.24, 30-Jul-2019
1596,Revenue,CAHD,South Glos Users in South Glos Homes,Permanent Nursing,Fairview Court,662.24, 02-Jul-2019
1597,Revenue,CAHD,South Glos Users in South Glos Homes,Permanent Nursing,Fairview Court,662.24, 30-Jul-2019
1598,Revenue,CAHD,South Glos Users in South Glos Homes,Permanent Nursing,Fairview Court,662.24, 02-Jul-2019
1599,Revenue,CAHD,South Glos Users in South Glos Homes,Permanent Nursing,Fairview Court,662.24, 02-Jul-2019
1600,Revenue,CAHD,South Glos Users in South Glos Homes,Permanent Nursing,Fairview Court,662.24, 30-Jul-2019
1601,Revenue,CAHD,South Glos Users in South Glos Homes,Permanent Nursing,Fairview Court,662.24, 02-Jul-2019
1602,Revenue,CAHD,South Glos Users in South Glos Homes,Permanent Nursing,Fairview Court,662.24, 30-Jul-2019
1603,Revenue,CAHD,South Glos Users in South Glos Homes,Permanent Nursing,Fairview Court,662.24, 02-Jul-2019
1604,Revenue,CAHD,South Glos Users in South Glos Homes,Permanent Nursing,Fairview Court,662.24, 30-Jul-2019
1605,Revenue,CAHD,South Glos Users in South Glos Homes,Permanent Nursing,Fairview Court,662.24, 02-Jul-2019
1606,Revenue,CAHD,South Glos Users in South Glos Homes,Permanent Nursing,Fairview Court,662.24, 30-Jul-2019
1607,Revenue,CAHD,South Glos Users in South Glos Homes,Permanent Nursing,Fairview Court,662.24, 02-Jul-2019
1608,Revenue,CAHD,South Glos Users in South Glos Homes,Permanent Nursing,Fairview Court,662.24, 30-Jul-2019
1609,Revenue,CAHD,South Glos Users in South Glos Homes,Permanent Nursing,Fairview Court,662.24, 02-Jul-2019
1610,Revenue,CAHD,South Glos Users in South Glos Homes,Permanent Nursing,Fairview Court,662.24, 30-Jul-2019
1611,Revenue,CAHD,South - Bed Purchasing and Direct payments,Permanent Nursing,Fairview Court,3810.56, 02-Jul-2019
1612,Revenue,CAHD,South Glos Users in South Glos Homes,Permanent Nursing,Fairview Court,662.24, 02-Jul-2019
1613,Revenue,CAHD,South - Bed Purchasing and Direct payments,Permanent Nursing,Fairview Court,3810.56, 30-Jul-2019
1614,Revenue,CAHD,South Glos Users in South Glos Homes,Permanent Nursing,Fairview Court,662.24, 30-Jul-2019
1615,Revenue,CAHD,South Glos Users in South Glos Homes,Permanent Nursing,Fairview Court,662.24, 02-Jul-2019
1616,Revenue,CAHD,South Glos Users in South Glos Homes,Permanent Nursing,Fairview Court,662.24, 30-Jul-2019
1617,Revenue,CAHD,South Glos Users in South Glos Homes,Permanent Nursing,Fairview Court,662.24, 02-Jul-2019
1618,Revenue,CAHD,South Glos Users in South Glos Homes,Permanent Nursing,Fairview Court,662.24, 30-Jul-2019
1619,Revenue,CAHD,South Glos Users in South Glos Homes,Permanent Nursing,Fairview Court,662.24, 02-Jul-2019
1620,Revenue,CAHD,South Glos Users in South Glos Homes,Permanent Nursing,Fairview Court,662.24, 30-Jul-2019
1621,Revenue,CAHD,South Glos Users in South Glos Homes,Permanent Nursing,Fairview Court,662.24, 02-Jul-2019
1622,Revenue,CAHD,South Glos Users in South Glos Homes,Permanent Nursing,Fairview Court,662.24, 30-Jul-2019
1623,Revenue,CAHD,South Glos Users in South Glos Homes,Permanent Nursing,Fairview Court,662.24, 02-Jul-2019
1624,Revenue,CAHD,South Glos Users in South Glos Homes,Permanent Nursing,Fairview Court,662.24, 30-Jul-2019
1625,Revenue,CAHD,North - bed purchasing and direct  payments,Permanent Nursing,Fairview Court,3547.76, 02-Jul-2019
1626,Revenue,CAHD,South Glos Users in South Glos Homes,Permanent Nursing,Fairview Court,662.24, 02-Jul-2019
1627,Revenue,CAHD,North - bed purchasing and direct  payments,Permanent Nursing,Fairview Court,3547.76, 30-Jul-2019
1628,Revenue,CAHD,South Glos Users in South Glos Homes,Permanent Nursing,Fairview Court,662.24, 30-Jul-2019
1629,Revenue,CAHD,South Glos Users in South Glos Homes,Permanent Nursing,Fairview Court,1513.69, 02-Jul-2019
1630,Revenue,CAHD,South Glos Users in South Glos Homes,Permanent Nursing,Fairview Court,662.24, 02-Jul-2019
1631,Revenue,CAHD,South Glos Users in South Glos Homes,Permanent Nursing,Fairview Court,662.24, 30-Jul-2019
1632,Revenue,CAHD,South Glos Users in South Glos Homes,Permanent Nursing,Fairview Court,662.24, 02-Jul-2019
1633,Revenue,CAHD,South Glos Users in South Glos Homes,Permanent Nursing,Fairview Court,662.24, 30-Jul-2019
1634,Revenue,CAHD,South - Bed Purchasing and Direct payments,Permanent Residential,Fairview Court,4048.64, 02-Jul-2019
1635,Revenue,CAHD,South Glos Users in South Glos Homes,Permanent Nursing,Fairview Court,1584.65, 02-Jul-2019
1636,Revenue,CAHD,South Glos Users in South Glos Homes,Permanent Nursing,Fairview Court,662.24, 02-Jul-2019
1637,Revenue,CAHD,South - Bed Purchasing and Direct payments,Permanent Residential,Fairview Court,4048.64, 30-Jul-2019
1638,Revenue,CAHD,South Glos Users in South Glos Homes,Permanent Nursing,Fairview Court,662.24, 30-Jul-2019
1639,Revenue,CAHD,South Glos Users in South Glos Homes,Permanent Nursing,Fairview Court,662.24, 02-Jul-2019
1640,Revenue,CAHD,South Glos Users in South Glos Homes,Permanent Nursing,Fairview Court,662.24, 30-Jul-2019
1641,Revenue,CAHD,South Glos Users in South Glos Homes,Permanent Nursing,Fairview Court,662.24, 02-Jul-2019
1642,Revenue,CAHD,South Glos Users in South Glos Homes,Permanent Nursing,Fairview Court,662.24, 30-Jul-2019
1643,Revenue,CAHD,North - bed purchasing and direct  payments,Permanent Residential,Fairview Court,3256.32, 02-Jul-2019
1644,Revenue,CAHD,North - bed purchasing and direct  payments,Permanent Residential,Fairview Court,3256.32, 30-Jul-2019
1645,Revenue,CAHD,South - Bed Purchasing and Direct payments,Respite Planned - Nursing,Fairview Court,650.00, 02-Jul-2019
1646,Revenue,CAHD,South Glos Users in South Glos Homes,Permanent Nursing,Fairview Court,1135.27, 02-Jul-2019
1647,Revenue,CAHD,South Glos Users in South Glos Homes,Permanent Nursing,Fairview Court,662.24, 02-Jul-2019
1648,Revenue,CAHD,South Glos Users in South Glos Homes,Permanent Nursing,Fairview Court,662.24, 30-Jul-2019
1649,Revenue,CAHD,South - Bed Purchasing and Direct payments,Permanent Nursing,Fairview Court,3483.68, 02-Jul-2019
1650,Revenue,CAHD,South Glos Users in South Glos Homes,Permanent Nursing,Fairview Court,662.24, 02-Jul-2019
1651,Revenue,CAHD,South - Bed Purchasing and Direct payments,Permanent Nursing,Fairview Court,3483.68, 30-Jul-2019
1652,Revenue,CAHD,South Glos Users in South Glos Homes,Permanent Nursing,Fairview Court,662.24, 30-Jul-2019
1653,Revenue,CAHD,North - bed purchasing and direct  payments,Permanent Nursing,Fairview Court,2857.92, 02-Jul-2019
1654,Revenue,CAHD,North - bed purchasing and direct  payments,Permanent Nursing,Fairview Court,952.64, 02-Jul-2019
1655,Revenue,CAHD,South Glos Users in South Glos Homes,Permanent Nursing,Fairview Court,662.24, 02-Jul-2019
1656,Revenue,CAHD,North - bed purchasing and direct  payments,Permanent Nursing,Fairview Court,3810.56, 30-Jul-2019
1657,Revenue,CAHD,South Glos Users in South Glos Homes,Permanent Nursing,Fairview Court,662.24, 30-Jul-2019
1658,Revenue,CAHD,South - Bed Purchasing and Direct payments,Permanent Nursing,Fairview Court,3130.36, 02-Jul-2019
1659,Revenue,CAHD,South Glos Users in South Glos Homes,Permanent Nursing,Fairview Court,662.24, 02-Jul-2019
1660,Revenue,CAHD,South - Bed Purchasing and Direct payments,Permanent Nursing,Fairview Court,3130.36, 30-Jul-2019
1661,Revenue,CAHD,South Glos Users in South Glos Homes,Permanent Nursing,Fairview Court,662.24, 30-Jul-2019
1662,Revenue,CAHD,South - Bed Purchasing and Direct payments,Permanent Nursing,Fairview Court,3810.56, 02-Jul-2019
1663,Revenue,CAHD,South Glos Users in South Glos Homes,Permanent Nursing,Fairview Court,662.24, 02-Jul-2019
1664,Revenue,CAHD,South - Bed Purchasing and Direct payments,Permanent Nursing,Fairview Court,3810.56, 30-Jul-2019
1665,Revenue,CAHD,South Glos Users in South Glos Homes,Permanent Nursing,Fairview Court,662.24, 30-Jul-2019
1666,Revenue,CAHD,South - Bed Purchasing and Direct payments,Permanent Nursing,Fairview Court,3547.76, 02-Jul-2019
1667,Revenue,CAHD,South Glos Users in South Glos Homes,Permanent Nursing,Fairview Court,662.24, 02-Jul-2019
1668,Revenue,CAHD,South - Bed Purchasing and Direct payments,Permanent Nursing,Fairview Court,3547.76, 30-Jul-2019
1669,Revenue,CAHD,South Glos Users in South Glos Homes,Permanent Nursing,Fairview Court,662.24, 30-Jul-2019
1670,Revenue,CAHD,South Glos Users in South Glos Homes,Permanent Nursing,Fairview Court,662.24, 02-Jul-2019
1671,Revenue,CAHD,South Glos Users in South Glos Homes,Permanent Nursing,Fairview Court,662.24, 30-Jul-2019
1672,Revenue,CAHD,South Glos Users in South Glos Homes,Permanent Nursing,Fairview Court,662.24, 02-Jul-2019
1673,Revenue,CAHD,South Glos Users in South Glos Homes,Permanent Nursing,Fairview Court,662.24, 30-Jul-2019
1674,Revenue,CAHD,South - S117,Permanent Residential,Fairview House,2303.52, 02-Jul-2019
1675,Revenue,CAHD,South - S117,Permanent Residential,Fairview House,2303.52, 30-Jul-2019
1676,Revenue,CAHD,South - Bed Purchasing and Direct payments,Permanent Residential,Fairview House,2303.52, 02-Jul-2019
1677,Revenue,CAHD,South - Bed Purchasing and Direct payments,Permanent Residential,Fairview House,2303.52, 30-Jul-2019
1678,Revenue,CAHD,North - bed purchasing and direct  payments,Permanent Residential,Fairview House,2846.72, 02-Jul-2019
1679,Revenue,CAHD,North - bed purchasing and direct  payments,Permanent Residential,Fairview House,2846.72, 30-Jul-2019
1680,Revenue,CAHD,South - Bed Purchasing and Direct payments,Permanent Residential,Fairview House,2303.52, 02-Jul-2019
1681,Revenue,CAHD,South - Bed Purchasing and Direct payments,Permanent Residential,Fairview House,2303.52, 30-Jul-2019
1682,Revenue,CAHD,South - Bed Purchasing and Direct payments,Permanent Residential,Fairview House,2230.32, 02-Jul-2019
1683,Revenue,CAHD,South - Bed Purchasing and Direct payments,Permanent Residential,Fairview House,2230.32, 30-Jul-2019
1684,Revenue,CAHD,South - Bed Purchasing and Direct payments,Permanent Residential,Fairview House,2230.40, 02-Jul-2019
1685,Revenue,CAHD,South - Bed Purchasing and Direct payments,Permanent Residential,Fairview House,2230.40, 30-Jul-2019
1686,Revenue,CAHD,South - Bed Purchasing and Direct payments,Permanent Residential,Fairview House,2608.68, 02-Jul-2019
1687,Revenue,CAHD,South - Bed Purchasing and Direct payments,Permanent Residential,Fairview House,2608.68, 30-Jul-2019
1688,Revenue,CAHD,North - bed purchasing and direct  payments,Permanent Residential,Faith House,3297.28, 02-Jul-2019
1689,Revenue,CAHD,North - bed purchasing and direct  payments,Permanent Residential,Faith House,3297.28, 30-Jul-2019
1690,Revenue,CAHD,North - bed purchasing and direct  payments,Permanent Residential,Faith House,2805.76, 02-Jul-2019
1691,Revenue,CAHD,North - bed purchasing and direct  payments,Respite Planned - Residential,Faith House,1370.00, 02-Jul-2019
1692,Revenue,CAHD,North - bed purchasing and direct  payments,Permanent Residential,Faith House,2805.76, 02-Jul-2019
1693,Revenue,CAHD,North - bed purchasing and direct  payments,Permanent Residential,Faith House,2805.76, 30-Jul-2019
1694,Revenue,CAHD,Central - Bed Purchasing and Direct Payments,Permanent Residential,Faith House,2928.64, 02-Jul-2019
1695,Revenue,CAHD,Central - Bed Purchasing and Direct Payments,Permanent Residential,Faith House,2928.64, 30-Jul-2019
1696,Revenue,CAHD,South - Bed Purchasing and Direct payments,Permanent Residential,Faith House,2805.76, 02-Jul-2019
1697,Revenue,CAHD,South - Bed Purchasing and Direct payments,Permanent Residential,Faith House,2805.76, 30-Jul-2019
1698,Revenue,CAHD,Tenancy Start Up Scheme,Other Supplies & Services,Farringtons Sales & Lettings,860.00, 10-Jul-2019
1699,Revenue,CAHD,Future Bright,Fees - General,Fast Lane,898.00, 10-Jul-2019
1700,Revenue,CAHD,Central - Bed Purchasing and Direct Payments,Permanent Nursing,Festival House,3055.04, 02-Jul-2019
1701,Revenue,CAHD,Central - Bed Purchasing and Direct Payments,Permanent Nursing,Festival House,3055.04, 30-Jul-2019
1702,Revenue,CAHD,North - bed purchasing and direct  payments,Permanent Nursing,Field House Care Home,2216.32, 02-Jul-2019
1703,Revenue,CAHD,North - bed purchasing and direct  payments,Fees & Charges Income - General,Field House Care Home,2041.22, 30-Jul-2019
1704,Revenue,CAHD,North - bed purchasing and direct  payments,Permanent Nursing,Field House Care Home,3522.56, 02-Jul-2019
1705,Revenue,CAHD,North - bed purchasing and direct  payments,Permanent Nursing,Field House Care Home,3522.56, 30-Jul-2019
1706,Revenue,CAHD,South Glos Users in South Glos Homes,Permanent Nursing,Field House Care Home,662.24, 02-Jul-2019
1707,Revenue,CAHD,South Glos Users in South Glos Homes,Permanent Nursing,Field House Care Home,662.24, 30-Jul-2019
1708,Revenue,CAHD,North - bed purchasing and direct  payments,Permanent Nursing,Field House Care Home,3522.56, 02-Jul-2019
1709,Revenue,CAHD,North - bed purchasing and direct  payments,Permanent Nursing,Field House Care Home,3522.56, 30-Jul-2019
1710,Revenue,CAHD,North - bed purchasing and direct  payments,Permanent Nursing,Field House Care Home,3403.60, 02-Jul-2019
1711,Revenue,CAHD,North - bed purchasing and direct  payments,Permanent Nursing,Field House Care Home,3403.60, 30-Jul-2019
1712,Revenue,CAHD,North - bed purchasing and direct  payments,Permanent Nursing,Field House Care Home,3589.48, 02-Jul-2019
1713,Revenue,CAHD,North - bed purchasing and direct  payments,Permanent Nursing,Field House Care Home,3589.48, 30-Jul-2019
1714,Revenue,CAHD,North - bed purchasing and direct  payments,Permanent Nursing,Field House Care Home,3422.52, 02-Jul-2019
1715,Revenue,CAHD,North - bed purchasing and direct  payments,Permanent Nursing,Field House Care Home,3422.52, 30-Jul-2019
1716,Revenue,CAHD,North - bed purchasing and direct  payments,Permanent Nursing,Field House Care Home,3600.00, 02-Jul-2019
1717,Revenue,CAHD,North - bed purchasing and direct  payments,Permanent Nursing,Field House Care Home,3600.00, 30-Jul-2019
1718,Revenue,CAHD,North - bed purchasing and direct  payments,Permanent Nursing,Field House Care Home,3422.52, 02-Jul-2019
1719,Revenue,CAHD,North - bed purchasing and direct  payments,Permanent Nursing,Field House Care Home,3422.52, 30-Jul-2019
1720,Revenue,CAHD,Central - Bed Purchasing and Direct Payments,Permanent Nursing,Field House Care Home,3600.00, 02-Jul-2019
1721,Revenue,CAHD,Central - Bed Purchasing and Direct Payments,Permanent Nursing,Field House Care Home,3085.71, 30-Jul-2019
1722,Revenue,CAHD,Central - Bed Purchasing and Direct Payments,Permanent Nursing,Field House Care Home,514.29, 30-Jul-2019
1723,Revenue,CAHD,Central - Bed Purchasing and Direct Payments,Permanent Nursing,Field House Care Home,3740.00, 02-Jul-2019
1724,Revenue,CAHD,Central - Bed Purchasing and Direct Payments,Permanent Nursing,Field House Care Home,3339.29, 02-Jul-2019
1725,Revenue,CAHD,Central - Bed Purchasing and Direct Payments,Permanent Nursing,Field House Care Home,3740.00, 30-Jul-2019
1726,Revenue,CAHD,Central - Bed Purchasing and Direct Payments,Fees & Charges Income - General,Field House Care Home,1057.46, 30-Jul-2019
1727,Revenue,CAHD,North - bed purchasing and direct  payments,Permanent Nursing,Field House Care Home,2216.32, 02-Jul-2019
1728,Revenue,CAHD,North - bed purchasing and direct  payments,Permanent Nursing,Field House Care Home,2216.32, 30-Jul-2019
1729,Revenue,CAHD,North - bed purchasing and direct  payments,Permanent Nursing,Field House Care Home,2216.32, 02-Jul-2019
1730,Revenue,CAHD,North - bed purchasing and direct  payments,Permanent Nursing,Field House Care Home,2216.32, 30-Jul-2019
1731,Revenue,CAHD,Central - Bed Purchasing and Direct Payments,Permanent Nursing,Field House Care Home,3342.86, 30-Jul-2019
1732,Revenue,CAHD,North - bed purchasing and direct  payments,Permanent Nursing,Field House Care Home,3506.00, 02-Jul-2019
1733,Revenue,CAHD,North - bed purchasing and direct  payments,Permanent Nursing,Field House Care Home,3506.00, 30-Jul-2019
1734,Revenue,CAHD,Central - Bed Purchasing and Direct Payments,Permanent Residential,Fieldview,3481.60, 02-Jul-2019
1735,Revenue,CAHD,Central - Bed Purchasing and Direct Payments,Permanent Residential,Fieldview,3481.60, 30-Jul-2019
1736,Revenue,CAHD,North - S117,Respite Planned - Residential,Fieldview,813.71, 30-Jul-2019
1737,Revenue,CAHD,North - bed purchasing and direct  payments,Fees & Charges Income - General,Fieldview,7422.30, 02-Jul-2019
1738,Revenue,CAHD,North - bed purchasing and direct  payments,Permanent Residential,Fieldview,3756.44, 02-Jul-2019
1739,Revenue,CAHD,North - bed purchasing and direct  payments,Permanent Residential,Fieldview,9391.10, 02-Jul-2019
1740,Revenue,CAHD,North - bed purchasing and direct  payments,Permanent Residential,Fieldview,2620.29, 02-Jul-2019
1741,Revenue,CAHD,North - bed purchasing and direct  payments,Fees & Charges Income - General,Fieldview,922.34, 02-Jul-2019
1742,Revenue,CAHD,North - bed purchasing and direct  payments,Fees & Charges Income - General,Fieldview,1383.45, 02-Jul-2019
1743,Revenue,CAHD,North - bed purchasing and direct  payments,Permanent Residential,Fieldview,13147.54, 30-Jul-2019
1744,Revenue,CAHD,North - bed purchasing and direct  payments,Permanent Residential,Fieldview,3756.44, 30-Jul-2019
1745,Revenue,CAHD,North - bed purchasing and direct  payments,Fees & Charges Income - General,Fieldview,1789.65, 30-Jul-2019
1746,Revenue,CAHD,North - bed purchasing and direct  payments,Fees & Charges Income - General,Fieldview,4831.43, 30-Jul-2019
1747,Revenue,CAHD,MH Purchasing - Younger,Permanent Nursing,Fieldview,5496.52, 02-Jul-2019
1748,Revenue,CAHD,MH Purchasing - Younger,Permanent Nursing,Fieldview,5496.52, 30-Jul-2019
1749,Revenue,CAHD,South - Bed Purchasing and Direct payments,Permanent Residential,Fieldview,7885.71, 02-Jul-2019
1750,Revenue,CAHD,South - Bed Purchasing and Direct payments,Permanent Residential,Fieldview,3561.43, 30-Jul-2019
1751,Revenue,CAHD,South - Bed Purchasing and Direct payments,Permanent Residential,Fieldview,2228.57, 30-Jul-2019
1752,Revenue,CAHD,South - Bed Purchasing and Direct payments,Permanent Residential,Fieldview,3324.00, 30-Jul-2019
1753,Revenue,CAHD,South - Bed Purchasing and Direct payments,Permanent Residential,Fig House,1421.26, 02-Jul-2019
1754,Revenue,CAHD,Statemented Support Payments to OLAs,Other L.A.'s - General,Filton Avenue Primary School,1132.00, 24-Jul-2019
1755,Revenue,CAHD,Statemented Support Payments to OLAs,Other L.A.'s - General,Filton Avenue Primary School,1332.46, 24-Jul-2019
1756,Revenue,CAHD,CSC - Agency Fostering,Foster Parent Allowances,Five Rivers Child Care Limited,3938.57, 15-Jul-2019
1757,Revenue,CAHD,CSC - Agency Fostering,Foster Parent Allowances,Five Rivers Child Care Limited,4152.86, 15-Jul-2019
1758,Revenue,CAHD,CSC - Agency Fostering,Foster Parent Allowances,Five Rivers Child Care Limited,3404.70, 15-Jul-2019
1759,Revenue,CAHD,CSC - Agency Fostering,Foster Parent Allowances,Five Rivers Child Care Limited,3938.57, 15-Jul-2019
1760,Revenue,CAHD,CSC - Agency Fostering,Foster Parent Allowances,Five Rivers Child Care Limited,3552.86, 15-Jul-2019
1761,Revenue,CAHD,CSC - Agency Fostering,Foster Parent Allowances,Five Rivers Child Care Limited,3336.60, 01-Jul-2019
1762,Revenue,CAHD,CSC - Agency Fostering,Foster Parent Allowances,Five Rivers Child Care Limited,3336.60, 01-Jul-2019
1763,Revenue,CAHD,Drug and Alcohol Programme,Other Supplies & Services,Foster & Brown Research LTD,5525.00, 05-Jul-2019
1764,Revenue,CAHD,CSC - Asylum Seekers - Unaccompanied,Foster Parent Allowances,Foster Care Associates Limited,2328.60, 01-Jul-2019
1765,Revenue,CAHD,CSC - Agency Fostering,Foster Parent Allowances,Foster Care Associates Limited,4131.68, 08-Jul-2019
1766,Revenue,CAHD,CSC - Asylum Seekers - Unaccompanied,Foster Parent Allowances,Foster Care Associates Limited,2406.22, 10-Jul-2019
1767,Revenue,CAHD,CSC - Asylum Seekers - Unaccompanied,Foster Parent Allowances,Foster Care Associates Limited,3295.50, 15-Jul-2019
1768,Revenue,CAHD,CSC - Agency Fostering,Foster Parent Allowances,Foster Care Associates Limited,1170.00, 15-Jul-2019
1769,Revenue,CAHD,CSC - Asylum Seekers - Unaccompanied,Foster Parent Allowances,Foster Care Associates Limited,2406.22, 31-Jul-2019
1770,Revenue,CAHD,CSC - Parent & Child Assessments,Foster Parent Allowances,Fostering Solutions Limited,1453.98, 30-Jul-2019
1771,Revenue,CAHD,CSC - Parent & Child Assessments,Foster Parent Allowances,Fostering Solutions Limited,6058.25, 30-Jul-2019
1772,Revenue,CAHD,CSC - Parent & Child Assessments,Foster Parent Allowances,Fostering Solutions Limited,1151.07, 30-Jul-2019
1773,Revenue,CAHD,Central - Community based support,Other Small Contracts,Fourways Care Limited,144.00, 01-Jul-2019
1774,Revenue,CAHD,South - community based support,Other Small Contracts,Fourways Care Limited,1279.76, 01-Jul-2019
1775,Revenue,CAHD,North - Community based support,Other Small Contracts,Fourways Care Limited,10452.96, 01-Jul-2019
1776,Revenue,CAHD,Central - Community based support,Other Small Contracts,Fourways Care Limited,318.00, 03-Jul-2019
1777,Revenue,CAHD,South - community based support,Other Small Contracts,Fourways Care Limited,1362.72, 03-Jul-2019
1778,Revenue,CAHD,North - Community based support,Other Small Contracts,Fourways Care Limited,10384.64, 03-Jul-2019
1779,Revenue,CAHD,Central - Community based support,Other Small Contracts,Fourways Care Limited,312.00, 11-Jul-2019
1780,Revenue,CAHD,South - community based support,Other Small Contracts,Fourways Care Limited,1438.56, 11-Jul-2019
1781,Revenue,CAHD,North - Community based support,Other Small Contracts,Fourways Care Limited,10482.24, 11-Jul-2019
1782,Revenue,CAHD,Central - Community based support,Other Small Contracts,Fourways Care Limited,318.00, 17-Jul-2019
1783,Revenue,CAHD,South - community based support,Other Small Contracts,Fourways Care Limited,1437.44, 17-Jul-2019
1784,Revenue,CAHD,North - Community based support,Other Small Contracts,Fourways Care Limited,10975.12, 17-Jul-2019
1785,Revenue,CAHD,Central - Community based support,Other Small Contracts,Fourways Care Limited,318.00, 23-Jul-2019
1786,Revenue,CAHD,South - community based support,Other Small Contracts,Fourways Care Limited,1404.40, 23-Jul-2019
1787,Revenue,CAHD,North - Community based support,Other Small Contracts,Fourways Care Limited,10818.96, 23-Jul-2019
1788,Revenue,CAHD,Central - Community based support,Other Small Contracts,Fourways Care Limited,318.00, 31-Jul-2019
1789,Revenue,CAHD,South - community based support,Other Small Contracts,Fourways Care Limited,1433.68, 31-Jul-2019
1790,Revenue,CAHD,North - Community based support,Other Small Contracts,Fourways Care Limited,11131.28, 31-Jul-2019
1791,Revenue,CAHD,Supporting People Programme,Grants to Voluntary Bodies,Freeways Trust Limited,6250.18, 01-Jul-2019
1792,Revenue,CAHD,North - Community based support,Other Small Contracts,Freeways Trust Limited,836.88, 09-Jul-2019
1793,Revenue,CAHD,North - Community based support,Other Small Contracts,Freeways Trust Limited,846.56, 12-Jul-2019
1794,Revenue,CAHD,Central - Community based support,Other Small Contracts,Freeways Trust Limited,731.12, 12-Jul-2019
